Body Name,Body,Date,Department,Beneficiary,Summary of Purpose (SeRCOP),Amount,Merchant Code,Transaction Number
Sandwell Metropolitan Borough Council,http://www.sandwell.gov.uk/info/200202/performance_and_spending/3233/government_procurement_cards,06-Apr-20,Adult Social Care Health and Wellbeing - Total,WWW.ZORO.CO.UK,Public Health,-171.6,Ind. Emp Exp-Emp. Welfare,2020-21Apr_PC00001
Sandwell Metropolitan Borough Council,http://www.sandwell.gov.uk/info/200202/performance_and_spending/3233/government_procurement_cards,06-Apr-20,Resources (Inc SIU),XMA LTD,Assistant Chief Executive (Excl SIU),17.75,ICT,2020-21Apr_PC00002
Sandwell Metropolitan Borough Council,http://www.sandwell.gov.uk/info/200202/performance_and_spending/3233/government_procurement_cards,06-Apr-20,Adult Social Care Health and Wellbeing - Total,AMZ PANAAZ FASHION,Total Adult Social Care,-9.98,Equipment & Furniture,2020-21Apr_PC00003
Sandwell Metropolitan Borough Council,http://www.sandwell.gov.uk/info/200202/performance_and_spending/3233/government_procurement_cards,06-Apr-20,Total Housing Revenue Account,SIGN SUPPLIES,Total Housing Revenue Account,10.55,Advertising & Publicity,2020-21Apr_PC00004
Sandwell Metropolitan Borough Council,http://www.sandwell.gov.uk/info/200202/performance_and_spending/3233/government_procurement_cards,06-Apr-20,Resources (Inc SIU),AMZ NIGHT STAR,Assistant Chief Executive (Excl SIU),-7.91,Materials & Consumables,2020-21Apr_PC00005
Sandwell Metropolitan Borough Council,http://www.sandwell.gov.uk/info/200202/performance_and_spending/3233/government_procurement_cards,06-Apr-20,Individual School Budgets With Inclusion,AMZNMKTPLACE AMAZON.CO,Individual School Budgets With Inclusion,74.87,Printing Stationery&Gen Office,2020-21Apr_PC00006
Sandwell Metropolitan Borough Council,http://www.sandwell.gov.uk/info/200202/performance_and_spending/3233/government_procurement_cards,06-Apr-20,Housing & Communities,PAYPAL  SCREWFIX,Neighbourhoods,39.25,Grounds Maint&Improvements,2020-21Apr_PC00007
Sandwell Metropolitan Borough Council,http://www.sandwell.gov.uk/info/200202/performance_and_spending/3233/government_procurement_cards,06-Apr-20,Total Housing Revenue Account,OFFICE DEPOT UK,Total Housing Revenue Account,129.85,Hygiene Services,2020-21Apr_PC00008
Sandwell Metropolitan Borough Council,http://www.sandwell.gov.uk/info/200202/performance_and_spending/3233/government_procurement_cards,06-Apr-20,Adult Social Care Health and Wellbeing - Total,ASDA STORES,Total Adult Social Care,1.73,Materials & Consumables,2020-21Apr_PC00009
Sandwell Metropolitan Borough Council,http://www.sandwell.gov.uk/info/200202/performance_and_spending/3233/government_procurement_cards,06-Apr-20,Adult Social Care Health and Wellbeing - Total,AMZNMktplace,Total Adult Social Care,33.75,Laundry,2020-21Apr_PC00010
Sandwell Metropolitan Borough Council,http://www.sandwell.gov.uk/info/200202/performance_and_spending/3233/government_procurement_cards,06-Apr-20,Regeneration & Growth,AMZNMktplace,Regeneration And The Economy,12.81,ICT,2020-21Apr_PC00011
Sandwell Metropolitan Borough Council,http://www.sandwell.gov.uk/info/200202/performance_and_spending/3233/government_procurement_cards,06-Apr-20,Childrens Services,Amazon.co.uk O563D50J5,Childrens Services,29.99,Equipment & Furniture,2020-21Apr_PC00012
Sandwell Metropolitan Borough Council,http://www.sandwell.gov.uk/info/200202/performance_and_spending/3233/government_procurement_cards,06-Apr-20,Regeneration & Growth,SUPERDRUG STORES PLC,Regeneration And The Economy,12.02,Materials & Consumables,2020-21Apr_PC00013
Sandwell Metropolitan Borough Council,http://www.sandwell.gov.uk/info/200202/performance_and_spending/3233/government_procurement_cards,06-Apr-20,Childrens Services,AMZNMktplace,Childrens Services,27.13,Printing Stationery&Gen Office,2020-21Apr_PC00014
Sandwell Metropolitan Borough Council,http://www.sandwell.gov.uk/info/200202/performance_and_spending/3233/government_procurement_cards,06-Apr-20,Regeneration & Growth,AMZNMKTPLACE AMAZON.CO,Regeneration And The Economy,51.07,Printing Stationery&Gen Office,2020-21Apr_PC00015
Sandwell Metropolitan Borough Council,http://www.sandwell.gov.uk/info/200202/performance_and_spending/3233/government_procurement_cards,06-Apr-20,Adult Social Care Health and Wellbeing - Total,BLOC BLINDS,Total Adult Social Care,576,Protective Clothing&Uniforms,2020-21Apr_PC00016
Sandwell Metropolitan Borough Council,http://www.sandwell.gov.uk/info/200202/performance_and_spending/3233/government_procurement_cards,06-Apr-20,Adult Social Care Health and Wellbeing - Total,AMZNMktplace,Total Adult Social Care,49.5,Laundry,2020-21Apr_PC00017
Sandwell Metropolitan Borough Council,http://www.sandwell.gov.uk/info/200202/performance_and_spending/3233/government_procurement_cards,06-Apr-20,Housing & Communities,AMZNMktplace,Neighbourhoods,491.5,Equipment & Furniture,2020-21Apr_PC00018
Sandwell Metropolitan Borough Council,http://www.sandwell.gov.uk/info/200202/performance_and_spending/3233/government_procurement_cards,07-Apr-20,Total Housing Revenue Account,WWW.OFFICETEAMCONNECT.,Total Housing Revenue Account,4350,Materials & Consumables,2020-21Apr_PC00019
Sandwell Metropolitan Borough Council,http://www.sandwell.gov.uk/info/200202/performance_and_spending/3233/government_procurement_cards,07-Apr-20,Individual School Budgets With Inclusion,POST OFFICE COUNTER,Individual School Budgets With Inclusion,216,"Postages, Carriage & Courier Services",2020-21Apr_PC00020
Sandwell Metropolitan Borough Council,http://www.sandwell.gov.uk/info/200202/performance_and_spending/3233/government_procurement_cards,07-Apr-20,Individual School Budgets With Inclusion,ARGOS LTD,Individual School Budgets With Inclusion,123.75,Telephones,2020-21Apr_PC00021
Sandwell Metropolitan Borough Council,http://www.sandwell.gov.uk/info/200202/performance_and_spending/3233/government_procurement_cards,07-Apr-20,Adult Social Care Health and Wellbeing - Total,AMZNMktplace,Total Adult Social Care,49.96,Materials & Consumables,2020-21Apr_PC00022
Sandwell Metropolitan Borough Council,http://www.sandwell.gov.uk/info/200202/performance_and_spending/3233/government_procurement_cards,07-Apr-20,Adult Social Care Health and Wellbeing - Total,PP 3996CODE,Total Adult Social Care,1,Printing Stationery&Gen Office,2020-21Apr_PC00023
Sandwell Metropolitan Borough Council,http://www.sandwell.gov.uk/info/200202/performance_and_spending/3233/government_procurement_cards,07-Apr-20,Adult Social Care Health and Wellbeing - Total,ARGOS LTD,Total Adult Social Care,26.67,Printing Stationery&Gen Office,2020-21Apr_PC00024
Sandwell Metropolitan Borough Council,http://www.sandwell.gov.uk/info/200202/performance_and_spending/3233/government_procurement_cards,07-Apr-20,Adult Social Care Health and Wellbeing - Total,PAYPAL  VALUEPRODUC,Total Adult Social Care,417,Materials & Consumables,2020-21Apr_PC00025
Sandwell Metropolitan Borough Council,http://www.sandwell.gov.uk/info/200202/performance_and_spending/3233/government_procurement_cards,07-Apr-20,Childrens Services,ARGOS LTD,Childrens Services,49.92,Telephones,2020-21Apr_PC00026
Sandwell Metropolitan Borough Council,http://www.sandwell.gov.uk/info/200202/performance_and_spending/3233/government_procurement_cards,07-Apr-20,Housing & Communities,PAYPAL  INTAUCTIONS EB,Neighbourhoods,12.99,Printing Stationery&Gen Office,2020-21Apr_PC00027
Sandwell Metropolitan Borough Council,http://www.sandwell.gov.uk/info/200202/performance_and_spending/3233/government_procurement_cards,07-Apr-20,Adult Social Care Health and Wellbeing - Total,CARESHOP,Total Adult Social Care,70,Protective Clothing&Uniforms,2020-21Apr_PC00028
Sandwell Metropolitan Borough Council,http://www.sandwell.gov.uk/info/200202/performance_and_spending/3233/government_procurement_cards,07-Apr-20,Adult Social Care Health and Wellbeing - Total,CARESHOP,Total Adult Social Care,70,Protective Clothing&Uniforms,2020-21Apr_PC00029
Sandwell Metropolitan Borough Council,http://www.sandwell.gov.uk/info/200202/performance_and_spending/3233/government_procurement_cards,08-Apr-20,Adult Social Care Health and Wellbeing - Total,AMZNMktplace,Total Adult Social Care,1262.37,Protective Clothing&Uniforms,2020-21Apr_PC00030
Sandwell Metropolitan Borough Council,http://www.sandwell.gov.uk/info/200202/performance_and_spending/3233/government_procurement_cards,08-Apr-20,Adult Social Care Health and Wellbeing - Total,ARGOS LTD,Total Adult Social Care,199.67,Equipment & Furniture,2020-21Apr_PC00031
Sandwell Metropolitan Borough Council,http://www.sandwell.gov.uk/info/200202/performance_and_spending/3233/government_procurement_cards,08-Apr-20,Resources (Inc SIU),ARGOS LTD,Assistant Chief Executive (Excl SIU),14.99,Materials & Consumables,2020-21Apr_PC00032
Sandwell Metropolitan Borough Council,http://www.sandwell.gov.uk/info/200202/performance_and_spending/3233/government_procurement_cards,08-Apr-20,Housing & Communities,PAYPAL  TOOLSTATION,Neighbourhoods,14.6,Grounds Maint&Improvements,2020-21Apr_PC00033
Sandwell Metropolitan Borough Council,http://www.sandwell.gov.uk/info/200202/performance_and_spending/3233/government_procurement_cards,08-Apr-20,Housing & Communities,Trainline,Neighbourhoods,-8,Public Transport,2020-21Apr_PC00034
Sandwell Metropolitan Borough Council,http://www.sandwell.gov.uk/info/200202/performance_and_spending/3233/government_procurement_cards,08-Apr-20,Housing & Communities,Trainline,Neighbourhoods,-45.4,Public Transport,2020-21Apr_PC00035
Sandwell Metropolitan Borough Council,http://www.sandwell.gov.uk/info/200202/performance_and_spending/3233/government_procurement_cards,08-Apr-20,Housing & Communities,Trainline,Neighbourhoods,-8,Public Transport,2020-21Apr_PC00036
Sandwell Metropolitan Borough Council,http://www.sandwell.gov.uk/info/200202/performance_and_spending/3233/government_procurement_cards,08-Apr-20,Housing & Communities,Trainline,Neighbourhoods,-101,Public Transport,2020-21Apr_PC00037
Sandwell Metropolitan Borough Council,http://www.sandwell.gov.uk/info/200202/performance_and_spending/3233/government_procurement_cards,08-Apr-20,Childrens Services,EDUCATION & TRAINI,Childrens Services,-100,Ind. Emp Exp-Staff Dev&Training,2020-21Apr_PC00038
Sandwell Metropolitan Borough Council,http://www.sandwell.gov.uk/info/200202/performance_and_spending/3233/government_procurement_cards,08-Apr-20,Regeneration & Growth,WWW.CLEANINGPRODUCTS.N,Regeneration And The Economy,52.71,Materials & Consumables,2020-21Apr_PC00039
Sandwell Metropolitan Borough Council,http://www.sandwell.gov.uk/info/200202/performance_and_spending/3233/government_procurement_cards,09-Apr-20,Resources (Inc SIU),AISLE OF FLOWERS,Assistant Chief Executive (Excl SIU),90,Civic Events,2020-21Apr_PC00040
Sandwell Metropolitan Borough Council,http://www.sandwell.gov.uk/info/200202/performance_and_spending/3233/government_procurement_cards,09-Apr-20,Housing & Communities,AMZNMktplace,Neighbourhoods,123.05,Printing Stationery&Gen Office,2020-21Apr_PC00041
Sandwell Metropolitan Borough Council,http://www.sandwell.gov.uk/info/200202/performance_and_spending/3233/government_procurement_cards,09-Apr-20,Resources (Inc SIU),Amazon Prime S64MC1MK5,Assistant Chief Executive (Excl SIU),6.66,Subscriptions,2020-21Apr_PC00042
Sandwell Metropolitan Borough Council,http://www.sandwell.gov.uk/info/200202/performance_and_spending/3233/government_procurement_cards,09-Apr-20,Adult Social Care Health and Wellbeing - Total,PP 3996CODE,Total Adult Social Care,-1,Materials & Consumables,2020-21Apr_PC00043
Sandwell Metropolitan Borough Council,http://www.sandwell.gov.uk/info/200202/performance_and_spending/3233/government_procurement_cards,09-Apr-20,Adult Social Care Health and Wellbeing - Total,PAYPAL  CROMWELLTOO,Total Adult Social Care,71.27,Materials & Consumables,2020-21Apr_PC00044
Sandwell Metropolitan Borough Council,http://www.sandwell.gov.uk/info/200202/performance_and_spending/3233/government_procurement_cards,09-Apr-20,Adult Social Care Health and Wellbeing - Total,AMZNMktplace,Total Adult Social Care,80.83,Materials & Consumables,2020-21Apr_PC00045
Sandwell Metropolitan Borough Council,http://www.sandwell.gov.uk/info/200202/performance_and_spending/3233/government_procurement_cards,09-Apr-20,Adult Social Care Health and Wellbeing - Total,WWW.POSTOFFICESHOP.CO.,Total Adult Social Care,14.3,Printing Stationery&Gen Office,2020-21Apr_PC00046
Sandwell Metropolitan Borough Council,http://www.sandwell.gov.uk/info/200202/performance_and_spending/3233/government_procurement_cards,09-Apr-20,Adult Social Care Health and Wellbeing - Total,CARESHOP,Total Adult Social Care,212.5,Protective Clothing&Uniforms,2020-21Apr_PC00047
Sandwell Metropolitan Borough Council,http://www.sandwell.gov.uk/info/200202/performance_and_spending/3233/government_procurement_cards,09-Apr-20,Total Housing Revenue Account,CAPITA GAS,Total Housing Revenue Account,4.4,Professional Services External,2020-21Apr_PC00048
Sandwell Metropolitan Borough Council,http://www.sandwell.gov.uk/info/200202/performance_and_spending/3233/government_procurement_cards,09-Apr-20,Regeneration & Growth,Amazon.co.uk FB5QQ0TG5,Regeneration And The Economy,12.81,ICT,2020-21Apr_PC00049
Sandwell Metropolitan Borough Council,http://www.sandwell.gov.uk/info/200202/performance_and_spending/3233/government_procurement_cards,09-Apr-20,Childrens Services,AMZNMktplace,Childrens Services,29.84,Telephones,2020-21Apr_PC00050
Sandwell Metropolitan Borough Council,http://www.sandwell.gov.uk/info/200202/performance_and_spending/3233/government_procurement_cards,10-Apr-20,Resources (Inc SIU),WILKIN CHAPMAN,Assistant Chief Executive (Excl SIU),1897.5,Professional Services External,2020-21Apr_PC00051
Sandwell Metropolitan Borough Council,http://www.sandwell.gov.uk/info/200202/performance_and_spending/3233/government_procurement_cards,10-Apr-20,Childrens Services,WWW.ARCO.CO.UK,Childrens Services,-49.74,Protective Clothing&Uniforms,2020-21Apr_PC00052
Sandwell Metropolitan Borough Council,http://www.sandwell.gov.uk/info/200202/performance_and_spending/3233/government_procurement_cards,10-Apr-20,Resources (Inc SIU),CURRYS ONLINE,Assistant Chief Executive (Excl SIU),21.66,ICT,2020-21Apr_PC00053
Sandwell Metropolitan Borough Council,http://www.sandwell.gov.uk/info/200202/performance_and_spending/3233/government_procurement_cards,10-Apr-20,Resources (Inc SIU),CURRYS ONLINE,Assistant Chief Executive (Excl SIU),21.66,ICT,2020-21Apr_PC00054
Sandwell Metropolitan Borough Council,http://www.sandwell.gov.uk/info/200202/performance_and_spending/3233/government_procurement_cards,10-Apr-20,Resources (Inc SIU),CURRYS ONLINE,Assistant Chief Executive (Excl SIU),21.66,ICT,2020-21Apr_PC00055
Sandwell Metropolitan Borough Council,http://www.sandwell.gov.uk/info/200202/performance_and_spending/3233/government_procurement_cards,10-Apr-20,Resources (Inc SIU),CURRYS ONLINE,Assistant Chief Executive (Excl SIU),21.66,ICT,2020-21Apr_PC00056
Sandwell Metropolitan Borough Council,http://www.sandwell.gov.uk/info/200202/performance_and_spending/3233/government_procurement_cards,10-Apr-20,Resources (Inc SIU),CURRYS ONLINE,Assistant Chief Executive (Excl SIU),86.63,ICT,2020-21Apr_PC00057
Sandwell Metropolitan Borough Council,http://www.sandwell.gov.uk/info/200202/performance_and_spending/3233/government_procurement_cards,10-Apr-20,Resources (Inc SIU),WWW.POSTOFFICESHOP.CO.,Assistant Chief Executive (Excl SIU),79.32,"Postages, Carriage & Courier Services",2020-21Apr_PC00058
Sandwell Metropolitan Borough Council,http://www.sandwell.gov.uk/info/200202/performance_and_spending/3233/government_procurement_cards,10-Apr-20,Housing & Communities,POST OFFICE COUNTER,Neighbourhoods,9.75,Printing Stationery&Gen Office,2020-21Apr_PC00059
Sandwell Metropolitan Borough Council,http://www.sandwell.gov.uk/info/200202/performance_and_spending/3233/government_procurement_cards,10-Apr-20,Resources (Inc SIU),AMZNMKTPLACE AMAZON.CO,Assistant Chief Executive (Excl SIU),79.16,Equipment & Furniture,2020-21Apr_PC00060
Sandwell Metropolitan Borough Council,http://www.sandwell.gov.uk/info/200202/performance_and_spending/3233/government_procurement_cards,10-Apr-20,Housing & Communities,AQUAID WATERCOOLERS,Neighbourhoods,101.25,Catering Provisions,2020-21Apr_PC00061
Sandwell Metropolitan Borough Council,http://www.sandwell.gov.uk/info/200202/performance_and_spending/3233/government_procurement_cards,13-Apr-20,Regeneration & Growth,XSORTAL GRANTS,Regeneration And The Economy,150,Subscriptions,2020-21Apr_PC00062
Sandwell Metropolitan Borough Council,http://www.sandwell.gov.uk/info/200202/performance_and_spending/3233/government_procurement_cards,13-Apr-20,Adult Social Care Health and Wellbeing - Total,1 AND 1 IONOS LTD,Public Health,11,ICT,2020-21Apr_PC00063
Sandwell Metropolitan Borough Council,http://www.sandwell.gov.uk/info/200202/performance_and_spending/3233/government_procurement_cards,13-Apr-20,Adult Social Care Health and Wellbeing - Total,Adobe.com,Public Health,41.62,ICT,2020-21Apr_PC00064
Sandwell Metropolitan Borough Council,http://www.sandwell.gov.uk/info/200202/performance_and_spending/3233/government_procurement_cards,13-Apr-20,Resources (Inc SIU),AMZNMKTPLACE AMAZON.CO,Assistant Chief Executive (Excl SIU),14.15,Printing Stationery&Gen Office,2020-21Apr_PC00065
Sandwell Metropolitan Borough Council,http://www.sandwell.gov.uk/info/200202/performance_and_spending/3233/government_procurement_cards,13-Apr-20,Housing & Communities,INKREDIBLE,Neighbourhoods,44.3,Printing Stationery&Gen Office,2020-21Apr_PC00066
Sandwell Metropolitan Borough Council,http://www.sandwell.gov.uk/info/200202/performance_and_spending/3233/government_procurement_cards,13-Apr-20,Adult Social Care Health and Wellbeing - Total,AMZNMktplace,Total Adult Social Care,172.35,Protective Clothing&Uniforms,2020-21Apr_PC00067
Sandwell Metropolitan Borough Council,http://www.sandwell.gov.uk/info/200202/performance_and_spending/3233/government_procurement_cards,13-Apr-20,Adult Social Care Health and Wellbeing - Total,AMZNMKTPLACE AMAZON.CO,Total Adult Social Care,17.98,Printing Stationery&Gen Office,2020-21Apr_PC00068
Sandwell Metropolitan Borough Council,http://www.sandwell.gov.uk/info/200202/performance_and_spending/3233/government_procurement_cards,13-Apr-20,Individual School Budgets With Inclusion,AMZNMKTPLACE AMAZON.CO,Individual School Budgets With Inclusion,44.96,Printing Stationery&Gen Office,2020-21Apr_PC00069
Sandwell Metropolitan Borough Council,http://www.sandwell.gov.uk/info/200202/performance_and_spending/3233/government_procurement_cards,13-Apr-20,Adult Social Care Health and Wellbeing - Total,Amazon Prime HJ4Q022G5,Total Adult Social Care,7.99,Subscriptions,2020-21Apr_PC00070
Sandwell Metropolitan Borough Council,http://www.sandwell.gov.uk/info/200202/performance_and_spending/3233/government_procurement_cards,14-Apr-20,Resources (Inc SIU),AMZNMKTPLACE AMAZON.CO,Assistant Chief Executive (Excl SIU),14.15,Printing Stationery&Gen Office,2020-21Apr_PC00071
Sandwell Metropolitan Borough Council,http://www.sandwell.gov.uk/info/200202/performance_and_spending/3233/government_procurement_cards,14-Apr-20,Housing & Communities,Trainline,Neighbourhoods,-29.5,Public Transport,2020-21Apr_PC00072
Sandwell Metropolitan Borough Council,http://www.sandwell.gov.uk/info/200202/performance_and_spending/3233/government_procurement_cards,15-Apr-20,Adult Social Care Health and Wellbeing - Total,Avanti West Coast,Total Adult Social Care,-80,Public Transport,2020-21Apr_PC00073
Sandwell Metropolitan Borough Council,http://www.sandwell.gov.uk/info/200202/performance_and_spending/3233/government_procurement_cards,15-Apr-20,Adult Social Care Health and Wellbeing - Total,Avanti West Coast,Total Adult Social Care,-19.1,Public Transport,2020-21Apr_PC00074
Sandwell Metropolitan Borough Council,http://www.sandwell.gov.uk/info/200202/performance_and_spending/3233/government_procurement_cards,15-Apr-20,Adult Social Care Health and Wellbeing - Total,Amazon.co.uk G60XO6B35,Total Adult Social Care,18.32,Printing Stationery&Gen Office,2020-21Apr_PC00075
Sandwell Metropolitan Borough Council,http://www.sandwell.gov.uk/info/200202/performance_and_spending/3233/government_procurement_cards,15-Apr-20,Adult Social Care Health and Wellbeing - Total,AMZNMktplace,Total Adult Social Care,24.96,Materials & Consumables,2020-21Apr_PC00076
Sandwell Metropolitan Borough Council,http://www.sandwell.gov.uk/info/200202/performance_and_spending/3233/government_procurement_cards,15-Apr-20,Total Housing Revenue Account,NISA LOCAL JASHEER FOO,Total Housing Revenue Account,8.3,Materials & Consumables,2020-21Apr_PC00077
Sandwell Metropolitan Borough Council,http://www.sandwell.gov.uk/info/200202/performance_and_spending/3233/government_procurement_cards,15-Apr-20,Total Housing Revenue Account,CARTRIDGE SAVE,Total Housing Revenue Account,123.59,Printing Stationery&Gen Office,2020-21Apr_PC00078
Sandwell Metropolitan Borough Council,http://www.sandwell.gov.uk/info/200202/performance_and_spending/3233/government_procurement_cards,15-Apr-20,Total Housing Revenue Account,ASDA STORE,Total Housing Revenue Account,19.49,Materials & Consumables,2020-21Apr_PC00079
Sandwell Metropolitan Borough Council,http://www.sandwell.gov.uk/info/200202/performance_and_spending/3233/government_procurement_cards,15-Apr-20,Total Housing Revenue Account,ASDA STORE,Total Housing Revenue Account,7.49,Materials & Consumables,2020-21Apr_PC00080
Sandwell Metropolitan Borough Council,http://www.sandwell.gov.uk/info/200202/performance_and_spending/3233/government_procurement_cards,15-Apr-20,Total Housing Revenue Account,ASDA STORE,Total Housing Revenue Account,9.75,Materials & Consumables,2020-21Apr_PC00081
Sandwell Metropolitan Borough Council,http://www.sandwell.gov.uk/info/200202/performance_and_spending/3233/government_procurement_cards,15-Apr-20,Total Housing Revenue Account,ASDA STORE,Total Housing Revenue Account,9.25,Materials & Consumables,2020-21Apr_PC00082
Sandwell Metropolitan Borough Council,http://www.sandwell.gov.uk/info/200202/performance_and_spending/3233/government_procurement_cards,15-Apr-20,Total Housing Revenue Account,ASDA STORE,Total Housing Revenue Account,16.25,Materials & Consumables,2020-21Apr_PC00083
Sandwell Metropolitan Borough Council,http://www.sandwell.gov.uk/info/200202/performance_and_spending/3233/government_procurement_cards,15-Apr-20,Adult Social Care Health and Wellbeing - Total,SAINSBURYS 0558,Total Adult Social Care,8.67,Materials & Consumables,2020-21Apr_PC00084
Sandwell Metropolitan Borough Council,http://www.sandwell.gov.uk/info/200202/performance_and_spending/3233/government_procurement_cards,15-Apr-20,Adult Social Care Health and Wellbeing - Total,C.H. WHITE PHARMACY,Total Adult Social Care,3.32,Materials & Consumables,2020-21Apr_PC00085
Sandwell Metropolitan Borough Council,http://www.sandwell.gov.uk/info/200202/performance_and_spending/3233/government_procurement_cards,15-Apr-20,Individual School Budgets With Inclusion,AMZNMKTPLACE AMAZON.CO,Individual School Budgets With Inclusion,92.66,Printing Stationery&Gen Office,2020-21Apr_PC00086
Sandwell Metropolitan Borough Council,http://www.sandwell.gov.uk/info/200202/performance_and_spending/3233/government_procurement_cards,15-Apr-20,Childrens Services,VODAFONE LTD,Childrens Services,17.63,ICT,2020-21Apr_PC00087
Sandwell Metropolitan Borough Council,http://www.sandwell.gov.uk/info/200202/performance_and_spending/3233/government_procurement_cards,15-Apr-20,Childrens Services,WWW.AELP.ORG.UK,Childrens Services,49,Ind. Emp Exp-Staff Dev&Training,2020-21Apr_PC00088
Sandwell Metropolitan Borough Council,http://www.sandwell.gov.uk/info/200202/performance_and_spending/3233/government_procurement_cards,15-Apr-20,Total Housing Revenue Account,TRAVIS PERKINS,Total Housing Revenue Account,2475.4,Materials & Consumables,2020-21Apr_PC00089
Sandwell Metropolitan Borough Council,http://www.sandwell.gov.uk/info/200202/performance_and_spending/3233/government_procurement_cards,15-Apr-20,Childrens Services,Trainline,Childrens Services,-18.7,Public Transport,2020-21Apr_PC00090
Sandwell Metropolitan Borough Council,http://www.sandwell.gov.uk/info/200202/performance_and_spending/3233/government_procurement_cards,16-Apr-20,Regeneration & Growth,WAYFAIR,Regeneration And The Economy,612.95,ICT,2020-21Apr_PC00091
Sandwell Metropolitan Borough Council,http://www.sandwell.gov.uk/info/200202/performance_and_spending/3233/government_procurement_cards,16-Apr-20,Adult Social Care Health and Wellbeing - Total,Flextronics,Total Adult Social Care,124.05,ICT,2020-21Apr_PC00092
Sandwell Metropolitan Borough Council,http://www.sandwell.gov.uk/info/200202/performance_and_spending/3233/government_procurement_cards,16-Apr-20,Adult Social Care Health and Wellbeing - Total,OFFICE DEPOT UK,Total Adult Social Care,-31.8,Printing Stationery&Gen Office,2020-21Apr_PC00093
Sandwell Metropolitan Borough Council,http://www.sandwell.gov.uk/info/200202/performance_and_spending/3233/government_procurement_cards,16-Apr-20,Resources (Inc SIU),AMZNMKTPLACE AMAZON.CO,Assistant Chief Executive (Excl SIU),24.97,ICT,2020-21Apr_PC00094
Sandwell Metropolitan Borough Council,http://www.sandwell.gov.uk/info/200202/performance_and_spending/3233/government_procurement_cards,16-Apr-20,Resources (Inc SIU),AMZNMktplace,Assistant Chief Executive (Excl SIU),128.99,ICT,2020-21Apr_PC00095
Sandwell Metropolitan Borough Council,http://www.sandwell.gov.uk/info/200202/performance_and_spending/3233/government_procurement_cards,16-Apr-20,Adult Social Care Health and Wellbeing - Total,CARESHOP,Total Adult Social Care,212.5,Protective Clothing&Uniforms,2020-21Apr_PC00096
Sandwell Metropolitan Borough Council,http://www.sandwell.gov.uk/info/200202/performance_and_spending/3233/government_procurement_cards,16-Apr-20,Resources (Inc SIU),OFFICE DEPOT UK,Assistant Chief Executive (Excl SIU),160.23,Printing Stationery&Gen Office,2020-21Apr_PC00097
Sandwell Metropolitan Borough Council,http://www.sandwell.gov.uk/info/200202/performance_and_spending/3233/government_procurement_cards,16-Apr-20,Childrens Services,Spotify P0F5A5FE28,Childrens Services,8.32,Subscriptions,2020-21Apr_PC00098
Sandwell Metropolitan Borough Council,http://www.sandwell.gov.uk/info/200202/performance_and_spending/3233/government_procurement_cards,16-Apr-20,Total Housing Revenue Account,TRAVIS PERKINS,Total Housing Revenue Account,1098.15,Materials & Consumables,2020-21Apr_PC00099
Sandwell Metropolitan Borough Council,http://www.sandwell.gov.uk/info/200202/performance_and_spending/3233/government_procurement_cards,16-Apr-20,Total Housing Revenue Account,TRAVIS PERKINS,Total Housing Revenue Account,773.5,Materials & Consumables,2020-21Apr_PC00100
Sandwell Metropolitan Borough Council,http://www.sandwell.gov.uk/info/200202/performance_and_spending/3233/government_procurement_cards,17-Apr-20,Adult Social Care Health and Wellbeing - Total,AMZNMktplace,Public Health,99.99,Equipment & Furniture,2020-21Apr_PC00101
Sandwell Metropolitan Borough Council,http://www.sandwell.gov.uk/info/200202/performance_and_spending/3233/government_procurement_cards,17-Apr-20,Adult Social Care Health and Wellbeing - Total,BEST4HEADSETS,Total Adult Social Care,75,ICT,2020-21Apr_PC00102
Sandwell Metropolitan Borough Council,http://www.sandwell.gov.uk/info/200202/performance_and_spending/3233/government_procurement_cards,17-Apr-20,Regeneration & Growth,OFFICE DEPOT UK,Regeneration And The Economy,55.66,Printing Stationery&Gen Office,2020-21Apr_PC00103
Sandwell Metropolitan Borough Council,http://www.sandwell.gov.uk/info/200202/performance_and_spending/3233/government_procurement_cards,17-Apr-20,Corporate Management,POST OFFICE COUNTER,Corporate Management,11,"Postages, Carriage & Courier Services",2020-21Apr_PC00104
Sandwell Metropolitan Borough Council,http://www.sandwell.gov.uk/info/200202/performance_and_spending/3233/government_procurement_cards,17-Apr-20,Resources (Inc SIU),ACCA,Assistant Chief Executive (Excl SIU),28,Ind. Emp Exp-Staff Dev&Training,2020-21Apr_PC00105
Sandwell Metropolitan Borough Council,http://www.sandwell.gov.uk/info/200202/performance_and_spending/3233/government_procurement_cards,17-Apr-20,Resources (Inc SIU),AMZNMktplace,Assistant Chief Executive (Excl SIU),374.5,ICT,2020-21Apr_PC00106
Sandwell Metropolitan Borough Council,http://www.sandwell.gov.uk/info/200202/performance_and_spending/3233/government_procurement_cards,17-Apr-20,Resources (Inc SIU),DRI Nokia.com-phones,Assistant Chief Executive (Excl SIU),183.32,ICT,2020-21Apr_PC00107
Sandwell Metropolitan Borough Council,http://www.sandwell.gov.uk/info/200202/performance_and_spending/3233/government_procurement_cards,17-Apr-20,Resources (Inc SIU),AMZNMktplace,Assistant Chief Executive (Excl SIU),54.09,ICT,2020-21Apr_PC00108
Sandwell Metropolitan Borough Council,http://www.sandwell.gov.uk/info/200202/performance_and_spending/3233/government_procurement_cards,17-Apr-20,Housing & Communities,PAYPAL  TOOLSTATION,Neighbourhoods,4.13,Grounds Maint&Improvements,2020-21Apr_PC00109
Sandwell Metropolitan Borough Council,http://www.sandwell.gov.uk/info/200202/performance_and_spending/3233/government_procurement_cards,17-Apr-20,Childrens Services,WWW.AELP.ORG.UK,Childrens Services,49,Ind. Emp Exp-Staff Dev&Training,2020-21Apr_PC00110
Sandwell Metropolitan Borough Council,http://www.sandwell.gov.uk/info/200202/performance_and_spending/3233/government_procurement_cards,17-Apr-20,Adult Social Care Health and Wellbeing - Total,OFFICE DEPOT UK,Total Adult Social Care,17.99,Printing Stationery&Gen Office,2020-21Apr_PC00111
Sandwell Metropolitan Borough Council,http://www.sandwell.gov.uk/info/200202/performance_and_spending/3233/government_procurement_cards,20-Apr-20,Resources (Inc SIU),PARK INN BY RADISSON,Assistant Chief Executive (Excl SIU),148,Conference Expenses,2020-21Apr_PC00112
Sandwell Metropolitan Borough Council,http://www.sandwell.gov.uk/info/200202/performance_and_spending/3233/government_procurement_cards,20-Apr-20,Corporate Management,VALENCIA FINE FOODS LT,Corporate Management,5316.65,Catering Provisions,2020-21Apr_PC00113
Sandwell Metropolitan Borough Council,http://www.sandwell.gov.uk/info/200202/performance_and_spending/3233/government_procurement_cards,20-Apr-20,Resources (Inc SIU),AMZNMktplace,Assistant Chief Executive (Excl SIU),28.41,ICT,2020-21Apr_PC00114
Sandwell Metropolitan Borough Council,http://www.sandwell.gov.uk/info/200202/performance_and_spending/3233/government_procurement_cards,20-Apr-20,Resources (Inc SIU),AMZNMKTPLACE AMAZON.CO,Assistant Chief Executive (Excl SIU),16.07,Printing Stationery&Gen Office,2020-21Apr_PC00115
Sandwell Metropolitan Borough Council,http://www.sandwell.gov.uk/info/200202/performance_and_spending/3233/government_procurement_cards,20-Apr-20,Total Housing Revenue Account,BMS PRODUCTS,Total Housing Revenue Account,50.75,Advertising & Publicity,2020-21Apr_PC00116
Sandwell Metropolitan Borough Council,http://www.sandwell.gov.uk/info/200202/performance_and_spending/3233/government_procurement_cards,20-Apr-20,Total Housing Revenue Account,SIGN SUPPLIES,Total Housing Revenue Account,208.49,Advertising & Publicity,2020-21Apr_PC00117
Sandwell Metropolitan Borough Council,http://www.sandwell.gov.uk/info/200202/performance_and_spending/3233/government_procurement_cards,20-Apr-20,Total Housing Revenue Account,BESTWAY WHOLESALE,Total Housing Revenue Account,760.13,Materials & Consumables,2020-21Apr_PC00118
Sandwell Metropolitan Borough Council,http://www.sandwell.gov.uk/info/200202/performance_and_spending/3233/government_procurement_cards,20-Apr-20,Individual School Budgets With Inclusion,AMZNMktplace,Individual School Budgets With Inclusion,227.4,Materials & Consumables,2020-21Apr_PC00119
Sandwell Metropolitan Borough Council,http://www.sandwell.gov.uk/info/200202/performance_and_spending/3233/government_procurement_cards,20-Apr-20,Individual School Budgets With Inclusion,AMZNMktplace,Individual School Budgets With Inclusion,1236.05,Materials & Consumables,2020-21Apr_PC00120
Sandwell Metropolitan Borough Council,http://www.sandwell.gov.uk/info/200202/performance_and_spending/3233/government_procurement_cards,20-Apr-20,Individual School Budgets With Inclusion,AMZNMktplace,Individual School Budgets With Inclusion,478.8,Printing Stationery&Gen Office,2020-21Apr_PC00121
Sandwell Metropolitan Borough Council,http://www.sandwell.gov.uk/info/200202/performance_and_spending/3233/government_procurement_cards,20-Apr-20,Housing & Communities,PAYPAL  TOOLSTATION,Neighbourhoods,9.4,Grounds Maint&Improvements,2020-21Apr_PC00122
Sandwell Metropolitan Borough Council,http://www.sandwell.gov.uk/info/200202/performance_and_spending/3233/government_procurement_cards,20-Apr-20,Adult Social Care Health and Wellbeing - Total,PAYPAL  BARTO EBAY BAR,Total Adult Social Care,1.85,Printing Stationery&Gen Office,2020-21Apr_PC00123
Sandwell Metropolitan Borough Council,http://www.sandwell.gov.uk/info/200202/performance_and_spending/3233/government_procurement_cards,20-Apr-20,Childrens Services,AMZNMKTPLACE AMAZON.CO,Childrens Services,133.43,Materials & Consumables,2020-21Apr_PC00124
Sandwell Metropolitan Borough Council,http://www.sandwell.gov.uk/info/200202/performance_and_spending/3233/government_procurement_cards,21-Apr-20,Resources (Inc SIU),WWW.ICO.ORG.UK,Assistant Chief Executive (Excl SIU),2900,Subscriptions,2020-21Apr_PC00125
Sandwell Metropolitan Borough Council,http://www.sandwell.gov.uk/info/200202/performance_and_spending/3233/government_procurement_cards,21-Apr-20,Regeneration & Growth,AMZNMKTPLACE AMAZON.CO,Regeneration And The Economy,25.63,Printing Stationery&Gen Office,2020-21Apr_PC00126
Sandwell Metropolitan Borough Council,http://www.sandwell.gov.uk/info/200202/performance_and_spending/3233/government_procurement_cards,21-Apr-20,Resources (Inc SIU),THE RANGE,Assistant Chief Executive (Excl SIU),22.53,Cleaning,2020-21Apr_PC00127
Sandwell Metropolitan Borough Council,http://www.sandwell.gov.uk/info/200202/performance_and_spending/3233/government_procurement_cards,21-Apr-20,Total Housing Revenue Account,AMZNMktplace,Total Housing Revenue Account,35.4,Printing Stationery&Gen Office,2020-21Apr_PC00128
Sandwell Metropolitan Borough Council,http://www.sandwell.gov.uk/info/200202/performance_and_spending/3233/government_procurement_cards,21-Apr-20,Adult Social Care Health and Wellbeing - Total,SAINSBURYS SACAT 0541,Total Adult Social Care,11.67,Materials & Consumables,2020-21Apr_PC00129
Sandwell Metropolitan Borough Council,http://www.sandwell.gov.uk/info/200202/performance_and_spending/3233/government_procurement_cards,21-Apr-20,Adult Social Care Health and Wellbeing - Total,Amazon.co.uk 0T4ST7EE5,Total Adult Social Care,6.42,Protective Clothing&Uniforms,2020-21Apr_PC00130
Sandwell Metropolitan Borough Council,http://www.sandwell.gov.uk/info/200202/performance_and_spending/3233/government_procurement_cards,21-Apr-20,Adult Social Care Health and Wellbeing - Total,Amazon.co.uk 0J45E2MI5,Total Adult Social Care,14.99,Printing Stationery&Gen Office,2020-21Apr_PC00131
Sandwell Metropolitan Borough Council,http://www.sandwell.gov.uk/info/200202/performance_and_spending/3233/government_procurement_cards,21-Apr-20,Adult Social Care Health and Wellbeing - Total,Amazon.co.uk 3R23F3BQ5,Total Adult Social Care,16.98,Printing Stationery&Gen Office,2020-21Apr_PC00132
Sandwell Metropolitan Borough Council,http://www.sandwell.gov.uk/info/200202/performance_and_spending/3233/government_procurement_cards,21-Apr-20,Resources (Inc SIU),MATALAN.CO.UK,Assistant Chief Executive (Excl SIU),-23.75,Protective Clothing&Uniforms,2020-21Apr_PC00133
Sandwell Metropolitan Borough Council,http://www.sandwell.gov.uk/info/200202/performance_and_spending/3233/government_procurement_cards,21-Apr-20,Individual School Budgets With Inclusion,ARGOS LTD,Individual School Budgets With Inclusion,33.9,Telephones,2020-21Apr_PC00134
Sandwell Metropolitan Borough Council,http://www.sandwell.gov.uk/info/200202/performance_and_spending/3233/government_procurement_cards,21-Apr-20,Individual School Budgets With Inclusion,AMZNMktplace,Individual School Budgets With Inclusion,496.7,Printing Stationery&Gen Office,2020-21Apr_PC00135
Sandwell Metropolitan Borough Council,http://www.sandwell.gov.uk/info/200202/performance_and_spending/3233/government_procurement_cards,21-Apr-20,Childrens Services,WWW.AELP.ORG.UK,Childrens Services,49,Ind. Emp Exp-Staff Dev&Training,2020-21Apr_PC00136
Sandwell Metropolitan Borough Council,http://www.sandwell.gov.uk/info/200202/performance_and_spending/3233/government_procurement_cards,22-Apr-20,Regeneration & Growth,OFFICE DEPOT UK,Regeneration And The Economy,69.88,ICT,2020-21Apr_PC00137
Sandwell Metropolitan Borough Council,http://www.sandwell.gov.uk/info/200202/performance_and_spending/3233/government_procurement_cards,22-Apr-20,Resources (Inc SIU),EB  LICENSING MASTERCL,Assistant Chief Executive (Excl SIU),10,Ind. Emp Exp-Staff Dev&Training,2020-21Apr_PC00138
Sandwell Metropolitan Borough Council,http://www.sandwell.gov.uk/info/200202/performance_and_spending/3233/government_procurement_cards,22-Apr-20,Regeneration & Growth,123 REG LTD,Regeneration And The Economy,71.95,ICT,2020-21Apr_PC00139
Sandwell Metropolitan Borough Council,http://www.sandwell.gov.uk/info/200202/performance_and_spending/3233/government_procurement_cards,22-Apr-20,Adult Social Care Health and Wellbeing - Total,ARGOS LTD,Total Adult Social Care,19.96,Equipment & Furniture,2020-21Apr_PC00140
Sandwell Metropolitan Borough Council,http://www.sandwell.gov.uk/info/200202/performance_and_spending/3233/government_procurement_cards,22-Apr-20,Total Housing Revenue Account,BESTWAY WHOLESALE,Total Housing Revenue Account,120.68,Materials & Consumables,2020-21Apr_PC00141
Sandwell Metropolitan Borough Council,http://www.sandwell.gov.uk/info/200202/performance_and_spending/3233/government_procurement_cards,22-Apr-20,Individual School Budgets With Inclusion,AMZNMktplace,Individual School Budgets With Inclusion,14.17,Materials & Consumables,2020-21Apr_PC00142
Sandwell Metropolitan Borough Council,http://www.sandwell.gov.uk/info/200202/performance_and_spending/3233/government_procurement_cards,22-Apr-20,Housing & Communities,Trainline,Neighbourhoods,-26,Public Transport,2020-21Apr_PC00143
Sandwell Metropolitan Borough Council,http://www.sandwell.gov.uk/info/200202/performance_and_spending/3233/government_procurement_cards,22-Apr-20,Childrens Services,BOOKWHEN- SOFTWARE SUB,Childrens Services,190,Professional Services External,2020-21Apr_PC00144
Sandwell Metropolitan Borough Council,http://www.sandwell.gov.uk/info/200202/performance_and_spending/3233/government_procurement_cards,22-Apr-20,Childrens Services,AMZNMktplace,Childrens Services,23.95,ICT,2020-21Apr_PC00145
Sandwell Metropolitan Borough Council,http://www.sandwell.gov.uk/info/200202/performance_and_spending/3233/government_procurement_cards,23-Apr-20,Resources (Inc SIU),OFFICE DEPOT UK,Assistant Chief Executive (Excl SIU),39.04,Printing Stationery&Gen Office,2020-21Apr_PC00146
Sandwell Metropolitan Borough Council,http://www.sandwell.gov.uk/info/200202/performance_and_spending/3233/government_procurement_cards,23-Apr-20,Adult Social Care Health and Wellbeing - Total,CARESHOP,Total Adult Social Care,36.3,Protective Clothing&Uniforms,2020-21Apr_PC00147
Sandwell Metropolitan Borough Council,http://www.sandwell.gov.uk/info/200202/performance_and_spending/3233/government_procurement_cards,23-Apr-20,Adult Social Care Health and Wellbeing - Total,Amazon.co.uk 1Z5UV5275,Total Adult Social Care,74.98,ICT,2020-21Apr_PC00148
Sandwell Metropolitan Borough Council,http://www.sandwell.gov.uk/info/200202/performance_and_spending/3233/government_procurement_cards,23-Apr-20,Resources (Inc SIU),AMZNMktplace,Assistant Chief Executive (Excl SIU),59.66,ICT,2020-21Apr_PC00149
Sandwell Metropolitan Borough Council,http://www.sandwell.gov.uk/info/200202/performance_and_spending/3233/government_procurement_cards,23-Apr-20,Housing & Communities,INKREDIBLE,Neighbourhoods,129.94,Printing Stationery&Gen Office,2020-21Apr_PC00150
Sandwell Metropolitan Borough Council,http://www.sandwell.gov.uk/info/200202/performance_and_spending/3233/government_procurement_cards,23-Apr-20,Adult Social Care Health and Wellbeing - Total,AMZNMktplace,Total Adult Social Care,31.47,ICT,2020-21Apr_PC00151
Sandwell Metropolitan Borough Council,http://www.sandwell.gov.uk/info/200202/performance_and_spending/3233/government_procurement_cards,23-Apr-20,Resources (Inc SIU),OFFICE DEPOT UK,Assistant Chief Executive (Excl SIU),50.69,Printing Stationery&Gen Office,2020-21Apr_PC00152
Sandwell Metropolitan Borough Council,http://www.sandwell.gov.uk/info/200202/performance_and_spending/3233/government_procurement_cards,23-Apr-20,Total Housing Revenue Account,BESTWAY WHOLESALE,Total Housing Revenue Account,259.39,Materials & Consumables,2020-21Apr_PC00153
Sandwell Metropolitan Borough Council,http://www.sandwell.gov.uk/info/200202/performance_and_spending/3233/government_procurement_cards,23-Apr-20,Total Housing Revenue Account,BESTWAY WHOLESALE,Total Housing Revenue Account,2153.91,Materials & Consumables,2020-21Apr_PC00154
Sandwell Metropolitan Borough Council,http://www.sandwell.gov.uk/info/200202/performance_and_spending/3233/government_procurement_cards,23-Apr-20,Childrens Services,BUFFET EXPRESS,Childrens Services,122.75,Catering Provisions,2020-21Apr_PC00155
Sandwell Metropolitan Borough Council,http://www.sandwell.gov.uk/info/200202/performance_and_spending/3233/government_procurement_cards,23-Apr-20,Childrens Services,AMZNMktplace,Childrens Services,170.82,Printing Stationery&Gen Office,2020-21Apr_PC00156
Sandwell Metropolitan Borough Council,http://www.sandwell.gov.uk/info/200202/performance_and_spending/3233/government_procurement_cards,23-Apr-20,Adult Social Care Health and Wellbeing - Total,OFFICE DEPOT UK,Total Adult Social Care,39.04,Printing Stationery&Gen Office,2020-21Apr_PC00157
Sandwell Metropolitan Borough Council,http://www.sandwell.gov.uk/info/200202/performance_and_spending/3233/government_procurement_cards,24-Apr-20,Adult Social Care Health and Wellbeing - Total,Amazon.co.uk RB91E3Y55,Total Adult Social Care,351.35,Materials & Consumables,2020-21Apr_PC00158
Sandwell Metropolitan Borough Council,http://www.sandwell.gov.uk/info/200202/performance_and_spending/3233/government_procurement_cards,24-Apr-20,Adult Social Care Health and Wellbeing - Total,Amazon.co.uk DH3MM8K65,Total Adult Social Care,41.97,Materials & Consumables,2020-21Apr_PC00159
Sandwell Metropolitan Borough Council,http://www.sandwell.gov.uk/info/200202/performance_and_spending/3233/government_procurement_cards,24-Apr-20,Adult Social Care Health and Wellbeing - Total,OFFICE DEPOT UK,Total Adult Social Care,803.5,Equipment & Furniture,2020-21Apr_PC00160
Sandwell Metropolitan Borough Council,http://www.sandwell.gov.uk/info/200202/performance_and_spending/3233/government_procurement_cards,24-Apr-20,Adult Social Care Health and Wellbeing - Total,XMA LTD,Total Adult Social Care,83.51,ICT,2020-21Apr_PC00161
Sandwell Metropolitan Borough Council,http://www.sandwell.gov.uk/info/200202/performance_and_spending/3233/government_procurement_cards,24-Apr-20,Resources (Inc SIU),ARGOS LTD,Assistant Chief Executive (Excl SIU),211.62,Materials & Consumables,2020-21Apr_PC00162
Sandwell Metropolitan Borough Council,http://www.sandwell.gov.uk/info/200202/performance_and_spending/3233/government_procurement_cards,24-Apr-20,Regeneration & Growth,OFFICE DEPOT UK,Regeneration And The Economy,17.04,Equipment & Furniture,2020-21Apr_PC00163
Sandwell Metropolitan Borough Council,http://www.sandwell.gov.uk/info/200202/performance_and_spending/3233/government_procurement_cards,24-Apr-20,Childrens Services,Amazon.co.uk Y64FX5X65,Childrens Services,108.32,Telephones,2020-21Apr_PC00164
Sandwell Metropolitan Borough Council,http://www.sandwell.gov.uk/info/200202/performance_and_spending/3233/government_procurement_cards,24-Apr-20,Childrens Services,Amazon.co.uk 7902L9515,Childrens Services,104.16,Telephones,2020-21Apr_PC00165
Sandwell Metropolitan Borough Council,http://www.sandwell.gov.uk/info/200202/performance_and_spending/3233/government_procurement_cards,27-Apr-20,Adult Social Care Health and Wellbeing - Total,PAYPAL  SALES EBAY SAL,Public Health,-61.58,Protective Clothing&Uniforms,2020-21Apr_PC00166
Sandwell Metropolitan Borough Council,http://www.sandwell.gov.uk/info/200202/performance_and_spending/3233/government_procurement_cards,27-Apr-20,Resources (Inc SIU),OFFICE DEPOT UK,Assistant Chief Executive (Excl SIU),121.47,Printing Stationery&Gen Office,2020-21Apr_PC00167
Sandwell Metropolitan Borough Council,http://www.sandwell.gov.uk/info/200202/performance_and_spending/3233/government_procurement_cards,27-Apr-20,Childrens Services,ANIMOTO INC,Childrens Services,192,Subscriptions,2020-21Apr_PC00168
Sandwell Metropolitan Borough Council,http://www.sandwell.gov.uk/info/200202/performance_and_spending/3233/government_procurement_cards,27-Apr-20,Regeneration & Growth,SP   HANDSANITISER2YOU,Regeneration And The Economy,140.75,Protective Clothing&Uniforms,2020-21Apr_PC00169
Sandwell Metropolitan Borough Council,http://www.sandwell.gov.uk/info/200202/performance_and_spending/3233/government_procurement_cards,27-Apr-20,Regeneration & Growth,AMZNMktplace,Regeneration And The Economy,20.94,Protective Clothing&Uniforms,2020-21Apr_PC00170
Sandwell Metropolitan Borough Council,http://www.sandwell.gov.uk/info/200202/performance_and_spending/3233/government_procurement_cards,27-Apr-20,Total Housing Revenue Account,AMZNMktplace,Total Housing Revenue Account,66.66,Equipment & Furniture,2020-21Apr_PC00171
Sandwell Metropolitan Borough Council,http://www.sandwell.gov.uk/info/200202/performance_and_spending/3233/government_procurement_cards,27-Apr-20,Total Housing Revenue Account,CURRYS ONLINE,Total Housing Revenue Account,108.28,Telephones,2020-21Apr_PC00172
Sandwell Metropolitan Borough Council,http://www.sandwell.gov.uk/info/200202/performance_and_spending/3233/government_procurement_cards,27-Apr-20,Total Housing Revenue Account,CURRYS ONLINE,Total Housing Revenue Account,108.28,Telephones,2020-21Apr_PC00173
Sandwell Metropolitan Borough Council,http://www.sandwell.gov.uk/info/200202/performance_and_spending/3233/government_procurement_cards,27-Apr-20,Total Housing Revenue Account,AMZNMktplace,Total Housing Revenue Account,66.66,Equipment & Furniture,2020-21Apr_PC00174
Sandwell Metropolitan Borough Council,http://www.sandwell.gov.uk/info/200202/performance_and_spending/3233/government_procurement_cards,27-Apr-20,Adult Social Care Health and Wellbeing - Total,OFFICE DEPOT UK,Total Adult Social Care,42,Printing Stationery&Gen Office,2020-21Apr_PC00175
Sandwell Metropolitan Borough Council,http://www.sandwell.gov.uk/info/200202/performance_and_spending/3233/government_procurement_cards,28-Apr-20,Adult Social Care Health and Wellbeing - Total,Amazon Prime G69RQ66M5,Total Adult Social Care,7.99,Hygiene Services,2020-21Apr_PC00176
Sandwell Metropolitan Borough Council,http://www.sandwell.gov.uk/info/200202/performance_and_spending/3233/government_procurement_cards,28-Apr-20,Adult Social Care Health and Wellbeing - Total,PAYPAL  AVERNCLEAN EBA,Total Adult Social Care,119.99,Equipment & Furniture,2020-21Apr_PC00177
Sandwell Metropolitan Borough Council,http://www.sandwell.gov.uk/info/200202/performance_and_spending/3233/government_procurement_cards,28-Apr-20,Childrens Services,Dropbox,Childrens Services,36,ICT,2020-21Apr_PC00178
Sandwell Metropolitan Borough Council,http://www.sandwell.gov.uk/info/200202/performance_and_spending/3233/government_procurement_cards,28-Apr-20,Housing & Communities,AMARI BIRMINGHAM,Neighbourhoods,456,Fire Service Workshops,2020-21Apr_PC00179
Sandwell Metropolitan Borough Council,http://www.sandwell.gov.uk/info/200202/performance_and_spending/3233/government_procurement_cards,29-Apr-20,Regeneration & Growth,TVLICENSING.CO.UK,Regeneration And The Economy,157.5,Licences,2020-21Apr_PC00180
Sandwell Metropolitan Borough Council,http://www.sandwell.gov.uk/info/200202/performance_and_spending/3233/government_procurement_cards,29-Apr-20,Resources (Inc SIU),AMZNMKTPLACE AMAZON.CO,Assistant Chief Executive (Excl SIU),20.82,Printing Stationery&Gen Office,2020-21Apr_PC00181
Sandwell Metropolitan Borough Council,http://www.sandwell.gov.uk/info/200202/performance_and_spending/3233/government_procurement_cards,29-Apr-20,Adult Social Care Health and Wellbeing - Total,CARESHOP,Total Adult Social Care,40,Protective Clothing&Uniforms,2020-21Apr_PC00182
Sandwell Metropolitan Borough Council,http://www.sandwell.gov.uk/info/200202/performance_and_spending/3233/government_procurement_cards,29-Apr-20,Adult Social Care Health and Wellbeing - Total,CARESHOP,Total Adult Social Care,59.9,Protective Clothing&Uniforms,2020-21Apr_PC00183
Sandwell Metropolitan Borough Council,http://www.sandwell.gov.uk/info/200202/performance_and_spending/3233/government_procurement_cards,29-Apr-20,Housing & Communities,POST OFFICE COUNTER,Neighbourhoods,350,Subscriptions,2020-21Apr_PC00184
Sandwell Metropolitan Borough Council,http://www.sandwell.gov.uk/info/200202/performance_and_spending/3233/government_procurement_cards,29-Apr-20,Housing & Communities,POST OFFICE COUNTER,Neighbourhoods,175,Subscriptions,2020-21Apr_PC00185
Sandwell Metropolitan Borough Council,http://www.sandwell.gov.uk/info/200202/performance_and_spending/3233/government_procurement_cards,29-Apr-20,Adult Social Care Health and Wellbeing - Total,Mantel,Public Health,400,Equipment & Furniture,2020-21Apr_PC00186
Sandwell Metropolitan Borough Council,http://www.sandwell.gov.uk/info/200202/performance_and_spending/3233/government_procurement_cards,29-Apr-20,Adult Social Care Health and Wellbeing - Total,SP   WOOLLYHATSHOP,Public Health,349.87,Equipment & Furniture,2020-21Apr_PC00187
Sandwell Metropolitan Borough Council,http://www.sandwell.gov.uk/info/200202/performance_and_spending/3233/government_procurement_cards,29-Apr-20,Adult Social Care Health and Wellbeing - Total,AMZNMKTPLACE AMAZON.CO,Total Adult Social Care,112.25,Telephones,2020-21Apr_PC00188
Sandwell Metropolitan Borough Council,http://www.sandwell.gov.uk/info/200202/performance_and_spending/3233/government_procurement_cards,29-Apr-20,Resources (Inc SIU),ROSE HOUSE FUNERAL SUP,Assistant Chief Executive (Excl SIU),1670,Equipment & Furniture,2020-21Apr_PC00189
Sandwell Metropolitan Borough Council,http://www.sandwell.gov.uk/info/200202/performance_and_spending/3233/government_procurement_cards,29-Apr-20,Childrens Services,WWW.POSTOFFICESHOP.CO.,Childrens Services,76.8,Printing Stationery&Gen Office,2020-21Apr_PC00190
Sandwell Metropolitan Borough Council,http://www.sandwell.gov.uk/info/200202/performance_and_spending/3233/government_procurement_cards,30-Apr-20,Total Housing Revenue Account,WWW.KANE.CO.UK,Total Housing Revenue Account,811.15,Equipment & Furniture,2020-21Apr_PC00191
Sandwell Metropolitan Borough Council,http://www.sandwell.gov.uk/info/200202/performance_and_spending/3233/government_procurement_cards,30-Apr-20,Resources (Inc SIU),AMZNMktplace,Assistant Chief Executive (Excl SIU),37.49,Materials & Consumables,2020-21Apr_PC00192
Sandwell Metropolitan Borough Council,http://www.sandwell.gov.uk/info/200202/performance_and_spending/3233/government_procurement_cards,30-Apr-20,Resources (Inc SIU),Amazon.co.uk 7Y6OX61T5,Assistant Chief Executive (Excl SIU),34.16,Materials & Consumables,2020-21Apr_PC00193
Sandwell Metropolitan Borough Council,http://www.sandwell.gov.uk/info/200202/performance_and_spending/3233/government_procurement_cards,30-Apr-20,Resources (Inc SIU),VIKING UK,Assistant Chief Executive (Excl SIU),20.86,Materials & Consumables,2020-21Apr_PC00194
Sandwell Metropolitan Borough Council,http://www.sandwell.gov.uk/info/200202/performance_and_spending/3233/government_procurement_cards,30-Apr-20,Housing & Communities,POLYBAGS LTD,Neighbourhoods,205.55,Printing Stationery&Gen Office,2020-21Apr_PC00195
Sandwell Metropolitan Borough Council,http://www.sandwell.gov.uk/info/200202/performance_and_spending/3233/government_procurement_cards,30-Apr-20,Adult Social Care Health and Wellbeing - Total,Amazon.co.uk GT02L3DW5,Total Adult Social Care,10.72,Printing Stationery&Gen Office,2020-21Apr_PC00196
Sandwell Metropolitan Borough Council,http://www.sandwell.gov.uk/info/200202/performance_and_spending/3233/government_procurement_cards,30-Apr-20,Total Housing Revenue Account,BESTWAY WHOLESALE,Total Housing Revenue Account,5.53,Materials & Consumables,2020-21Apr_PC00197
Sandwell Metropolitan Borough Council,http://www.sandwell.gov.uk/info/200202/performance_and_spending/3233/government_procurement_cards,30-Apr-20,Total Housing Revenue Account,BESTWAY WHOLESALE,Total Housing Revenue Account,634.07,Materials & Consumables,2020-21Apr_PC00198
Sandwell Metropolitan Borough Council,http://www.sandwell.gov.uk/info/200202/performance_and_spending/3233/government_procurement_cards,30-Apr-20,Housing & Communities,WWW.ONLINEREALITY.CO.U,Neighbourhoods,384.8,Ind. Emp Exp-Emp. Welfare,2020-21Apr_PC00199
Sandwell Metropolitan Borough Council,http://www.sandwell.gov.uk/info/200202/performance_and_spending/3233/government_procurement_cards,30-Apr-20,Housing & Communities,VWG WOLVERHAMPTON TPS,Neighbourhoods,68.63,Fire Service Workshops,2020-21Apr_PC00200
Sandwell Metropolitan Borough Council,http://www.sandwell.gov.uk/info/200202/performance_and_spending/3233/government_procurement_cards,30-Apr-20,Childrens Services,AMZNMktplace,Childrens Services,116.66,Telephones,2020-21Apr_PC00201
Sandwell Metropolitan Borough Council,http://www.sandwell.gov.uk/info/200202/performance_and_spending/3233/government_procurement_cards,30-Apr-20,Childrens Services,WWW.POSTOFFICESHOP.CO.,Childrens Services,91.32,Printing Stationery&Gen Office,2020-21Apr_PC00202
Sandwell Metropolitan Borough Council,http://www.sandwell.gov.uk/info/200202/performance_and_spending/3233/government_procurement_cards,30-Apr-20,Total Housing Revenue Account,POST OFFICE COUNTER,Total Housing Revenue Account,190,"Postages, Carriage & Courier Services",2020-21Apr_PC00203
Sandwell Metropolitan Borough Council,http://www.sandwell.gov.uk/info/200202/performance_and_spending/3233/government_procurement_cards,01-May-20,Resources (Inc SIU),AMZNMKTPLACE AMAZON.CO,Assistant Chief Executive (Excl SIU),453.66,ICT,2020-21Apr_PC00204
Sandwell Metropolitan Borough Council,http://www.sandwell.gov.uk/info/200202/performance_and_spending/3233/government_procurement_cards,01-May-20,Resources (Inc SIU),AMZNMktplace,Assistant Chief Executive (Excl SIU),7.32,ICT,2020-21Apr_PC00205
Sandwell Metropolitan Borough Council,http://www.sandwell.gov.uk/info/200202/performance_and_spending/3233/government_procurement_cards,01-May-20,Resources (Inc SIU),CURRYS ONLINE,Assistant Chief Executive (Excl SIU),33.32,ICT,2020-21Apr_PC00206
Sandwell Metropolitan Borough Council,http://www.sandwell.gov.uk/info/200202/performance_and_spending/3233/government_procurement_cards,01-May-20,Resources (Inc SIU),CURRYS ONLINE,Assistant Chief Executive (Excl SIU),33.32,ICT,2020-21Apr_PC00207
Sandwell Metropolitan Borough Council,http://www.sandwell.gov.uk/info/200202/performance_and_spending/3233/government_procurement_cards,01-May-20,Resources (Inc SIU),CURRYS ONLINE,Assistant Chief Executive (Excl SIU),91.64,ICT,2020-21Apr_PC00208
Sandwell Metropolitan Borough Council,http://www.sandwell.gov.uk/info/200202/performance_and_spending/3233/government_procurement_cards,01-May-20,Resources (Inc SIU),CURRYS ONLINE,Assistant Chief Executive (Excl SIU),33.32,ICT,2020-21Apr_PC00209
Sandwell Metropolitan Borough Council,http://www.sandwell.gov.uk/info/200202/performance_and_spending/3233/government_procurement_cards,01-May-20,Resources (Inc SIU),Amazon.co.uk HM4CL0S15,Assistant Chief Executive (Excl SIU),58.31,ICT,2020-21Apr_PC00210
Sandwell Metropolitan Borough Council,http://www.sandwell.gov.uk/info/200202/performance_and_spending/3233/government_procurement_cards,01-May-20,Resources (Inc SIU),CIPD INTEGRA,Assistant Chief Executive (Excl SIU),162,Ind. Emp Exp-Staff Dev&Training,2020-21Apr_PC00211
Sandwell Metropolitan Borough Council,http://www.sandwell.gov.uk/info/200202/performance_and_spending/3233/government_procurement_cards,01-May-20,Regeneration & Growth,AMZNMktplace,Regeneration And The Economy,56.25,Ind. Emp Exp-Emp. Welfare,2020-21Apr_PC00212
Sandwell Metropolitan Borough Council,http://www.sandwell.gov.uk/info/200202/performance_and_spending/3233/government_procurement_cards,01-May-20,Regeneration & Growth,AMZNMktplace,Regeneration And The Economy,37.12,Ind. Emp Exp-Emp. Welfare,2020-21Apr_PC00213
Sandwell Metropolitan Borough Council,http://www.sandwell.gov.uk/info/200202/performance_and_spending/3233/government_procurement_cards,01-May-20,Regeneration & Growth,AMZNMKTPLACE AMAZON.CO,Regeneration And The Economy,4.99,Ind. Emp Exp-Emp. Welfare,2020-21Apr_PC00214
Sandwell Metropolitan Borough Council,http://www.sandwell.gov.uk/info/200202/performance_and_spending/3233/government_procurement_cards,01-May-20,Corporate Management,ASDA STORE,Corporate Management,255,Catering Provisions,2020-21Apr_PC00215
Sandwell Metropolitan Borough Council,http://www.sandwell.gov.uk/info/200202/performance_and_spending/3233/government_procurement_cards,01-May-20,Adult Social Care Health and Wellbeing - Total,CARESHOP,Total Adult Social Care,40,Protective Clothing&Uniforms,2020-21Apr_PC00216
Sandwell Metropolitan Borough Council,http://www.sandwell.gov.uk/info/200202/performance_and_spending/3233/government_procurement_cards,01-May-20,Adult Social Care Health and Wellbeing - Total,AMZNMktplace,Total Adult Social Care,66.65,ICT,2020-21Apr_PC00217
Sandwell Metropolitan Borough Council,http://www.sandwell.gov.uk/info/200202/performance_and_spending/3233/government_procurement_cards,01-May-20,Adult Social Care Health and Wellbeing - Total,AMZNMktplace,Total Adult Social Care,66.65,ICT,2020-21Apr_PC00218
Sandwell Metropolitan Borough Council,http://www.sandwell.gov.uk/info/200202/performance_and_spending/3233/government_procurement_cards,01-May-20,Childrens Services,GOVERNMENT EVENTS,Childrens Services,330.65,Professional Services External,2020-21Apr_PC00219
Sandwell Metropolitan Borough Council,http://www.sandwell.gov.uk/info/200202/performance_and_spending/3233/government_procurement_cards,01-May-20,Adult Social Care Health and Wellbeing - Total,AMZNMKTPLACE AMAZON.CO,Total Adult Social Care,11.98,Telephones,2020-21Apr_PC00220
Sandwell Metropolitan Borough Council,http://www.sandwell.gov.uk/info/200202/performance_and_spending/3233/government_procurement_cards,01-May-20,Adult Social Care Health and Wellbeing - Total,AMZNMktplace,Total Adult Social Care,279.98,Telephones,2020-21Apr_PC00221
Sandwell Metropolitan Borough Council,http://www.sandwell.gov.uk/info/200202/performance_and_spending/3233/government_procurement_cards,01-May-20,Adult Social Care Health and Wellbeing - Total,PAYPAL  VALUEPRODUC,Total Adult Social Care,393,Protective Clothing&Uniforms,2020-21Apr_PC00222
Sandwell Metropolitan Borough Council,http://www.sandwell.gov.uk/info/200202/performance_and_spending/3233/government_procurement_cards,01-May-20,Childrens Services,AMZNMKTPLACE AMAZON.CO,Childrens Services,116.66,Telephones,2020-21Apr_PC00223
Sandwell Metropolitan Borough Council,http://www.sandwell.gov.uk/info/200202/performance_and_spending/3233/government_procurement_cards,01-May-20,Childrens Services,AMZNMktplace,Childrens Services,116.66,Telephones,2020-21Apr_PC00224
Sandwell Metropolitan Borough Council,http://www.sandwell.gov.uk/info/200202/performance_and_spending/3233/government_procurement_cards,01-May-20,Childrens Services,AMZNMktplace,Childrens Services,124.99,Telephones,2020-21Apr_PC00225
Sandwell Metropolitan Borough Council,http://www.sandwell.gov.uk/info/200202/performance_and_spending/3233/government_procurement_cards,01-May-20,Childrens Services,AMZNMktplace,Childrens Services,124.99,Telephones,2020-21Apr_PC00226
Sandwell Metropolitan Borough Council,http://www.sandwell.gov.uk/info/200202/performance_and_spending/3233/government_procurement_cards,04-May-20,Resources (Inc SIU),AMZNMktplace,Assistant Chief Executive (Excl SIU),10.82,ICT,2020-21May_PC00001
Sandwell Metropolitan Borough Council,http://www.sandwell.gov.uk/info/200202/performance_and_spending/3233/government_procurement_cards,04-May-20,Resources (Inc SIU),Amazon.co.uk 8X5HU34N5,Assistant Chief Executive (Excl SIU),20.37,Printing Stationery&Gen Office,2020-21May_PC00002
Sandwell Metropolitan Borough Council,http://www.sandwell.gov.uk/info/200202/performance_and_spending/3233/government_procurement_cards,04-May-20,Regeneration & Growth,AMZNMKTPLACE AMAZON.CO,Regeneration And The Economy,6.66,Printing Stationery&Gen Office,2020-21May_PC00003
Sandwell Metropolitan Borough Council,http://www.sandwell.gov.uk/info/200202/performance_and_spending/3233/government_procurement_cards,04-May-20,Regeneration & Growth,OFFICE DEPOT UK,Regeneration And The Economy,6.34,Printing Stationery&Gen Office,2020-21May_PC00004
Sandwell Metropolitan Borough Council,http://www.sandwell.gov.uk/info/200202/performance_and_spending/3233/government_procurement_cards,04-May-20,Adult Social Care Health and Wellbeing - Total,AMZNMKTPLACE AMAZON.CO,Total Adult Social Care,29.98,Materials & Consumables,2020-21May_PC00005
Sandwell Metropolitan Borough Council,http://www.sandwell.gov.uk/info/200202/performance_and_spending/3233/government_procurement_cards,04-May-20,Total Housing Revenue Account,AMZNMKTPLACE AMAZON.CO,Total Housing Revenue Account,22.32,Materials & Consumables,2020-21May_PC00006
Sandwell Metropolitan Borough Council,http://www.sandwell.gov.uk/info/200202/performance_and_spending/3233/government_procurement_cards,04-May-20,Resources (Inc SIU),AMZNMKTPLACE AMAZON.CO,Assistant Chief Executive (Excl SIU),9.14,Printing Stationery&Gen Office,2020-21May_PC00007
Sandwell Metropolitan Borough Council,http://www.sandwell.gov.uk/info/200202/performance_and_spending/3233/government_procurement_cards,04-May-20,Resources (Inc SIU),Amazon.co.uk HX4FL4BS5,Assistant Chief Executive (Excl SIU),120.4,Telephones,2020-21May_PC00008
Sandwell Metropolitan Borough Council,http://www.sandwell.gov.uk/info/200202/performance_and_spending/3233/government_procurement_cards,04-May-20,Childrens Services,AMZNMktplace,Childrens Services,116.66,Telephones,2020-21May_PC00009
Sandwell Metropolitan Borough Council,http://www.sandwell.gov.uk/info/200202/performance_and_spending/3233/government_procurement_cards,04-May-20,Childrens Services,AMZNMktplace,Childrens Services,116.66,Telephones,2020-21May_PC00010
Sandwell Metropolitan Borough Council,http://www.sandwell.gov.uk/info/200202/performance_and_spending/3233/government_procurement_cards,04-May-20,Childrens Services,WWW.AELP.ORG.UK,Childrens Services,49,Ind. Emp Exp-Staff Dev&Training,2020-21May_PC00011
Sandwell Metropolitan Borough Council,http://www.sandwell.gov.uk/info/200202/performance_and_spending/3233/government_procurement_cards,04-May-20,Childrens Services,AMZNMktplace,Childrens Services,116.66,Telephones,2020-21May_PC00012
Sandwell Metropolitan Borough Council,http://www.sandwell.gov.uk/info/200202/performance_and_spending/3233/government_procurement_cards,04-May-20,Childrens Services,AMZNMktplace,Childrens Services,124.99,Telephones,2020-21May_PC00013
Sandwell Metropolitan Borough Council,http://www.sandwell.gov.uk/info/200202/performance_and_spending/3233/government_procurement_cards,04-May-20,Childrens Services,AMZNMKTPLACE AMAZON.CO,Childrens Services,116.66,Telephones,2020-21May_PC00014
Sandwell Metropolitan Borough Council,http://www.sandwell.gov.uk/info/200202/performance_and_spending/3233/government_procurement_cards,04-May-20,Childrens Services,AMZNMktplace,Childrens Services,116.66,Telephones,2020-21May_PC00015
Sandwell Metropolitan Borough Council,http://www.sandwell.gov.uk/info/200202/performance_and_spending/3233/government_procurement_cards,04-May-20,Childrens Services,AMZNMKTPLACE AMAZON.CO,Childrens Services,124.99,Telephones,2020-21May_PC00016
Sandwell Metropolitan Borough Council,http://www.sandwell.gov.uk/info/200202/performance_and_spending/3233/government_procurement_cards,04-May-20,Childrens Services,AMZNMktplace,Childrens Services,134.57,Employee Expenses,2020-21May_PC00017
Sandwell Metropolitan Borough Council,http://www.sandwell.gov.uk/info/200202/performance_and_spending/3233/government_procurement_cards,04-May-20,Adult Social Care Health and Wellbeing - Total,CARESHOP,Total Adult Social Care,40,Protective Clothing&Uniforms,2020-21May_PC00018
Sandwell Metropolitan Borough Council,http://www.sandwell.gov.uk/info/200202/performance_and_spending/3233/government_procurement_cards,04-May-20,Adult Social Care Health and Wellbeing - Total,AMZNMKTPLACE AMAZON.CO,Total Adult Social Care,52.08,Protective Clothing&Uniforms,2020-21May_PC00019
Sandwell Metropolitan Borough Council,http://www.sandwell.gov.uk/info/200202/performance_and_spending/3233/government_procurement_cards,04-May-20,Childrens Services,Norton  AP1310512101,Childrens Services,49.99,ICT,2020-21May_PC00020
Sandwell Metropolitan Borough Council,http://www.sandwell.gov.uk/info/200202/performance_and_spending/3233/government_procurement_cards,04-May-20,Individual School Budgets With Inclusion,AMZNMKTPLACE AMAZON.CO,Individual School Budgets With Inclusion,359.12,Printing Stationery&Gen Office,2020-21May_PC00021
Sandwell Metropolitan Borough Council,http://www.sandwell.gov.uk/info/200202/performance_and_spending/3233/government_procurement_cards,04-May-20,Individual School Budgets With Inclusion,AMZNMktplace,Individual School Budgets With Inclusion,95.6,Printing Stationery&Gen Office,2020-21May_PC00022
Sandwell Metropolitan Borough Council,http://www.sandwell.gov.uk/info/200202/performance_and_spending/3233/government_procurement_cards,04-May-20,Childrens Services,AMZNMKTPLACE AMAZON.CO,Childrens Services,88.97,Materials & Consumables,2020-21May_PC00023
Sandwell Metropolitan Borough Council,http://www.sandwell.gov.uk/info/200202/performance_and_spending/3233/government_procurement_cards,04-May-20,Housing & Communities,OFFICE DEPOT UK,Neighbourhoods,23.68,Printing Stationery&Gen Office,2020-21May_PC00024
Sandwell Metropolitan Borough Council,http://www.sandwell.gov.uk/info/200202/performance_and_spending/3233/government_procurement_cards,04-May-20,Childrens Services,FINDEL EDUCATION,Childrens Services,165.53,Materials & Consumables,2020-21May_PC00025
Sandwell Metropolitan Borough Council,http://www.sandwell.gov.uk/info/200202/performance_and_spending/3233/government_procurement_cards,04-May-20,Housing & Communities,AMZNMktplace,Neighbourhoods,35.82,Printing Stationery&Gen Office,2020-21May_PC00026
Sandwell Metropolitan Borough Council,http://www.sandwell.gov.uk/info/200202/performance_and_spending/3233/government_procurement_cards,04-May-20,Housing & Communities,Amazon.co.uk I22AM2TF5,Neighbourhoods,64.51,Printing Stationery&Gen Office,2020-21May_PC00027
Sandwell Metropolitan Borough Council,http://www.sandwell.gov.uk/info/200202/performance_and_spending/3233/government_procurement_cards,04-May-20,Adult Social Care Health and Wellbeing - Total,AMZNMKTPLACE AMAZON.CO,Total Adult Social Care,66.65,ICT,2020-21May_PC00028
Sandwell Metropolitan Borough Council,http://www.sandwell.gov.uk/info/200202/performance_and_spending/3233/government_procurement_cards,04-May-20,Adult Social Care Health and Wellbeing - Total,AMZNMKTPLACE AMAZON.CO,Total Adult Social Care,10.58,Telephones,2020-21May_PC00029
Sandwell Metropolitan Borough Council,http://www.sandwell.gov.uk/info/200202/performance_and_spending/3233/government_procurement_cards,04-May-20,Adult Social Care Health and Wellbeing - Total,AMZNMktplace,Total Adult Social Care,23.15,Cleaning,2020-21May_PC00030
Sandwell Metropolitan Borough Council,http://www.sandwell.gov.uk/info/200202/performance_and_spending/3233/government_procurement_cards,04-May-20,Adult Social Care Health and Wellbeing - Total,AMZNMKTPLACE AMAZON.CO,Total Adult Social Care,339.9,Materials & Consumables,2020-21May_PC00031
Sandwell Metropolitan Borough Council,http://www.sandwell.gov.uk/info/200202/performance_and_spending/3233/government_procurement_cards,04-May-20,Adult Social Care Health and Wellbeing - Total,AMZNMktplace,Total Adult Social Care,35,Protective Clothing&Uniforms,2020-21May_PC00032
Sandwell Metropolitan Borough Council,http://www.sandwell.gov.uk/info/200202/performance_and_spending/3233/government_procurement_cards,05-May-20,Individual School Budgets With Inclusion,AMZNMktplace,Individual School Budgets With Inclusion,405.83,Printing Stationery&Gen Office,2020-21May_PC00033
Sandwell Metropolitan Borough Council,http://www.sandwell.gov.uk/info/200202/performance_and_spending/3233/government_procurement_cards,05-May-20,Regeneration & Growth,GOVERNMENT EVENTS,Regeneration And The Economy,991.95,Ind. Emp Exp-Staff Dev&Training,2020-21May_PC00034
Sandwell Metropolitan Borough Council,http://www.sandwell.gov.uk/info/200202/performance_and_spending/3233/government_procurement_cards,05-May-20,Regeneration & Growth,AMZNMktplace,Regeneration And The Economy,4.66,Pest Control,2020-21May_PC00035
Sandwell Metropolitan Borough Council,http://www.sandwell.gov.uk/info/200202/performance_and_spending/3233/government_procurement_cards,05-May-20,Housing & Communities,POLYBAGS LTD,Neighbourhoods,201.53,Printing Stationery&Gen Office,2020-21May_PC00036
Sandwell Metropolitan Borough Council,http://www.sandwell.gov.uk/info/200202/performance_and_spending/3233/government_procurement_cards,06-May-20,Resources (Inc SIU),AMZNMktplace,Assistant Chief Executive (Excl SIU),15.53,Printing Stationery&Gen Office,2020-21May_PC00037
Sandwell Metropolitan Borough Council,http://www.sandwell.gov.uk/info/200202/performance_and_spending/3233/government_procurement_cards,06-May-20,Resources (Inc SIU),Amazon.co.uk PA1SZ1HX5,Assistant Chief Executive (Excl SIU),16.38,Printing Stationery&Gen Office,2020-21May_PC00038
Sandwell Metropolitan Borough Council,http://www.sandwell.gov.uk/info/200202/performance_and_spending/3233/government_procurement_cards,06-May-20,Regeneration & Growth,AMZNMktplace,Regeneration And The Economy,299.93,Ind. Emp Exp-Emp. Welfare,2020-21May_PC00039
Sandwell Metropolitan Borough Council,http://www.sandwell.gov.uk/info/200202/performance_and_spending/3233/government_procurement_cards,06-May-20,Total Housing Revenue Account,DHILLON CONVENIENCE LT,Total Housing Revenue Account,4,Materials & Consumables,2020-21May_PC00040
Sandwell Metropolitan Borough Council,http://www.sandwell.gov.uk/info/200202/performance_and_spending/3233/government_procurement_cards,06-May-20,Adult Social Care Health and Wellbeing - Total,ARGOS LTD,Total Adult Social Care,839.93,Telephones,2020-21May_PC00041
Sandwell Metropolitan Borough Council,http://www.sandwell.gov.uk/info/200202/performance_and_spending/3233/government_procurement_cards,06-May-20,Total Housing Revenue Account,Amazon.co.uk A09MH9XJ5,Total Housing Revenue Account,91.32,ICT,2020-21May_PC00042
Sandwell Metropolitan Borough Council,http://www.sandwell.gov.uk/info/200202/performance_and_spending/3233/government_procurement_cards,06-May-20,Adult Social Care Health and Wellbeing - Total,AMZNMktplace,Total Adult Social Care,26.97,Materials & Consumables,2020-21May_PC00043
Sandwell Metropolitan Borough Council,http://www.sandwell.gov.uk/info/200202/performance_and_spending/3233/government_procurement_cards,06-May-20,Adult Social Care Health and Wellbeing - Total,OFFICE DEPOT UK,Total Adult Social Care,35.98,Printing Stationery&Gen Office,2020-21May_PC00044
Sandwell Metropolitan Borough Council,http://www.sandwell.gov.uk/info/200202/performance_and_spending/3233/government_procurement_cards,06-May-20,Regeneration & Growth,THE COAL AUTHORITY,Regeneration And The Economy,555,Operational Services,2020-21May_PC00045
Sandwell Metropolitan Borough Council,http://www.sandwell.gov.uk/info/200202/performance_and_spending/3233/government_procurement_cards,07-May-20,Housing & Communities,Amazon.co.uk SG3FT0W35,Neighbourhoods,9.57,ICT,2020-21May_PC00046
Sandwell Metropolitan Borough Council,http://www.sandwell.gov.uk/info/200202/performance_and_spending/3233/government_procurement_cards,07-May-20,Housing & Communities,OFFICE DEPOT UK,Neighbourhoods,31.49,Ind. Emp Exp-Emp. Welfare,2020-21May_PC00047
Sandwell Metropolitan Borough Council,http://www.sandwell.gov.uk/info/200202/performance_and_spending/3233/government_procurement_cards,07-May-20,Housing & Communities,OFFICE DEPOT UK,Neighbourhoods,-31.8,Printing Stationery&Gen Office,2020-21May_PC00048
Sandwell Metropolitan Borough Council,http://www.sandwell.gov.uk/info/200202/performance_and_spending/3233/government_procurement_cards,07-May-20,Housing & Communities,AMZNMktplace,Neighbourhoods,79.13,ICT,2020-21May_PC00049
Sandwell Metropolitan Borough Council,http://www.sandwell.gov.uk/info/200202/performance_and_spending/3233/government_procurement_cards,07-May-20,Resources (Inc SIU),OFFICE DEPOT UK,Assistant Chief Executive (Excl SIU),63.87,Printing Stationery&Gen Office,2020-21May_PC00050
Sandwell Metropolitan Borough Council,http://www.sandwell.gov.uk/info/200202/performance_and_spending/3233/government_procurement_cards,07-May-20,Childrens Services,ANTHONY PHILLIPS,Childrens Services,201,Printing Stationery&Gen Office,2020-21May_PC00051
Sandwell Metropolitan Borough Council,http://www.sandwell.gov.uk/info/200202/performance_and_spending/3233/government_procurement_cards,07-May-20,Childrens Services,WWW.AELP.ORG.UK,Childrens Services,-49,Ind. Emp Exp-Staff Dev&Training,2020-21May_PC00052
Sandwell Metropolitan Borough Council,http://www.sandwell.gov.uk/info/200202/performance_and_spending/3233/government_procurement_cards,07-May-20,Housing & Communities,OFFICE DEPOT UK,Neighbourhoods,36,Printing Stationery&Gen Office,2020-21May_PC00053
Sandwell Metropolitan Borough Council,http://www.sandwell.gov.uk/info/200202/performance_and_spending/3233/government_procurement_cards,07-May-20,Adult Social Care Health and Wellbeing - Total,AMZNMktplace,Total Adult Social Care,49.98,Equipment & Furniture,2020-21May_PC00054
Sandwell Metropolitan Borough Council,http://www.sandwell.gov.uk/info/200202/performance_and_spending/3233/government_procurement_cards,08-May-20,Adult Social Care Health and Wellbeing - Total,OFFICE DEPOT UK,Total Adult Social Care,55.74,Printing Stationery&Gen Office,2020-21May_PC00055
Sandwell Metropolitan Borough Council,http://www.sandwell.gov.uk/info/200202/performance_and_spending/3233/government_procurement_cards,08-May-20,Housing & Communities,AMZNMktplace,Neighbourhoods,79.13,ICT,2020-21May_PC00056
Sandwell Metropolitan Borough Council,http://www.sandwell.gov.uk/info/200202/performance_and_spending/3233/government_procurement_cards,08-May-20,Housing & Communities,AMZNMktplace,Neighbourhoods,79.13,ICT,2020-21May_PC00057
Sandwell Metropolitan Borough Council,http://www.sandwell.gov.uk/info/200202/performance_and_spending/3233/government_procurement_cards,08-May-20,Housing & Communities,AMZNMKTPLACE AMAZON.CO,Neighbourhoods,79.13,ICT,2020-21May_PC00058
Sandwell Metropolitan Borough Council,http://www.sandwell.gov.uk/info/200202/performance_and_spending/3233/government_procurement_cards,08-May-20,Childrens Services,OFFICE DEPOT UK,Childrens Services,29.18,Printing Stationery&Gen Office,2020-21May_PC00059
Sandwell Metropolitan Borough Council,http://www.sandwell.gov.uk/info/200202/performance_and_spending/3233/government_procurement_cards,11-May-20,Adult Social Care Health and Wellbeing - Total,Premier Farnell,Public Health,14.39,Printing Stationery&Gen Office,2020-21May_PC00060
Sandwell Metropolitan Borough Council,http://www.sandwell.gov.uk/info/200202/performance_and_spending/3233/government_procurement_cards,11-May-20,Housing & Communities,FACEBK DXCT2TJB32,Neighbourhoods,6.67,Ind. Emp Exp-Advertising,2020-21May_PC00061
Sandwell Metropolitan Borough Council,http://www.sandwell.gov.uk/info/200202/performance_and_spending/3233/government_procurement_cards,11-May-20,Childrens Services,AMZNMktplace,Childrens Services,137.48,Telephones,2020-21May_PC00062
Sandwell Metropolitan Borough Council,http://www.sandwell.gov.uk/info/200202/performance_and_spending/3233/government_procurement_cards,12-May-20,Regeneration & Growth,AMZNMKTPLACE AMAZON.CO,Regeneration And The Economy,-1.49,Printing Stationery&Gen Office,2020-21May_PC00063
Sandwell Metropolitan Borough Council,http://www.sandwell.gov.uk/info/200202/performance_and_spending/3233/government_procurement_cards,12-May-20,Regeneration & Growth,AMZNMKTPLACE AMAZON.CO,Regeneration And The Economy,203.32,ICT,2020-21May_PC00064
Sandwell Metropolitan Borough Council,http://www.sandwell.gov.uk/info/200202/performance_and_spending/3233/government_procurement_cards,12-May-20,Corporate Management,MFG - GOSPEL OAK,Corporate Management,12.04,Catering Provisions,2020-21May_PC00065
Sandwell Metropolitan Borough Council,http://www.sandwell.gov.uk/info/200202/performance_and_spending/3233/government_procurement_cards,12-May-20,Housing & Communities,AMZNMktplace,Neighbourhoods,14.57,Equipment & Furniture,2020-21May_PC00066
Sandwell Metropolitan Borough Council,http://www.sandwell.gov.uk/info/200202/performance_and_spending/3233/government_procurement_cards,12-May-20,Adult Social Care Health and Wellbeing - Total,OFFICE DEPOT UK,Total Adult Social Care,-60.95,Printing Stationery&Gen Office,2020-21May_PC00067
Sandwell Metropolitan Borough Council,http://www.sandwell.gov.uk/info/200202/performance_and_spending/3233/government_procurement_cards,12-May-20,Adult Social Care Health and Wellbeing - Total,OFFICE DEPOT UK,Public Health,-60.95,Printing Stationery&Gen Office,2020-21May_PC00068
Sandwell Metropolitan Borough Council,http://www.sandwell.gov.uk/info/200202/performance_and_spending/3233/government_procurement_cards,12-May-20,Adult Social Care Health and Wellbeing - Total,OFFICE DEPOT UK,Public Health,-60.95,Printing Stationery&Gen Office,2020-21May_PC00069
Sandwell Metropolitan Borough Council,http://www.sandwell.gov.uk/info/200202/performance_and_spending/3233/government_procurement_cards,12-May-20,Adult Social Care Health and Wellbeing - Total,OFFICE DEPOT UK,Total Adult Social Care,-18.65,Printing Stationery&Gen Office,2020-21May_PC00070
Sandwell Metropolitan Borough Council,http://www.sandwell.gov.uk/info/200202/performance_and_spending/3233/government_procurement_cards,12-May-20,Adult Social Care Health and Wellbeing - Total,AMZNMKTPLACE AMAZON.CO,Total Adult Social Care,28,Equipment & Furniture,2020-21May_PC00071
Sandwell Metropolitan Borough Council,http://www.sandwell.gov.uk/info/200202/performance_and_spending/3233/government_procurement_cards,12-May-20,Adult Social Care Health and Wellbeing - Total,ROYAL MAIL ONLINE SHOP,Total Adult Social Care,57.5,"Postages, Carriage & Courier Services",2020-21May_PC00072
Sandwell Metropolitan Borough Council,http://www.sandwell.gov.uk/info/200202/performance_and_spending/3233/government_procurement_cards,12-May-20,Adult Social Care Health and Wellbeing - Total,ROYAL MAIL ONLINE SHOP,Total Adult Social Care,19,"Postages, Carriage & Courier Services",2020-21May_PC00073
Sandwell Metropolitan Borough Council,http://www.sandwell.gov.uk/info/200202/performance_and_spending/3233/government_procurement_cards,12-May-20,Childrens Services,WICKES BUILDING,Childrens Services,43.29,Grounds Maint&Improvements,2020-21May_PC00074
Sandwell Metropolitan Borough Council,http://www.sandwell.gov.uk/info/200202/performance_and_spending/3233/government_procurement_cards,12-May-20,Total Housing Revenue Account,CAPITA GAS,Total Housing Revenue Account,10,Professional Services External,2020-21May_PC00075
Sandwell Metropolitan Borough Council,http://www.sandwell.gov.uk/info/200202/performance_and_spending/3233/government_procurement_cards,13-May-20,Resources (Inc SIU),AMZNMktplace,Assistant Chief Executive (Excl SIU),8.32,Printing Stationery&Gen Office,2020-21May_PC00076
Sandwell Metropolitan Borough Council,http://www.sandwell.gov.uk/info/200202/performance_and_spending/3233/government_procurement_cards,13-May-20,Total Housing Revenue Account,PARTICIPANT UK LTD,Total Housing Revenue Account,175,Conference Expenses,2020-21May_PC00077
Sandwell Metropolitan Borough Council,http://www.sandwell.gov.uk/info/200202/performance_and_spending/3233/government_procurement_cards,13-May-20,Total Housing Revenue Account,BESTWAY WHOLESALE,Total Housing Revenue Account,58.24,Materials & Consumables,2020-21May_PC00078
Sandwell Metropolitan Borough Council,http://www.sandwell.gov.uk/info/200202/performance_and_spending/3233/government_procurement_cards,13-May-20,Adult Social Care Health and Wellbeing - Total,AMZNMktplace,Total Adult Social Care,40.8,Materials & Consumables,2020-21May_PC00079
Sandwell Metropolitan Borough Council,http://www.sandwell.gov.uk/info/200202/performance_and_spending/3233/government_procurement_cards,13-May-20,Childrens Services,AMZNMKTPLACE AMAZON.CO,Childrens Services,138.74,Telephones,2020-21May_PC00080
Sandwell Metropolitan Borough Council,http://www.sandwell.gov.uk/info/200202/performance_and_spending/3233/government_procurement_cards,13-May-20,Childrens Services,CARTRIDGEPEOPLE.COM,Childrens Services,17.27,ICT,2020-21May_PC00081
Sandwell Metropolitan Borough Council,http://www.sandwell.gov.uk/info/200202/performance_and_spending/3233/government_procurement_cards,13-May-20,Childrens Services,WWW.AELP.ORG.UK,Childrens Services,49,Ind. Emp Exp-Staff Dev&Training,2020-21May_PC00082
Sandwell Metropolitan Borough Council,http://www.sandwell.gov.uk/info/200202/performance_and_spending/3233/government_procurement_cards,14-May-20,Total Housing Revenue Account,PARTICIPANT UK LTD,Total Housing Revenue Account,350,Conference Expenses,2020-21May_PC00083
Sandwell Metropolitan Borough Council,http://www.sandwell.gov.uk/info/200202/performance_and_spending/3233/government_procurement_cards,14-May-20,Total Housing Revenue Account,BESTWAY WHOLESALE,Total Housing Revenue Account,810.54,Materials & Consumables,2020-21May_PC00084
Sandwell Metropolitan Borough Council,http://www.sandwell.gov.uk/info/200202/performance_and_spending/3233/government_procurement_cards,14-May-20,Housing & Communities,POLYBAGS LTD,Neighbourhoods,229.39,Printing Stationery&Gen Office,2020-21May_PC00085
Sandwell Metropolitan Borough Council,http://www.sandwell.gov.uk/info/200202/performance_and_spending/3233/government_procurement_cards,14-May-20,Adult Social Care Health and Wellbeing - Total,CARESHOP,Total Adult Social Care,40,Protective Clothing&Uniforms,2020-21May_PC00086
Sandwell Metropolitan Borough Council,http://www.sandwell.gov.uk/info/200202/performance_and_spending/3233/government_procurement_cards,14-May-20,Total Housing Revenue Account,HOWDENS - DUDLEY DE11,Total Housing Revenue Account,118,Materials & Consumables,2020-21May_PC00087
Sandwell Metropolitan Borough Council,http://www.sandwell.gov.uk/info/200202/performance_and_spending/3233/government_procurement_cards,14-May-20,Childrens Services,VODAFONE LTD,Childrens Services,17.63,ICT,2020-21May_PC00088
Sandwell Metropolitan Borough Council,http://www.sandwell.gov.uk/info/200202/performance_and_spending/3233/government_procurement_cards,14-May-20,Childrens Services,AMZNMKTPLACE AMAZON.CO,Childrens Services,138.71,Telephones,2020-21May_PC00089
Sandwell Metropolitan Borough Council,http://www.sandwell.gov.uk/info/200202/performance_and_spending/3233/government_procurement_cards,14-May-20,Childrens Services,AMZNMktplace,Childrens Services,138.71,Telephones,2020-21May_PC00090
Sandwell Metropolitan Borough Council,http://www.sandwell.gov.uk/info/200202/performance_and_spending/3233/government_procurement_cards,14-May-20,Total Housing Revenue Account,Amazon.co.uk XY6VS9B95,Total Housing Revenue Account,16.11,Equipment & Furniture,2020-21May_PC00091
Sandwell Metropolitan Borough Council,http://www.sandwell.gov.uk/info/200202/performance_and_spending/3233/government_procurement_cards,14-May-20,Total Housing Revenue Account,OFFICE DEPOT UK,Total Housing Revenue Account,60.88,Printing Stationery&Gen Office,2020-21May_PC00092
Sandwell Metropolitan Borough Council,http://www.sandwell.gov.uk/info/200202/performance_and_spending/3233/government_procurement_cards,15-May-20,Childrens Services,XMA LTD,Childrens Services,139.53,Telephones,2020-21May_PC00093
Sandwell Metropolitan Borough Council,http://www.sandwell.gov.uk/info/200202/performance_and_spending/3233/government_procurement_cards,15-May-20,Adult Social Care Health and Wellbeing - Total,AMZNMktplace,Total Adult Social Care,134.85,Materials & Consumables,2020-21May_PC00094
Sandwell Metropolitan Borough Council,http://www.sandwell.gov.uk/info/200202/performance_and_spending/3233/government_procurement_cards,15-May-20,Adult Social Care Health and Wellbeing - Total,TECHNOLEC,Total Adult Social Care,2182.27,Telephones,2020-21May_PC00095
Sandwell Metropolitan Borough Council,http://www.sandwell.gov.uk/info/200202/performance_and_spending/3233/government_procurement_cards,15-May-20,Adult Social Care Health and Wellbeing - Total,PAYPAL  SCREWFIX,Total Adult Social Care,10.82,Materials & Consumables,2020-21May_PC00096
Sandwell Metropolitan Borough Council,http://www.sandwell.gov.uk/info/200202/performance_and_spending/3233/government_procurement_cards,15-May-20,Adult Social Care Health and Wellbeing - Total,Amazon.co.uk 6F3UV1LW5,Total Adult Social Care,10.6,Printing Stationery&Gen Office,2020-21May_PC00097
Sandwell Metropolitan Borough Council,http://www.sandwell.gov.uk/info/200202/performance_and_spending/3233/government_procurement_cards,15-May-20,Total Housing Revenue Account,AMZNMktplace,Total Housing Revenue Account,14.98,Equipment & Furniture,2020-21May_PC00098
Sandwell Metropolitan Borough Council,http://www.sandwell.gov.uk/info/200202/performance_and_spending/3233/government_procurement_cards,18-May-20,Resources (Inc SIU),CURRYS ONLINE,Assistant Chief Executive (Excl SIU),-33.32,ICT,2020-21May_PC00099
Sandwell Metropolitan Borough Council,http://www.sandwell.gov.uk/info/200202/performance_and_spending/3233/government_procurement_cards,18-May-20,Adult Social Care Health and Wellbeing - Total,AMZNMktplace,Total Adult Social Care,29.53,Materials & Consumables,2020-21May_PC00100
Sandwell Metropolitan Borough Council,http://www.sandwell.gov.uk/info/200202/performance_and_spending/3233/government_procurement_cards,18-May-20,Total Housing Revenue Account,Amazon.co.uk CB6E83WF5,Total Housing Revenue Account,73.65,Materials & Consumables,2020-21May_PC00101
Sandwell Metropolitan Borough Council,http://www.sandwell.gov.uk/info/200202/performance_and_spending/3233/government_procurement_cards,18-May-20,Total Housing Revenue Account,Amazon.co.uk DF7FG15S5,Total Housing Revenue Account,15.41,Materials & Consumables,2020-21May_PC00102
Sandwell Metropolitan Borough Council,http://www.sandwell.gov.uk/info/200202/performance_and_spending/3233/government_procurement_cards,18-May-20,Adult Social Care Health and Wellbeing - Total,TECHNOLEC,Total Adult Social Care,-2182.27,Telephones,2020-21May_PC00103
Sandwell Metropolitan Borough Council,http://www.sandwell.gov.uk/info/200202/performance_and_spending/3233/government_procurement_cards,18-May-20,Housing & Communities,OFFICE DEPOT UK,Neighbourhoods,38.08,Materials & Consumables,2020-21May_PC00104
Sandwell Metropolitan Borough Council,http://www.sandwell.gov.uk/info/200202/performance_and_spending/3233/government_procurement_cards,18-May-20,Resources (Inc SIU),OFFICE DEPOT UK,Assistant Chief Executive (Excl SIU),49.85,Printing Stationery&Gen Office,2020-21May_PC00105
Sandwell Metropolitan Borough Council,http://www.sandwell.gov.uk/info/200202/performance_and_spending/3233/government_procurement_cards,18-May-20,Resources (Inc SIU),OFFICE DEPOT UK,Assistant Chief Executive (Excl SIU),168.25,Printing Stationery&Gen Office,2020-21May_PC00106
Sandwell Metropolitan Borough Council,http://www.sandwell.gov.uk/info/200202/performance_and_spending/3233/government_procurement_cards,18-May-20,Housing Revenue Account Capital,Amazon.co.uk GF9L97QH5,Housing Revenue Account Capital,103.73,Telephones,2020-21May_PC00107
Sandwell Metropolitan Borough Council,http://www.sandwell.gov.uk/info/200202/performance_and_spending/3233/government_procurement_cards,18-May-20,Adult Social Care Health and Wellbeing - Total,AMZNMktplace,Total Adult Social Care,20.32,Equipment & Furniture,2020-21May_PC00108
Sandwell Metropolitan Borough Council,http://www.sandwell.gov.uk/info/200202/performance_and_spending/3233/government_procurement_cards,18-May-20,Regeneration & Growth,WWW.NECCONTRACT.COM,Regeneration And The Economy,-1789,Ind. Emp Exp-Staff Dev&Training,2020-21May_PC00109
Sandwell Metropolitan Borough Council,http://www.sandwell.gov.uk/info/200202/performance_and_spending/3233/government_procurement_cards,18-May-20,Individual School Budgets With Inclusion,Amazon.co.uk Y47OA4NH5,Individual School Budgets With Inclusion,65.03,Materials & Consumables,2020-21May_PC00110
Sandwell Metropolitan Borough Council,http://www.sandwell.gov.uk/info/200202/performance_and_spending/3233/government_procurement_cards,18-May-20,Regeneration & Growth,Amazon.co.uk W03NK6YX5,Regeneration And The Economy,123.47,Fixtures & Fittings,2020-21May_PC00111
Sandwell Metropolitan Borough Council,http://www.sandwell.gov.uk/info/200202/performance_and_spending/3233/government_procurement_cards,18-May-20,Regeneration & Growth,Amazon.co.uk EG7QN90Y5,Regeneration And The Economy,123.47,Fixtures & Fittings,2020-21May_PC00112
Sandwell Metropolitan Borough Council,http://www.sandwell.gov.uk/info/200202/performance_and_spending/3233/government_procurement_cards,18-May-20,Housing & Communities,OFFICE DEPOT UK,Neighbourhoods,109,Equipment & Furniture,2020-21May_PC00113
Sandwell Metropolitan Borough Council,http://www.sandwell.gov.uk/info/200202/performance_and_spending/3233/government_procurement_cards,18-May-20,Housing & Communities,EXPRESS POLYTHENE LTD,Neighbourhoods,60.6,Fire Service Workshops,2020-21May_PC00114
Sandwell Metropolitan Borough Council,http://www.sandwell.gov.uk/info/200202/performance_and_spending/3233/government_procurement_cards,18-May-20,Childrens Services,AMZNMktplace,Childrens Services,19.57,Materials & Consumables,2020-21May_PC00115
Sandwell Metropolitan Borough Council,http://www.sandwell.gov.uk/info/200202/performance_and_spending/3233/government_procurement_cards,18-May-20,Childrens Services,AMZNMktplace,Childrens Services,31.28,Materials & Consumables,2020-21May_PC00116
Sandwell Metropolitan Borough Council,http://www.sandwell.gov.uk/info/200202/performance_and_spending/3233/government_procurement_cards,19-May-20,Adult Social Care Health and Wellbeing - Total,AMZNMKTPLACE AMAZON.CO,Total Adult Social Care,145.82,Telephones,2020-21May_PC00117
Sandwell Metropolitan Borough Council,http://www.sandwell.gov.uk/info/200202/performance_and_spending/3233/government_procurement_cards,19-May-20,Total Housing Revenue Account,Serenata Flowers,Total Housing Revenue Account,33.32,Ind. Emp Exp-Emp. Welfare,2020-21May_PC00118
Sandwell Metropolitan Borough Council,http://www.sandwell.gov.uk/info/200202/performance_and_spending/3233/government_procurement_cards,19-May-20,Total Housing Revenue Account,AMZNMktplace,Total Housing Revenue Account,29.12,Protective Clothing&Uniforms,2020-21May_PC00119
Sandwell Metropolitan Borough Council,http://www.sandwell.gov.uk/info/200202/performance_and_spending/3233/government_procurement_cards,19-May-20,Adult Social Care Health and Wellbeing - Total,1 AND 1 IONOS LTD,Public Health,14,Advertising & Publicity,2020-21May_PC00120
Sandwell Metropolitan Borough Council,http://www.sandwell.gov.uk/info/200202/performance_and_spending/3233/government_procurement_cards,19-May-20,Adult Social Care Health and Wellbeing - Total,OFFICE DEPOT UK,Total Adult Social Care,60.03,Printing Stationery&Gen Office,2020-21May_PC00121
Sandwell Metropolitan Borough Council,http://www.sandwell.gov.uk/info/200202/performance_and_spending/3233/government_procurement_cards,19-May-20,Adult Social Care Health and Wellbeing - Total,Amazon.co.uk 1Y3X99445,Total Adult Social Care,33.26,Equipment & Furniture,2020-21May_PC00122
Sandwell Metropolitan Borough Council,http://www.sandwell.gov.uk/info/200202/performance_and_spending/3233/government_procurement_cards,19-May-20,Childrens Services,WILKO RETAIL LIMITED,Childrens Services,43.75,Materials & Consumables,2020-21May_PC00123
Sandwell Metropolitan Borough Council,http://www.sandwell.gov.uk/info/200202/performance_and_spending/3233/government_procurement_cards,19-May-20,Childrens Services,WWW.LYNVALE.CO.UK,Childrens Services,69.9,Materials & Consumables,2020-21May_PC00124
Sandwell Metropolitan Borough Council,http://www.sandwell.gov.uk/info/200202/performance_and_spending/3233/government_procurement_cards,19-May-20,Childrens Services,JAX FIRST AID,Childrens Services,38.27,Protective Clothing&Uniforms,2020-21May_PC00125
Sandwell Metropolitan Borough Council,http://www.sandwell.gov.uk/info/200202/performance_and_spending/3233/government_procurement_cards,19-May-20,Childrens Services,SAFELINCS,Childrens Services,18.88,Protective Clothing&Uniforms,2020-21May_PC00126
Sandwell Metropolitan Borough Council,http://www.sandwell.gov.uk/info/200202/performance_and_spending/3233/government_procurement_cards,19-May-20,Housing & Communities,DRIVESHAFT UK,Neighbourhoods,240,Fire Service Workshops,2020-21May_PC00127
Sandwell Metropolitan Borough Council,http://www.sandwell.gov.uk/info/200202/performance_and_spending/3233/government_procurement_cards,19-May-20,Regeneration & Growth,PAYPAL  ROYAL MAIL,Regeneration And The Economy,8.8,"Postages, Carriage & Courier Services",2020-21May_PC00128
Sandwell Metropolitan Borough Council,http://www.sandwell.gov.uk/info/200202/performance_and_spending/3233/government_procurement_cards,20-May-20,Regeneration & Growth,OFFICE DEPOT UK,Regeneration And The Economy,19.22,ICT,2020-21May_PC00129
Sandwell Metropolitan Borough Council,http://www.sandwell.gov.uk/info/200202/performance_and_spending/3233/government_procurement_cards,20-May-20,Total Housing Revenue Account,C I H,Total Housing Revenue Account,225,Conference Expenses,2020-21May_PC00130
Sandwell Metropolitan Borough Council,http://www.sandwell.gov.uk/info/200202/performance_and_spending/3233/government_procurement_cards,20-May-20,Adult Social Care Health and Wellbeing - Total,OFFICE DEPOT UK,Total Adult Social Care,63.57,Printing Stationery&Gen Office,2020-21May_PC00131
Sandwell Metropolitan Borough Council,http://www.sandwell.gov.uk/info/200202/performance_and_spending/3233/government_procurement_cards,20-May-20,Adult Social Care Health and Wellbeing - Total,Amazon.co.uk YZ3AQ46U5,Total Adult Social Care,35,Equipment & Furniture,2020-21May_PC00132
Sandwell Metropolitan Borough Council,http://www.sandwell.gov.uk/info/200202/performance_and_spending/3233/government_procurement_cards,20-May-20,Adult Social Care Health and Wellbeing - Total,Amazon.co.uk VM6TI5NA5,Total Adult Social Care,15.08,Equipment & Furniture,2020-21May_PC00133
Sandwell Metropolitan Borough Council,http://www.sandwell.gov.uk/info/200202/performance_and_spending/3233/government_procurement_cards,20-May-20,Housing & Communities,Amazon.co.uk XB8FK4715,Neighbourhoods,13.28,Printing Stationery&Gen Office,2020-21May_PC00134
Sandwell Metropolitan Borough Council,http://www.sandwell.gov.uk/info/200202/performance_and_spending/3233/government_procurement_cards,20-May-20,Housing & Communities,ASDA STORES,Neighbourhoods,15.6,"Postages, Carriage & Courier Services",2020-21May_PC00135
Sandwell Metropolitan Borough Council,http://www.sandwell.gov.uk/info/200202/performance_and_spending/3233/government_procurement_cards,20-May-20,Housing & Communities,OFFICE DEPOT UK,Neighbourhoods,88.5,Printing Stationery&Gen Office,2020-21May_PC00136
Sandwell Metropolitan Borough Council,http://www.sandwell.gov.uk/info/200202/performance_and_spending/3233/government_procurement_cards,20-May-20,Housing & Communities,TOYOTA BROMSGROVE,Neighbourhoods,41.36,Fire Service Workshops,2020-21May_PC00137
Sandwell Metropolitan Borough Council,http://www.sandwell.gov.uk/info/200202/performance_and_spending/3233/government_procurement_cards,21-May-20,Total Housing Revenue Account,ASDA PETROL/UPT,Total Housing Revenue Account,70.87,Fuel,2020-21May_PC00138
Sandwell Metropolitan Borough Council,http://www.sandwell.gov.uk/info/200202/performance_and_spending/3233/government_procurement_cards,21-May-20,Total Housing Revenue Account,TIPTON LOW FUEL PRICES,Total Housing Revenue Account,12.47,Materials & Consumables,2020-21May_PC00139
Sandwell Metropolitan Borough Council,http://www.sandwell.gov.uk/info/200202/performance_and_spending/3233/government_procurement_cards,21-May-20,Housing & Communities,POLYBAGS LTD,Neighbourhoods,234.38,Equipment & Furniture,2020-21May_PC00140
Sandwell Metropolitan Borough Council,http://www.sandwell.gov.uk/info/200202/performance_and_spending/3233/government_procurement_cards,21-May-20,Total Housing Revenue Account,Staffordshire Builders,Total Housing Revenue Account,73.62,Materials & Consumables,2020-21May_PC00141
Sandwell Metropolitan Borough Council,http://www.sandwell.gov.uk/info/200202/performance_and_spending/3233/government_procurement_cards,21-May-20,Childrens Services,thetrainline.com,Childrens Services,-86,Public Transport,2020-21May_PC00142
Sandwell Metropolitan Borough Council,http://www.sandwell.gov.uk/info/200202/performance_and_spending/3233/government_procurement_cards,21-May-20,Resources (Inc SIU),HTTPSWWWCLOVECOUK,Assistant Chief Executive (Excl SIU),124.99,Professional Services External,2020-21May_PC00143
Sandwell Metropolitan Borough Council,http://www.sandwell.gov.uk/info/200202/performance_and_spending/3233/government_procurement_cards,21-May-20,Resources (Inc SIU),AMZNMktplace,Assistant Chief Executive (Excl SIU),23.73,Printing Stationery&Gen Office,2020-21May_PC00144
Sandwell Metropolitan Borough Council,http://www.sandwell.gov.uk/info/200202/performance_and_spending/3233/government_procurement_cards,21-May-20,Resources (Inc SIU),CIPD INTEGRA,Assistant Chief Executive (Excl SIU),163,Ind. Emp Exp-Staff Dev&Training,2020-21May_PC00145
Sandwell Metropolitan Borough Council,http://www.sandwell.gov.uk/info/200202/performance_and_spending/3233/government_procurement_cards,21-May-20,Housing & Communities,OFFICE DEPOT UK,Neighbourhoods,32.03,Printing Stationery&Gen Office,2020-21May_PC00146
Sandwell Metropolitan Borough Council,http://www.sandwell.gov.uk/info/200202/performance_and_spending/3233/government_procurement_cards,21-May-20,Adult Social Care Health and Wellbeing - Total,AMZNMktplace,Total Adult Social Care,119.99,Telephones,2020-21May_PC00147
Sandwell Metropolitan Borough Council,http://www.sandwell.gov.uk/info/200202/performance_and_spending/3233/government_procurement_cards,22-May-20,Regeneration & Growth,ARGOS LTD,Regeneration And The Economy,99.99,Telephones,2020-21May_PC00148
Sandwell Metropolitan Borough Council,http://www.sandwell.gov.uk/info/200202/performance_and_spending/3233/government_procurement_cards,22-May-20,Adult Social Care Health and Wellbeing - Total,AMZNMktplace,Total Adult Social Care,164,Telephones,2020-21May_PC00149
Sandwell Metropolitan Borough Council,http://www.sandwell.gov.uk/info/200202/performance_and_spending/3233/government_procurement_cards,22-May-20,Adult Social Care Health and Wellbeing - Total,AMZNMktplace,Total Adult Social Care,164,Telephones,2020-21May_PC00150
Sandwell Metropolitan Borough Council,http://www.sandwell.gov.uk/info/200202/performance_and_spending/3233/government_procurement_cards,22-May-20,Housing & Communities,AMZNMKTPLACE AMAZON.CO,Neighbourhoods,392.95,Equipment & Furniture,2020-21May_PC00151
Sandwell Metropolitan Borough Council,http://www.sandwell.gov.uk/info/200202/performance_and_spending/3233/government_procurement_cards,22-May-20,Housing & Communities,AMZNMktplace,Neighbourhoods,43.29,Equipment & Furniture,2020-21May_PC00152
Sandwell Metropolitan Borough Council,http://www.sandwell.gov.uk/info/200202/performance_and_spending/3233/government_procurement_cards,22-May-20,Adult Social Care Health and Wellbeing - Total,OFFICE DEPOT UK,Total Adult Social Care,9.8,Printing Stationery&Gen Office,2020-21May_PC00153
Sandwell Metropolitan Borough Council,http://www.sandwell.gov.uk/info/200202/performance_and_spending/3233/government_procurement_cards,22-May-20,Adult Social Care Health and Wellbeing - Total,AMZNMktplace,Total Adult Social Care,63.92,Fixtures & Fittings,2020-21May_PC00154
Sandwell Metropolitan Borough Council,http://www.sandwell.gov.uk/info/200202/performance_and_spending/3233/government_procurement_cards,22-May-20,Resources (Inc SIU),AMZNMktplace,Assistant Chief Executive (Excl SIU),4.4,ICT,2020-21May_PC00155
Sandwell Metropolitan Borough Council,http://www.sandwell.gov.uk/info/200202/performance_and_spending/3233/government_procurement_cards,22-May-20,Resources (Inc SIU),OFFICE DEPOT UK,Assistant Chief Executive (Excl SIU),49.74,Printing Stationery&Gen Office,2020-21May_PC00156
Sandwell Metropolitan Borough Council,http://www.sandwell.gov.uk/info/200202/performance_and_spending/3233/government_procurement_cards,22-May-20,Resources (Inc SIU),PAYPAL  BRITBOOKSLI EB,Assistant Chief Executive (Excl SIU),5.14,Materials & Consumables,2020-21May_PC00157
Sandwell Metropolitan Borough Council,http://www.sandwell.gov.uk/info/200202/performance_and_spending/3233/government_procurement_cards,22-May-20,Resources (Inc SIU),HTTPSWWWCLOVECOUK,Assistant Chief Executive (Excl SIU),124.99,Professional Services External,2020-21May_PC00158
Sandwell Metropolitan Borough Council,http://www.sandwell.gov.uk/info/200202/performance_and_spending/3233/government_procurement_cards,22-May-20,Individual School Budgets With Inclusion,ARGOS LTD,Individual School Budgets With Inclusion,33.9,Telephones,2020-21May_PC00159
Sandwell Metropolitan Borough Council,http://www.sandwell.gov.uk/info/200202/performance_and_spending/3233/government_procurement_cards,25-May-20,Total Housing Revenue Account,WWW.EQUIP4WORK.CO.UK,Total Housing Revenue Account,182,Materials & Consumables,2020-21May_PC00160
Sandwell Metropolitan Borough Council,http://www.sandwell.gov.uk/info/200202/performance_and_spending/3233/government_procurement_cards,25-May-20,Regeneration & Growth,Amazon.co.uk HM1ZA6SB5,Regeneration And The Economy,99.99,Telephones,2020-21May_PC00161
Sandwell Metropolitan Borough Council,http://www.sandwell.gov.uk/info/200202/performance_and_spending/3233/government_procurement_cards,25-May-20,Adult Social Care Health and Wellbeing - Total,AMZNMKTPLACE AMAZON.CO,Total Adult Social Care,154.15,Telephones,2020-21May_PC00162
Sandwell Metropolitan Borough Council,http://www.sandwell.gov.uk/info/200202/performance_and_spending/3233/government_procurement_cards,25-May-20,Adult Social Care Health and Wellbeing - Total,AMZNMktplace,Total Adult Social Care,154.15,Telephones,2020-21May_PC00163
Sandwell Metropolitan Borough Council,http://www.sandwell.gov.uk/info/200202/performance_and_spending/3233/government_procurement_cards,25-May-20,Adult Social Care Health and Wellbeing - Total,AMZNMktplace,Total Adult Social Care,154.15,Telephones,2020-21May_PC00164
Sandwell Metropolitan Borough Council,http://www.sandwell.gov.uk/info/200202/performance_and_spending/3233/government_procurement_cards,25-May-20,Total Housing Revenue Account,OFFICE DEPOT UK,Total Housing Revenue Account,32,Printing Stationery&Gen Office,2020-21May_PC00165
Sandwell Metropolitan Borough Council,http://www.sandwell.gov.uk/info/200202/performance_and_spending/3233/government_procurement_cards,25-May-20,Adult Social Care Health and Wellbeing - Total,OFFICE DEPOT UK,Total Adult Social Care,88.5,Printing Stationery&Gen Office,2020-21May_PC00166
Sandwell Metropolitan Borough Council,http://www.sandwell.gov.uk/info/200202/performance_and_spending/3233/government_procurement_cards,25-May-20,Adult Social Care Health and Wellbeing - Total,OFFICE DEPOT UK,Total Adult Social Care,10.99,Printing Stationery&Gen Office,2020-21May_PC00167
Sandwell Metropolitan Borough Council,http://www.sandwell.gov.uk/info/200202/performance_and_spending/3233/government_procurement_cards,25-May-20,Housing & Communities,EUROFFICE.CO.UK,Neighbourhoods,8.8,ICT,2020-21May_PC00168
Sandwell Metropolitan Borough Council,http://www.sandwell.gov.uk/info/200202/performance_and_spending/3233/government_procurement_cards,25-May-20,Resources (Inc SIU),R ARNOLD FUNERAL DIREC,Assistant Chief Executive (Excl SIU),640,Equipment & Furniture,2020-21May_PC00169
Sandwell Metropolitan Borough Council,http://www.sandwell.gov.uk/info/200202/performance_and_spending/3233/government_procurement_cards,25-May-20,Resources (Inc SIU),ARGOS LTD,Assistant Chief Executive (Excl SIU),29.94,Equipment & Furniture,2020-21May_PC00170
Sandwell Metropolitan Borough Council,http://www.sandwell.gov.uk/info/200202/performance_and_spending/3233/government_procurement_cards,25-May-20,Resources (Inc SIU),OFFICE DEPOT UK,Assistant Chief Executive (Excl SIU),99.15,Printing Stationery&Gen Office,2020-21May_PC00171
Sandwell Metropolitan Borough Council,http://www.sandwell.gov.uk/info/200202/performance_and_spending/3233/government_procurement_cards,25-May-20,Resources (Inc SIU),AMZNMktplace,Assistant Chief Executive (Excl SIU),57.17,Printing Stationery&Gen Office,2020-21May_PC00172
Sandwell Metropolitan Borough Council,http://www.sandwell.gov.uk/info/200202/performance_and_spending/3233/government_procurement_cards,25-May-20,Childrens Services,OFFICE DEPOT UK,Childrens Services,34.88,Printing Stationery&Gen Office,2020-21May_PC00173
Sandwell Metropolitan Borough Council,http://www.sandwell.gov.uk/info/200202/performance_and_spending/3233/government_procurement_cards,25-May-20,Childrens Services,OFFICE DEPOT UK,Childrens Services,110,Printing Stationery&Gen Office,2020-21May_PC00174
Sandwell Metropolitan Borough Council,http://www.sandwell.gov.uk/info/200202/performance_and_spending/3233/government_procurement_cards,25-May-20,Housing & Communities,POST OFFICE COUNTER,Neighbourhoods,80.2,"Postages, Carriage & Courier Services",2020-21May_PC00175
Sandwell Metropolitan Borough Council,http://www.sandwell.gov.uk/info/200202/performance_and_spending/3233/government_procurement_cards,25-May-20,Regeneration & Growth,Amazon.co.uk IC1H67C05,Regeneration And The Economy,99.99,Telephones,2020-21May_PC00176
Sandwell Metropolitan Borough Council,http://www.sandwell.gov.uk/info/200202/performance_and_spending/3233/government_procurement_cards,25-May-20,Individual School Budgets With Inclusion,AMZNMktplace,Individual School Budgets With Inclusion,515.05,Materials & Consumables,2020-21May_PC00177
Sandwell Metropolitan Borough Council,http://www.sandwell.gov.uk/info/200202/performance_and_spending/3233/government_procurement_cards,25-May-20,Regeneration & Growth,AMZNMktplace,Regeneration And The Economy,15.81,Printing Stationery&Gen Office,2020-21May_PC00178
Sandwell Metropolitan Borough Council,http://www.sandwell.gov.uk/info/200202/performance_and_spending/3233/government_procurement_cards,25-May-20,Regeneration & Growth,AMZNMKTPLACE AMAZON.CO,Regeneration And The Economy,134,Printing Stationery&Gen Office,2020-21May_PC00179
Sandwell Metropolitan Borough Council,http://www.sandwell.gov.uk/info/200202/performance_and_spending/3233/government_procurement_cards,25-May-20,Regeneration & Growth,AMZNMktplace,Regeneration And The Economy,134,Printing Stationery&Gen Office,2020-21May_PC00180
Sandwell Metropolitan Borough Council,http://www.sandwell.gov.uk/info/200202/performance_and_spending/3233/government_procurement_cards,25-May-20,Total Housing Revenue Account,CURRYS ONLINE,Total Housing Revenue Account,80.15,Telephones,2020-21May_PC00181
Sandwell Metropolitan Borough Council,http://www.sandwell.gov.uk/info/200202/performance_and_spending/3233/government_procurement_cards,26-May-20,Regeneration & Growth,AMZNMKTPLACE AMAZON.CO,Regeneration And The Economy,11.2,Printing Stationery&Gen Office,2020-21May_PC00182
Sandwell Metropolitan Borough Council,http://www.sandwell.gov.uk/info/200202/performance_and_spending/3233/government_procurement_cards,27-May-20,Regeneration & Growth,AMZNMktplace,Regeneration And The Economy,99.17,Telephones,2020-21May_PC00183
Sandwell Metropolitan Borough Council,http://www.sandwell.gov.uk/info/200202/performance_and_spending/3233/government_procurement_cards,27-May-20,Regeneration & Growth,AMZNMktplace,Regeneration And The Economy,203.74,ICT,2020-21May_PC00184
Sandwell Metropolitan Borough Council,http://www.sandwell.gov.uk/info/200202/performance_and_spending/3233/government_procurement_cards,27-May-20,Housing & Communities,POST OFFICE COUNTER,Neighbourhoods,175,Subscriptions,2020-21May_PC00185
Sandwell Metropolitan Borough Council,http://www.sandwell.gov.uk/info/200202/performance_and_spending/3233/government_procurement_cards,27-May-20,Corporate Management,BESTWAY WHOLESALE,Corporate Management,107.34,Materials & Consumables,2020-21May_PC00186
Sandwell Metropolitan Borough Council,http://www.sandwell.gov.uk/info/200202/performance_and_spending/3233/government_procurement_cards,27-May-20,Resources (Inc SIU),ACCA,Assistant Chief Executive (Excl SIU),78,Ind. Emp Exp-Staff Dev&Training,2020-21May_PC00187
Sandwell Metropolitan Borough Council,http://www.sandwell.gov.uk/info/200202/performance_and_spending/3233/government_procurement_cards,27-May-20,Total Housing Revenue Account,SCREWFIX DIRECT,Total Housing Revenue Account,21.2,Printing Stationery&Gen Office,2020-21May_PC00188
Sandwell Metropolitan Borough Council,http://www.sandwell.gov.uk/info/200202/performance_and_spending/3233/government_procurement_cards,27-May-20,Total Housing Revenue Account,Amazon.co.uk MI2GT32P5,Total Housing Revenue Account,19.47,Materials & Consumables,2020-21May_PC00189
Sandwell Metropolitan Borough Council,http://www.sandwell.gov.uk/info/200202/performance_and_spending/3233/government_procurement_cards,27-May-20,Adult Social Care Health and Wellbeing - Total,AMZNMktplace,Total Adult Social Care,2702.43,Telephones,2020-21May_PC00190
Sandwell Metropolitan Borough Council,http://www.sandwell.gov.uk/info/200202/performance_and_spending/3233/government_procurement_cards,27-May-20,Adult Social Care Health and Wellbeing - Total,POST OFFICE COUNTER,Total Adult Social Care,2.5,Materials & Consumables,2020-21May_PC00191
Sandwell Metropolitan Borough Council,http://www.sandwell.gov.uk/info/200202/performance_and_spending/3233/government_procurement_cards,27-May-20,Housing & Communities,POLYBAGS LTD,Neighbourhoods,359.07,Printing Stationery&Gen Office,2020-21May_PC00192
Sandwell Metropolitan Borough Council,http://www.sandwell.gov.uk/info/200202/performance_and_spending/3233/government_procurement_cards,27-May-20,Resources (Inc SIU),CURRYS ONLINE,Assistant Chief Executive (Excl SIU),24.99,Equipment & Furniture,2020-21May_PC00193
Sandwell Metropolitan Borough Council,http://www.sandwell.gov.uk/info/200202/performance_and_spending/3233/government_procurement_cards,27-May-20,Adult Social Care Health and Wellbeing - Total,AMZNMktplace,Total Adult Social Care,99.97,Telephones,2020-21May_PC00194
Sandwell Metropolitan Borough Council,http://www.sandwell.gov.uk/info/200202/performance_and_spending/3233/government_procurement_cards,27-May-20,Childrens Services,AMZNMKTPLACE AMAZON.CO,Childrens Services,99.97,Telephones,2020-21May_PC00195
Sandwell Metropolitan Borough Council,http://www.sandwell.gov.uk/info/200202/performance_and_spending/3233/government_procurement_cards,27-May-20,Childrens Services,AMZNMktplace,Childrens Services,99.97,Telephones,2020-21May_PC00196
Sandwell Metropolitan Borough Council,http://www.sandwell.gov.uk/info/200202/performance_and_spending/3233/government_procurement_cards,27-May-20,Childrens Services,JAX FIRST AID,Childrens Services,30.8,Protective Clothing&Uniforms,2020-21May_PC00197
Sandwell Metropolitan Borough Council,http://www.sandwell.gov.uk/info/200202/performance_and_spending/3233/government_procurement_cards,27-May-20,Childrens Services,AMZNMktplace,Childrens Services,39.49,"Postages, Carriage & Courier Services",2020-21May_PC00198
Sandwell Metropolitan Borough Council,http://www.sandwell.gov.uk/info/200202/performance_and_spending/3233/government_procurement_cards,28-May-20,Housing & Communities,AMZNMktplace,Neighbourhoods,20.4,Equipment & Furniture,2020-21May_PC00199
Sandwell Metropolitan Borough Council,http://www.sandwell.gov.uk/info/200202/performance_and_spending/3233/government_procurement_cards,28-May-20,Housing & Communities,AMZNMktplace,Neighbourhoods,20.4,Printing Stationery&Gen Office,2020-21May_PC00200
Sandwell Metropolitan Borough Council,http://www.sandwell.gov.uk/info/200202/performance_and_spending/3233/government_procurement_cards,28-May-20,Adult Social Care Health and Wellbeing - Total,Mantel,Public Health,320,Equipment & Furniture,2020-21May_PC00201
Sandwell Metropolitan Borough Council,http://www.sandwell.gov.uk/info/200202/performance_and_spending/3233/government_procurement_cards,28-May-20,Adult Social Care Health and Wellbeing - Total,OFFICE DEPOT UK,Total Adult Social Care,176.8,Printing Stationery&Gen Office,2020-21May_PC00202
Sandwell Metropolitan Borough Council,http://www.sandwell.gov.uk/info/200202/performance_and_spending/3233/government_procurement_cards,28-May-20,Adult Social Care Health and Wellbeing - Total,OFFICE DEPOT UK,Total Adult Social Care,113.2,Printing Stationery&Gen Office,2020-21May_PC00203
Sandwell Metropolitan Borough Council,http://www.sandwell.gov.uk/info/200202/performance_and_spending/3233/government_procurement_cards,28-May-20,Adult Social Care Health and Wellbeing - Total,OFFICE DEPOT UK,Total Adult Social Care,60.75,Printing Stationery&Gen Office,2020-21May_PC00204
Sandwell Metropolitan Borough Council,http://www.sandwell.gov.uk/info/200202/performance_and_spending/3233/government_procurement_cards,28-May-20,Regeneration & Growth,PAYPAL  RTPI,Regeneration And The Economy,-42.5,Ind. Emp Exp-Staff Dev&Training,2020-21May_PC00205
Sandwell Metropolitan Borough Council,http://www.sandwell.gov.uk/info/200202/performance_and_spending/3233/government_procurement_cards,28-May-20,Regeneration & Growth,PAYPAL  RTPI,Regeneration And The Economy,-42.5,Ind. Emp Exp-Staff Dev&Training,2020-21May_PC00206
Sandwell Metropolitan Borough Council,http://www.sandwell.gov.uk/info/200202/performance_and_spending/3233/government_procurement_cards,28-May-20,Regeneration & Growth,PAYPAL  RTPI,Regeneration And The Economy,-42.5,Ind. Emp Exp-Staff Dev&Training,2020-21May_PC00207
Sandwell Metropolitan Borough Council,http://www.sandwell.gov.uk/info/200202/performance_and_spending/3233/government_procurement_cards,28-May-20,Regeneration & Growth,PAYPAL  RTPI,Regeneration And The Economy,-42.5,Ind. Emp Exp-Staff Dev&Training,2020-21May_PC00208
Sandwell Metropolitan Borough Council,http://www.sandwell.gov.uk/info/200202/performance_and_spending/3233/government_procurement_cards,28-May-20,Regeneration & Growth,PAYPAL  RTPI,Regeneration And The Economy,-42.5,Ind. Emp Exp-Staff Dev&Training,2020-21May_PC00209
Sandwell Metropolitan Borough Council,http://www.sandwell.gov.uk/info/200202/performance_and_spending/3233/government_procurement_cards,28-May-20,Resources (Inc SIU),AMZNMKTPLACE AMAZON.CO,Assistant Chief Executive (Excl SIU),19.06,Equipment & Furniture,2020-21May_PC00210
Sandwell Metropolitan Borough Council,http://www.sandwell.gov.uk/info/200202/performance_and_spending/3233/government_procurement_cards,28-May-20,Resources (Inc SIU),AMZNMktplace,Assistant Chief Executive (Excl SIU),14.98,Equipment & Furniture,2020-21May_PC00211
Sandwell Metropolitan Borough Council,http://www.sandwell.gov.uk/info/200202/performance_and_spending/3233/government_procurement_cards,28-May-20,Adult Social Care Health and Wellbeing - Total,CARESHOP,Total Adult Social Care,67.13,Protective Clothing&Uniforms,2020-21May_PC00212
Sandwell Metropolitan Borough Council,http://www.sandwell.gov.uk/info/200202/performance_and_spending/3233/government_procurement_cards,29-May-20,Regeneration & Growth,AMZNMKTPLACE AMAZON.CO,Regeneration And The Economy,30.82,Printing Stationery&Gen Office,2020-21May_PC00213
Sandwell Metropolitan Borough Council,http://www.sandwell.gov.uk/info/200202/performance_and_spending/3233/government_procurement_cards,29-May-20,Regeneration & Growth,AMZNMKTPLACE AMAZON.CO,Regeneration And The Economy,99.17,Telephones,2020-21May_PC00214
Sandwell Metropolitan Borough Council,http://www.sandwell.gov.uk/info/200202/performance_and_spending/3233/government_procurement_cards,29-May-20,Regeneration & Growth,AMZNMktplace,Regeneration And The Economy,99.17,Telephones,2020-21May_PC00215
Sandwell Metropolitan Borough Council,http://www.sandwell.gov.uk/info/200202/performance_and_spending/3233/government_procurement_cards,29-May-20,Resources (Inc SIU),Amazon.co.uk RF6PH3YR5,Assistant Chief Executive (Excl SIU),14.27,ICT,2020-21May_PC00216
Sandwell Metropolitan Borough Council,http://www.sandwell.gov.uk/info/200202/performance_and_spending/3233/government_procurement_cards,29-May-20,Housing & Communities,AMZNMktplace,Neighbourhoods,33.52,Printing Stationery&Gen Office,2020-21May_PC00217
Sandwell Metropolitan Borough Council,http://www.sandwell.gov.uk/info/200202/performance_and_spending/3233/government_procurement_cards,29-May-20,Housing & Communities,POST OFFICE COUNTER,Neighbourhoods,175,Subscriptions,2020-21May_PC00218
Sandwell Metropolitan Borough Council,http://www.sandwell.gov.uk/info/200202/performance_and_spending/3233/government_procurement_cards,29-May-20,Housing & Communities,SECURITY INDUSTRY,Neighbourhoods,158.33,Subscriptions,2020-21May_PC00219
Sandwell Metropolitan Borough Council,http://www.sandwell.gov.uk/info/200202/performance_and_spending/3233/government_procurement_cards,29-May-20,Total Housing Revenue Account,XMA LTD,Total Housing Revenue Account,26.26,ICT,2020-21May_PC00220
Sandwell Metropolitan Borough Council,http://www.sandwell.gov.uk/info/200202/performance_and_spending/3233/government_procurement_cards,29-May-20,Housing & Communities,AMZNMktplace,Neighbourhoods,13.95,Equipment & Furniture,2020-21May_PC00221
Sandwell Metropolitan Borough Council,http://www.sandwell.gov.uk/info/200202/performance_and_spending/3233/government_procurement_cards,29-May-20,Adult Social Care Health and Wellbeing - Total,AMZNMktplace,Total Adult Social Care,34.88,Printing Stationery&Gen Office,2020-21May_PC00222
Sandwell Metropolitan Borough Council,http://www.sandwell.gov.uk/info/200202/performance_and_spending/3233/government_procurement_cards,29-May-20,Housing & Communities,AMZNMktplace,Neighbourhoods,9.52,Printing Stationery&Gen Office,2020-21May_PC00223
Sandwell Metropolitan Borough Council,http://www.sandwell.gov.uk/info/200202/performance_and_spending/3233/government_procurement_cards,29-May-20,Regeneration & Growth,PAYPAL  RTPI,Regeneration And The Economy,-42.5,Ind. Emp Exp-Staff Dev&Training,2020-21May_PC00224
Sandwell Metropolitan Borough Council,http://www.sandwell.gov.uk/info/200202/performance_and_spending/3233/government_procurement_cards,29-May-20,Regeneration & Growth,PAYPAL  RTPI,Regeneration And The Economy,-212.5,Ind. Emp Exp-Staff Dev&Training,2020-21May_PC00225
Sandwell Metropolitan Borough Council,http://www.sandwell.gov.uk/info/200202/performance_and_spending/3233/government_procurement_cards,29-May-20,Regeneration & Growth,PAYPAL  RTPI,Regeneration And The Economy,-42.5,Ind. Emp Exp-Staff Dev&Training,2020-21May_PC00226
Sandwell Metropolitan Borough Council,http://www.sandwell.gov.uk/info/200202/performance_and_spending/3233/government_procurement_cards,29-May-20,Regeneration & Growth,PAYPAL  RTPI,Regeneration And The Economy,-42.5,Ind. Emp Exp-Staff Dev&Training,2020-21May_PC00227
Sandwell Metropolitan Borough Council,http://www.sandwell.gov.uk/info/200202/performance_and_spending/3233/government_procurement_cards,29-May-20,Regeneration & Growth,PAYPAL  RTPI,Regeneration And The Economy,-51,Ind. Emp Exp-Staff Dev&Training,2020-21May_PC00228
Sandwell Metropolitan Borough Council,http://www.sandwell.gov.uk/info/200202/performance_and_spending/3233/government_procurement_cards,29-May-20,Resources (Inc SIU),OFFICE DEPOT UK,Assistant Chief Executive (Excl SIU),49.74,Equipment & Furniture,2020-21May_PC00229
Sandwell Metropolitan Borough Council,http://www.sandwell.gov.uk/info/200202/performance_and_spending/3233/government_procurement_cards,29-May-20,Childrens Services,AMZNMKTPLACE AMAZON.CO,Childrens Services,99.97,Employee Expenses,2020-21May_PC00230
Sandwell Metropolitan Borough Council,http://www.sandwell.gov.uk/info/200202/performance_and_spending/3233/government_procurement_cards,29-May-20,Resources (Inc SIU),AMZNMktplace,Assistant Chief Executive (Excl SIU),12.46,Printing Stationery&Gen Office,2020-21May_PC00231
Sandwell Metropolitan Borough Council,http://www.sandwell.gov.uk/info/200202/performance_and_spending/3233/government_procurement_cards,01-Jun-20,Regeneration & Growth,OFFICE DEPOT UK,Regeneration And The Economy,7.1,Printing Stationery&Gen Office,2020-21May_PC00232
Sandwell Metropolitan Borough Council,http://www.sandwell.gov.uk/info/200202/performance_and_spending/3233/government_procurement_cards,01-Jun-20,Housing & Communities,AMZNMktplace,Neighbourhoods,99.97,Telephones,2020-21May_PC00233
Sandwell Metropolitan Borough Council,http://www.sandwell.gov.uk/info/200202/performance_and_spending/3233/government_procurement_cards,01-Jun-20,Resources (Inc SIU),OFFICE DEPOT UK,Assistant Chief Executive (Excl SIU),-49.74,Equipment & Furniture,2020-21May_PC00234
Sandwell Metropolitan Borough Council,http://www.sandwell.gov.uk/info/200202/performance_and_spending/3233/government_procurement_cards,01-Jun-20,Adult Social Care Health and Wellbeing - Total,WWW.JUSTGLOVES.CO.UK,Total Adult Social Care,83.5,Materials & Consumables,2020-21May_PC00235
Sandwell Metropolitan Borough Council,http://www.sandwell.gov.uk/info/200202/performance_and_spending/3233/government_procurement_cards,01-Jun-20,Housing & Communities,BESTWAY WHOLESALE,Neighbourhoods,2472.12,Catering Provisions,2020-21May_PC00236
Sandwell Metropolitan Borough Council,http://www.sandwell.gov.uk/info/200202/performance_and_spending/3233/government_procurement_cards,01-Jun-20,Adult Social Care Health and Wellbeing - Total,OFFICE DEPOT UK,Total Adult Social Care,27.13,Printing Stationery&Gen Office,2020-21May_PC00237
Sandwell Metropolitan Borough Council,http://www.sandwell.gov.uk/info/200202/performance_and_spending/3233/government_procurement_cards,01-Jun-20,Housing & Communities,OFFICE DEPOT UK,Neighbourhoods,20.45,Printing Stationery&Gen Office,2020-21May_PC00238
Sandwell Metropolitan Borough Council,http://www.sandwell.gov.uk/info/200202/performance_and_spending/3233/government_procurement_cards,01-Jun-20,Resources (Inc SIU),OFFICE DEPOT UK,Assistant Chief Executive (Excl SIU),33.89,Equipment & Furniture,2020-21May_PC00239
Sandwell Metropolitan Borough Council,http://www.sandwell.gov.uk/info/200202/performance_and_spending/3233/government_procurement_cards,01-Jun-20,Childrens Services,Dropbox,Childrens Services,36,Licences,2020-21May_PC00240
Sandwell Metropolitan Borough Council,http://www.sandwell.gov.uk/info/200202/performance_and_spending/3233/government_procurement_cards,01-Jun-20,Childrens Services,AMZNMKTPLACE AMAZON.CO,Childrens Services,79.97,Materials & Consumables,2020-21May_PC00241
Sandwell Metropolitan Borough Council,http://www.sandwell.gov.uk/info/200202/performance_and_spending/3233/government_procurement_cards,02-Jun-20,Regeneration & Growth,OFFICE DEPOT UK,Regeneration And The Economy,-7.1,Printing Stationery&Gen Office,2020-21May_PC00242
Sandwell Metropolitan Borough Council,http://www.sandwell.gov.uk/info/200202/performance_and_spending/3233/government_procurement_cards,02-Jun-20,Adult Social Care Health and Wellbeing - Total,AMZNMktplace,Total Adult Social Care,24.99,Equipment & Furniture,2020-21May_PC00243
Sandwell Metropolitan Borough Council,http://www.sandwell.gov.uk/info/200202/performance_and_spending/3233/government_procurement_cards,02-Jun-20,Total Housing Revenue Account,AMZNMKTPLACE AMAZON.CO,Total Housing Revenue Account,33.32,Protective Clothing&Uniforms,2020-21May_PC00244
Sandwell Metropolitan Borough Council,http://www.sandwell.gov.uk/info/200202/performance_and_spending/3233/government_procurement_cards,02-Jun-20,Adult Social Care Health and Wellbeing - Total,OFFICE DEPOT UK,Total Adult Social Care,64.99,Printing Stationery&Gen Office,2020-21May_PC00245
Sandwell Metropolitan Borough Council,http://www.sandwell.gov.uk/info/200202/performance_and_spending/3233/government_procurement_cards,02-Jun-20,Adult Social Care Health and Wellbeing - Total,AMZNMktplace,Total Adult Social Care,7.25,Printing Stationery&Gen Office,2020-21May_PC00246
Sandwell Metropolitan Borough Council,http://www.sandwell.gov.uk/info/200202/performance_and_spending/3233/government_procurement_cards,02-Jun-20,Adult Social Care Health and Wellbeing - Total,OFFICE DEPOT UK,Total Adult Social Care,159.52,Printing Stationery&Gen Office,2020-21May_PC00247
Sandwell Metropolitan Borough Council,http://www.sandwell.gov.uk/info/200202/performance_and_spending/3233/government_procurement_cards,02-Jun-20,Adult Social Care Health and Wellbeing - Total,DELIVER NET LTD,Total Adult Social Care,432.9,Equipment & Furniture,2020-21May_PC00248
Sandwell Metropolitan Borough Council,http://www.sandwell.gov.uk/info/200202/performance_and_spending/3233/government_procurement_cards,02-Jun-20,Childrens Services,AMZNMktplace,Childrens Services,32.47,Protective Clothing&Uniforms,2020-21May_PC00249
Sandwell Metropolitan Borough Council,http://www.sandwell.gov.uk/info/200202/performance_and_spending/3233/government_procurement_cards,02-Jun-20,Childrens Services,WWW.AELP.ORG.UK,Childrens Services,49,Ind. Emp Exp-Staff Dev&Training,2020-21May_PC00250
Sandwell Metropolitan Borough Council,http://www.sandwell.gov.uk/info/200202/performance_and_spending/3233/government_procurement_cards,02-Jun-20,Childrens Services,WWW.QUALSAFE.COM,Childrens Services,232.95,Printing Stationery&Gen Office,2020-21May_PC00251
Sandwell Metropolitan Borough Council,http://www.sandwell.gov.uk/info/200202/performance_and_spending/3233/government_procurement_cards,02-Jun-20,Childrens Services,WILKO RETAIL LIMITED,Childrens Services,27.08,Printing Stationery&Gen Office,2020-21May_PC00252
Sandwell Metropolitan Borough Council,http://www.sandwell.gov.uk/info/200202/performance_and_spending/3233/government_procurement_cards,02-Jun-20,Childrens Services,Amazon.co.uk SS9F92FW5,Childrens Services,54,Printing Stationery&Gen Office,2020-21May_PC00253
Sandwell Metropolitan Borough Council,http://www.sandwell.gov.uk/info/200202/performance_and_spending/3233/government_procurement_cards,03-Jun-20,Regeneration & Growth,OFFICE DEPOT UK,Regeneration And The Economy,4.14,Equipment & Furniture,2020-21May_PC00254
Sandwell Metropolitan Borough Council,http://www.sandwell.gov.uk/info/200202/performance_and_spending/3233/government_procurement_cards,03-Jun-20,Housing & Communities,AMZNMktplace,Neighbourhoods,55.35,Printing Stationery&Gen Office,2020-21May_PC00255
Sandwell Metropolitan Borough Council,http://www.sandwell.gov.uk/info/200202/performance_and_spending/3233/government_procurement_cards,03-Jun-20,Adult Social Care Health and Wellbeing - Total,AMZNMktplace,Total Adult Social Care,29.82,Materials & Consumables,2020-21May_PC00256
Sandwell Metropolitan Borough Council,http://www.sandwell.gov.uk/info/200202/performance_and_spending/3233/government_procurement_cards,03-Jun-20,Individual School Budgets With Inclusion,2CO.com bitdefender.co,Individual School Budgets With Inclusion,58.32,ICT,2020-21May_PC00257
Sandwell Metropolitan Borough Council,http://www.sandwell.gov.uk/info/200202/performance_and_spending/3233/government_procurement_cards,03-Jun-20,Adult Social Care Health and Wellbeing - Total,Amazon.co.uk 1J7HG4AW5,Total Adult Social Care,8.75,Printing Stationery&Gen Office,2020-21May_PC00258
Sandwell Metropolitan Borough Council,http://www.sandwell.gov.uk/info/200202/performance_and_spending/3233/government_procurement_cards,03-Jun-20,Adult Social Care Health and Wellbeing - Total,CARESHOP,Total Adult Social Care,67.13,Protective Clothing&Uniforms,2020-21May_PC00259
Sandwell Metropolitan Borough Council,http://www.sandwell.gov.uk/info/200202/performance_and_spending/3233/government_procurement_cards,03-Jun-20,Adult Social Care Health and Wellbeing - Total,CARESHOP,Total Adult Social Care,35.2,Protective Clothing&Uniforms,2020-21May_PC00260
Sandwell Metropolitan Borough Council,http://www.sandwell.gov.uk/info/200202/performance_and_spending/3233/government_procurement_cards,03-Jun-20,Adult Social Care Health and Wellbeing - Total,CARESHOP,Total Adult Social Care,225,Protective Clothing&Uniforms,2020-21May_PC00261
Sandwell Metropolitan Borough Council,http://www.sandwell.gov.uk/info/200202/performance_and_spending/3233/government_procurement_cards,03-Jun-20,Childrens Services,AMZNMktplace,Childrens Services,74.1,Protective Clothing&Uniforms,2020-21May_PC00262
Sandwell Metropolitan Borough Council,http://www.sandwell.gov.uk/info/200202/performance_and_spending/3233/government_procurement_cards,04-Jun-20,Resources (Inc SIU),AMZNMktplace,Assistant Chief Executive (Excl SIU),24.99,Printing Stationery&Gen Office,2020-21Jun_PC00001
Sandwell Metropolitan Borough Council,http://www.sandwell.gov.uk/info/200202/performance_and_spending/3233/government_procurement_cards,04-Jun-20,Resources (Inc SIU),AMZNMktplace,Assistant Chief Executive (Excl SIU),24.99,Printing Stationery&Gen Office,2020-21Jun_PC00002
Sandwell Metropolitan Borough Council,http://www.sandwell.gov.uk/info/200202/performance_and_spending/3233/government_procurement_cards,04-Jun-20,Resources (Inc SIU),AMZNMktplace,Assistant Chief Executive (Excl SIU),10.4,Printing Stationery&Gen Office,2020-21Jun_PC00003
Sandwell Metropolitan Borough Council,http://www.sandwell.gov.uk/info/200202/performance_and_spending/3233/government_procurement_cards,04-Jun-20,Adult Social Care Health and Wellbeing - Total,AMZNMKTPLACE AMAZON.CO,Total Adult Social Care,99.97,Telephones,2020-21Jun_PC00004
Sandwell Metropolitan Borough Council,http://www.sandwell.gov.uk/info/200202/performance_and_spending/3233/government_procurement_cards,04-Jun-20,Adult Social Care Health and Wellbeing - Total,OFFICE DEPOT UK,Total Adult Social Care,11.04,Printing Stationery&Gen Office,2020-21Jun_PC00005
Sandwell Metropolitan Borough Council,http://www.sandwell.gov.uk/info/200202/performance_and_spending/3233/government_procurement_cards,04-Jun-20,Adult Social Care Health and Wellbeing - Total,EB  DOMESTIC ABUSE PER,Total Adult Social Care,27.54,Professional Services External,2020-21Jun_PC00006
Sandwell Metropolitan Borough Council,http://www.sandwell.gov.uk/info/200202/performance_and_spending/3233/government_procurement_cards,04-Jun-20,Adult Social Care Health and Wellbeing - Total,FACEBK JQXPWTNNK2,Total Adult Social Care,20.55,Advertising & Publicity,2020-21Jun_PC00007
Sandwell Metropolitan Borough Council,http://www.sandwell.gov.uk/info/200202/performance_and_spending/3233/government_procurement_cards,04-Jun-20,Adult Social Care Health and Wellbeing - Total,Amazon Prime U00HD8MC5,Total Adult Social Care,6.66,Subscriptions,2020-21Jun_PC00008
Sandwell Metropolitan Borough Council,http://www.sandwell.gov.uk/info/200202/performance_and_spending/3233/government_procurement_cards,04-Jun-20,Housing & Communities,AMZNMktplace,Neighbourhoods,99.99,Telephones,2020-21Jun_PC00009
Sandwell Metropolitan Borough Council,http://www.sandwell.gov.uk/info/200202/performance_and_spending/3233/government_procurement_cards,04-Jun-20,Housing & Communities,AMZNWarranty,Neighbourhoods,2.99,Telephones,2020-21Jun_PC00010
Sandwell Metropolitan Borough Council,http://www.sandwell.gov.uk/info/200202/performance_and_spending/3233/government_procurement_cards,04-Jun-20,Total Housing Revenue Account,EB  DOMESTIC ABUSE PER,Total Housing Revenue Account,110.16,Ind. Emp Exp-Staff Dev&Training,2020-21Jun_PC00011
Sandwell Metropolitan Borough Council,http://www.sandwell.gov.uk/info/200202/performance_and_spending/3233/government_procurement_cards,04-Jun-20,Childrens Services,WICKES STAFFORD,Childrens Services,10,R& M - Building Maint&Imp.,2020-21Jun_PC00012
Sandwell Metropolitan Borough Council,http://www.sandwell.gov.uk/info/200202/performance_and_spending/3233/government_procurement_cards,04-Jun-20,Adult Social Care Health and Wellbeing - Total,AMZNMktplace,Total Adult Social Care,5.25,ICT,2020-21Jun_PC00013
Sandwell Metropolitan Borough Council,http://www.sandwell.gov.uk/info/200202/performance_and_spending/3233/government_procurement_cards,04-Jun-20,Total Housing Revenue Account,AMZNMktplace,Total Housing Revenue Account,43.32,Materials & Consumables,2020-21Jun_PC00014
Sandwell Metropolitan Borough Council,http://www.sandwell.gov.uk/info/200202/performance_and_spending/3233/government_procurement_cards,04-Jun-20,Regeneration & Growth,AMZNMktplace,Regeneration And The Economy,12.07,Printing Stationery&Gen Office,2020-21Jun_PC00015
Sandwell Metropolitan Borough Council,http://www.sandwell.gov.uk/info/200202/performance_and_spending/3233/government_procurement_cards,04-Jun-20,Housing & Communities,KINGFISHERDIRECT,Neighbourhoods,321.93,Fire Service Workshops,2020-21Jun_PC00016
Sandwell Metropolitan Borough Council,http://www.sandwell.gov.uk/info/200202/performance_and_spending/3233/government_procurement_cards,04-Jun-20,Housing & Communities,OFFICE DEPOT UK,Neighbourhoods,45.5,Printing Stationery&Gen Office,2020-21Jun_PC00017
Sandwell Metropolitan Borough Council,http://www.sandwell.gov.uk/info/200202/performance_and_spending/3233/government_procurement_cards,04-Jun-20,Housing & Communities,Amazon.co.uk MC8651GS5,Neighbourhoods,78.02,Equipment & Furniture,2020-21Jun_PC00018
Sandwell Metropolitan Borough Council,http://www.sandwell.gov.uk/info/200202/performance_and_spending/3233/government_procurement_cards,04-Jun-20,Childrens Services,Amazon.co.uk WY8RC3BV5,Childrens Services,33,Printing Stationery&Gen Office,2020-21Jun_PC00019
Sandwell Metropolitan Borough Council,http://www.sandwell.gov.uk/info/200202/performance_and_spending/3233/government_procurement_cards,04-Jun-20,Childrens Services,Amazon.co.uk T21W21PL5,Childrens Services,12.11,Learning Resources,2020-21Jun_PC00020
Sandwell Metropolitan Borough Council,http://www.sandwell.gov.uk/info/200202/performance_and_spending/3233/government_procurement_cards,05-Jun-20,Housing & Communities,BOND LOC UK LTD,Neighbourhoods,288,Materials & Consumables,2020-21Jun_PC00021
Sandwell Metropolitan Borough Council,http://www.sandwell.gov.uk/info/200202/performance_and_spending/3233/government_procurement_cards,05-Jun-20,Resources (Inc SIU),OFFICE DEPOT UK,Assistant Chief Executive (Excl SIU),18.48,Printing Stationery&Gen Office,2020-21Jun_PC00022
Sandwell Metropolitan Borough Council,http://www.sandwell.gov.uk/info/200202/performance_and_spending/3233/government_procurement_cards,05-Jun-20,Resources (Inc SIU),AMZNMKTPLACE AMAZON.CO,Assistant Chief Executive (Excl SIU),24.99,Printing Stationery&Gen Office,2020-21Jun_PC00023
Sandwell Metropolitan Borough Council,http://www.sandwell.gov.uk/info/200202/performance_and_spending/3233/government_procurement_cards,05-Jun-20,Resources (Inc SIU),AMZNMKTPLACE AMAZON.CO,Assistant Chief Executive (Excl SIU),24.99,Printing Stationery&Gen Office,2020-21Jun_PC00024
Sandwell Metropolitan Borough Council,http://www.sandwell.gov.uk/info/200202/performance_and_spending/3233/government_procurement_cards,05-Jun-20,Resources (Inc SIU),AMZNMktplace,Assistant Chief Executive (Excl SIU),24.99,Printing Stationery&Gen Office,2020-21Jun_PC00025
Sandwell Metropolitan Borough Council,http://www.sandwell.gov.uk/info/200202/performance_and_spending/3233/government_procurement_cards,05-Jun-20,Resources (Inc SIU),AMZNMktplace,Assistant Chief Executive (Excl SIU),24.99,Printing Stationery&Gen Office,2020-21Jun_PC00026
Sandwell Metropolitan Borough Council,http://www.sandwell.gov.uk/info/200202/performance_and_spending/3233/government_procurement_cards,05-Jun-20,Resources (Inc SIU),AMZNMktplace,Assistant Chief Executive (Excl SIU),24.99,Printing Stationery&Gen Office,2020-21Jun_PC00027
Sandwell Metropolitan Borough Council,http://www.sandwell.gov.uk/info/200202/performance_and_spending/3233/government_procurement_cards,05-Jun-20,Resources (Inc SIU),AMZNMKTPLACE AMAZON.CO,Assistant Chief Executive (Excl SIU),29.99,Printing Stationery&Gen Office,2020-21Jun_PC00028
Sandwell Metropolitan Borough Council,http://www.sandwell.gov.uk/info/200202/performance_and_spending/3233/government_procurement_cards,05-Jun-20,Housing & Communities,COBDEN HOTEL LIMITED,Neighbourhoods,233.33,Rents,2020-21Jun_PC00029
Sandwell Metropolitan Borough Council,http://www.sandwell.gov.uk/info/200202/performance_and_spending/3233/government_procurement_cards,05-Jun-20,Adult Social Care Health and Wellbeing - Total,AMZNMktplace,Total Adult Social Care,99.24,Telephones,2020-21Jun_PC00030
Sandwell Metropolitan Borough Council,http://www.sandwell.gov.uk/info/200202/performance_and_spending/3233/government_procurement_cards,05-Jun-20,Adult Social Care Health and Wellbeing - Total,AMZNMktplace,Total Adult Social Care,99.24,Telephones,2020-21Jun_PC00031
Sandwell Metropolitan Borough Council,http://www.sandwell.gov.uk/info/200202/performance_and_spending/3233/government_procurement_cards,05-Jun-20,Housing & Communities,Amazon Prime YW2XZ2OA5,Neighbourhoods,6.66,Subscriptions,2020-21Jun_PC00032
Sandwell Metropolitan Borough Council,http://www.sandwell.gov.uk/info/200202/performance_and_spending/3233/government_procurement_cards,05-Jun-20,Housing & Communities,FACEBK PRPJ5TWSL2,Neighbourhoods,5,Ind. Emp Exp-Advertising,2020-21Jun_PC00033
Sandwell Metropolitan Borough Council,http://www.sandwell.gov.uk/info/200202/performance_and_spending/3233/government_procurement_cards,05-Jun-20,Housing & Communities,Amazon.co.uk BN7N24SG5,Neighbourhoods,8.32,Materials & Consumables,2020-21Jun_PC00034
Sandwell Metropolitan Borough Council,http://www.sandwell.gov.uk/info/200202/performance_and_spending/3233/government_procurement_cards,05-Jun-20,Housing & Communities,OFFICE DEPOT UK,Neighbourhoods,51.67,Printing Stationery&Gen Office,2020-21Jun_PC00035
Sandwell Metropolitan Borough Council,http://www.sandwell.gov.uk/info/200202/performance_and_spending/3233/government_procurement_cards,05-Jun-20,Adult Social Care Health and Wellbeing - Total,AMZNMktplace,Total Adult Social Care,96.92,Catering Equipment,2020-21Jun_PC00036
Sandwell Metropolitan Borough Council,http://www.sandwell.gov.uk/info/200202/performance_and_spending/3233/government_procurement_cards,05-Jun-20,Adult Social Care Health and Wellbeing - Total,AMZNMktplace,Total Adult Social Care,51.68,Catering Equipment,2020-21Jun_PC00037
Sandwell Metropolitan Borough Council,http://www.sandwell.gov.uk/info/200202/performance_and_spending/3233/government_procurement_cards,05-Jun-20,Resources (Inc SIU),OFFICE DEPOT UK,Assistant Chief Executive (Excl SIU),-39.04,Printing Stationery&Gen Office,2020-21Jun_PC00038
Sandwell Metropolitan Borough Council,http://www.sandwell.gov.uk/info/200202/performance_and_spending/3233/government_procurement_cards,05-Jun-20,Total Housing Revenue Account,AMZNMktplace,Total Housing Revenue Account,11.23,Materials & Consumables,2020-21Jun_PC00039
Sandwell Metropolitan Borough Council,http://www.sandwell.gov.uk/info/200202/performance_and_spending/3233/government_procurement_cards,08-Jun-20,Resources (Inc SIU),AMZNMKTPLACE AMAZON.CO,Assistant Chief Executive (Excl SIU),24.99,Printing Stationery&Gen Office,2020-21Jun_PC00040
Sandwell Metropolitan Borough Council,http://www.sandwell.gov.uk/info/200202/performance_and_spending/3233/government_procurement_cards,08-Jun-20,Resources (Inc SIU),AMZNMKTPLACE AMAZON.CO,Assistant Chief Executive (Excl SIU),24.99,Printing Stationery&Gen Office,2020-21Jun_PC00041
Sandwell Metropolitan Borough Council,http://www.sandwell.gov.uk/info/200202/performance_and_spending/3233/government_procurement_cards,08-Jun-20,Resources (Inc SIU),AMZNMktplace,Assistant Chief Executive (Excl SIU),24.99,Printing Stationery&Gen Office,2020-21Jun_PC00042
Sandwell Metropolitan Borough Council,http://www.sandwell.gov.uk/info/200202/performance_and_spending/3233/government_procurement_cards,08-Jun-20,Resources (Inc SIU),OFFICE DEPOT UK,Assistant Chief Executive (Excl SIU),35.32,Printing Stationery&Gen Office,2020-21Jun_PC00043
Sandwell Metropolitan Borough Council,http://www.sandwell.gov.uk/info/200202/performance_and_spending/3233/government_procurement_cards,08-Jun-20,Adult Social Care Health and Wellbeing - Total,Amazon.co.uk 1G8YA30L5,Total Adult Social Care,27.71,ICT,2020-21Jun_PC00044
Sandwell Metropolitan Borough Council,http://www.sandwell.gov.uk/info/200202/performance_and_spending/3233/government_procurement_cards,08-Jun-20,Individual School Budgets With Inclusion,AMZNMktplace,Individual School Budgets With Inclusion,104.49,Materials & Consumables,2020-21Jun_PC00045
Sandwell Metropolitan Borough Council,http://www.sandwell.gov.uk/info/200202/performance_and_spending/3233/government_procurement_cards,08-Jun-20,Resources (Inc SIU),MBL SEMINARS,Assistant Chief Executive (Excl SIU),500,Professional Services External,2020-21Jun_PC00046
Sandwell Metropolitan Borough Council,http://www.sandwell.gov.uk/info/200202/performance_and_spending/3233/government_procurement_cards,08-Jun-20,Adult Social Care Health and Wellbeing - Total,AMZNMktplace,Total Adult Social Care,109.56,Telephones,2020-21Jun_PC00047
Sandwell Metropolitan Borough Council,http://www.sandwell.gov.uk/info/200202/performance_and_spending/3233/government_procurement_cards,08-Jun-20,Resources (Inc SIU),OFFICE DEPOT UK,Assistant Chief Executive (Excl SIU),96.89,Printing Stationery&Gen Office,2020-21Jun_PC00048
Sandwell Metropolitan Borough Council,http://www.sandwell.gov.uk/info/200202/performance_and_spending/3233/government_procurement_cards,08-Jun-20,Regeneration & Growth,OFFICE DEPOT UK,Regeneration And The Economy,16.5,Hygiene Services,2020-21Jun_PC00049
Sandwell Metropolitan Borough Council,http://www.sandwell.gov.uk/info/200202/performance_and_spending/3233/government_procurement_cards,08-Jun-20,Adult Social Care Health and Wellbeing - Total,FACEBK WZW3UTWNK2,Total Adult Social Care,20.46,Advertising & Publicity,2020-21Jun_PC00050
Sandwell Metropolitan Borough Council,http://www.sandwell.gov.uk/info/200202/performance_and_spending/3233/government_procurement_cards,08-Jun-20,Adult Social Care Health and Wellbeing - Total,FACEBK DDL6MUJNK2,Total Adult Social Care,20.46,Advertising & Publicity,2020-21Jun_PC00051
Sandwell Metropolitan Borough Council,http://www.sandwell.gov.uk/info/200202/performance_and_spending/3233/government_procurement_cards,08-Jun-20,Adult Social Care Health and Wellbeing - Total,AMZNMKTPLACE AMAZON.CO,Public Health,39.12,ICT,2020-21Jun_PC00052
Sandwell Metropolitan Borough Council,http://www.sandwell.gov.uk/info/200202/performance_and_spending/3233/government_procurement_cards,08-Jun-20,Housing & Communities,Amazon Prime,Neighbourhoods,-7.99,Rent Allowances Local Scheme,2020-21Jun_PC00053
Sandwell Metropolitan Borough Council,http://www.sandwell.gov.uk/info/200202/performance_and_spending/3233/government_procurement_cards,08-Jun-20,Regeneration & Growth,ADEXA DIRECT,Regeneration And The Economy,223.56,Equipment & Furniture,2020-21Jun_PC00054
Sandwell Metropolitan Borough Council,http://www.sandwell.gov.uk/info/200202/performance_and_spending/3233/government_procurement_cards,08-Jun-20,Adult Social Care Health and Wellbeing - Total,AMZNMktplace,Public Health,29.16,ICT,2020-21Jun_PC00055
Sandwell Metropolitan Borough Council,http://www.sandwell.gov.uk/info/200202/performance_and_spending/3233/government_procurement_cards,08-Jun-20,Adult Social Care Health and Wellbeing - Total,AMZNMKTPLACE AMAZON.CO,Public Health,29.16,ICT,2020-21Jun_PC00056
Sandwell Metropolitan Borough Council,http://www.sandwell.gov.uk/info/200202/performance_and_spending/3233/government_procurement_cards,08-Jun-20,Adult Social Care Health and Wellbeing - Total,AMZNMktplace,Public Health,44.22,ICT,2020-21Jun_PC00057
Sandwell Metropolitan Borough Council,http://www.sandwell.gov.uk/info/200202/performance_and_spending/3233/government_procurement_cards,08-Jun-20,Childrens Services,AMZNMKTPLACE AMAZON.CO,Childrens Services,101.66,ICT,2020-21Jun_PC00058
Sandwell Metropolitan Borough Council,http://www.sandwell.gov.uk/info/200202/performance_and_spending/3233/government_procurement_cards,08-Jun-20,Resources (Inc SIU),AMZNMktplace,Assistant Chief Executive (Excl SIU),18.52,Materials & Consumables,2020-21Jun_PC00059
Sandwell Metropolitan Borough Council,http://www.sandwell.gov.uk/info/200202/performance_and_spending/3233/government_procurement_cards,08-Jun-20,Resources (Inc SIU),OFFICE DEPOT UK,Assistant Chief Executive (Excl SIU),31.86,Materials & Consumables,2020-21Jun_PC00060
Sandwell Metropolitan Borough Council,http://www.sandwell.gov.uk/info/200202/performance_and_spending/3233/government_procurement_cards,08-Jun-20,Childrens Services,AMZNMktplace,Childrens Services,119.99,Employee Expenses,2020-21Jun_PC00061
Sandwell Metropolitan Borough Council,http://www.sandwell.gov.uk/info/200202/performance_and_spending/3233/government_procurement_cards,08-Jun-20,Adult Social Care Health and Wellbeing - Total,ASDA SUPERSTORE,Total Adult Social Care,10.81,Materials & Consumables,2020-21Jun_PC00062
Sandwell Metropolitan Borough Council,http://www.sandwell.gov.uk/info/200202/performance_and_spending/3233/government_procurement_cards,08-Jun-20,Regeneration & Growth,SP   SG WORLD,Regeneration And The Economy,218.3,Equipment & Furniture,2020-21Jun_PC00063
Sandwell Metropolitan Borough Council,http://www.sandwell.gov.uk/info/200202/performance_and_spending/3233/government_procurement_cards,08-Jun-20,Regeneration & Growth,OFFICE DEPOT UK,Regeneration And The Economy,28.8,Equipment & Furniture,2020-21Jun_PC00064
Sandwell Metropolitan Borough Council,http://www.sandwell.gov.uk/info/200202/performance_and_spending/3233/government_procurement_cards,08-Jun-20,Regeneration & Growth,NATIONAL MARKET TRADER,Regeneration And The Economy,40,Equipment & Furniture,2020-21Jun_PC00065
Sandwell Metropolitan Borough Council,http://www.sandwell.gov.uk/info/200202/performance_and_spending/3233/government_procurement_cards,08-Jun-20,Regeneration & Growth,AMZNMKTPLACE AMAZON.CO,Regeneration And The Economy,18.31,Printing Stationery&Gen Office,2020-21Jun_PC00066
Sandwell Metropolitan Borough Council,http://www.sandwell.gov.uk/info/200202/performance_and_spending/3233/government_procurement_cards,08-Jun-20,Regeneration & Growth,AMZNMKTPLACE AMAZON.CO,Regeneration And The Economy,105.83,Telephones,2020-21Jun_PC00067
Sandwell Metropolitan Borough Council,http://www.sandwell.gov.uk/info/200202/performance_and_spending/3233/government_procurement_cards,08-Jun-20,Regeneration & Growth,AMZNMktplace,Regeneration And The Economy,4.98,Printing Stationery&Gen Office,2020-21Jun_PC00068
Sandwell Metropolitan Borough Council,http://www.sandwell.gov.uk/info/200202/performance_and_spending/3233/government_procurement_cards,08-Jun-20,Regeneration & Growth,AMZNMktplace,Regeneration And The Economy,13.32,Printing Stationery&Gen Office,2020-21Jun_PC00069
Sandwell Metropolitan Borough Council,http://www.sandwell.gov.uk/info/200202/performance_and_spending/3233/government_procurement_cards,08-Jun-20,Regeneration & Growth,AMZNMKTPLACE AMAZON.CO,Regeneration And The Economy,150.82,ICT,2020-21Jun_PC00070
Sandwell Metropolitan Borough Council,http://www.sandwell.gov.uk/info/200202/performance_and_spending/3233/government_procurement_cards,09-Jun-20,Housing & Communities,WWW.TOOLSTATION.COM,Neighbourhoods,38.38,Equipment & Furniture,2020-21Jun_PC00071
Sandwell Metropolitan Borough Council,http://www.sandwell.gov.uk/info/200202/performance_and_spending/3233/government_procurement_cards,09-Jun-20,Resources (Inc SIU),SMYTHSTOYS.COM,Assistant Chief Executive (Excl SIU),15.98,Equipment & Furniture,2020-21Jun_PC00072
Sandwell Metropolitan Borough Council,http://www.sandwell.gov.uk/info/200202/performance_and_spending/3233/government_procurement_cards,09-Jun-20,Housing & Communities,Amazon.co.uk IZ4QP4ZQ5,Neighbourhoods,17.92,Equipment & Furniture,2020-21Jun_PC00073
Sandwell Metropolitan Borough Council,http://www.sandwell.gov.uk/info/200202/performance_and_spending/3233/government_procurement_cards,09-Jun-20,Housing & Communities,HIGHFIELD HOUSE HO,Neighbourhoods,405,Rents,2020-21Jun_PC00074
Sandwell Metropolitan Borough Council,http://www.sandwell.gov.uk/info/200202/performance_and_spending/3233/government_procurement_cards,09-Jun-20,Housing & Communities,HIGHFIELD HOUSE HO,Neighbourhoods,472.5,Rents,2020-21Jun_PC00075
Sandwell Metropolitan Borough Council,http://www.sandwell.gov.uk/info/200202/performance_and_spending/3233/government_procurement_cards,09-Jun-20,Resources (Inc SIU),GOVERNMENT EVENTS,Assistant Chief Executive (Excl SIU),330.65,Ind. Emp Exp-Staff Dev&Training,2020-21Jun_PC00076
Sandwell Metropolitan Borough Council,http://www.sandwell.gov.uk/info/200202/performance_and_spending/3233/government_procurement_cards,09-Jun-20,Adult Social Care Health and Wellbeing - Total,FACEBK KYQJNUJNK2,Total Adult Social Care,28.53,Advertising & Publicity,2020-21Jun_PC00077
Sandwell Metropolitan Borough Council,http://www.sandwell.gov.uk/info/200202/performance_and_spending/3233/government_procurement_cards,09-Jun-20,Resources (Inc SIU),Amazon.co.uk CQ01S7H15,Assistant Chief Executive (Excl SIU),33.25,Printing Stationery&Gen Office,2020-21Jun_PC00078
Sandwell Metropolitan Borough Council,http://www.sandwell.gov.uk/info/200202/performance_and_spending/3233/government_procurement_cards,09-Jun-20,Regeneration & Growth,AMZNMktplace,Regeneration And The Economy,13.74,Printing Stationery&Gen Office,2020-21Jun_PC00079
Sandwell Metropolitan Borough Council,http://www.sandwell.gov.uk/info/200202/performance_and_spending/3233/government_procurement_cards,09-Jun-20,Total Housing Revenue Account,EB  DOMESTIC ABUSE PER,Total Housing Revenue Account,110.16,Conference Expenses,2020-21Jun_PC00080
Sandwell Metropolitan Borough Council,http://www.sandwell.gov.uk/info/200202/performance_and_spending/3233/government_procurement_cards,09-Jun-20,Childrens Services,Amazon.co.uk NA1OJ6LG5,Childrens Services,13.48,ICT,2020-21Jun_PC00081
Sandwell Metropolitan Borough Council,http://www.sandwell.gov.uk/info/200202/performance_and_spending/3233/government_procurement_cards,09-Jun-20,Childrens Services,OFFICE DEPOT UK,Childrens Services,119,Printing Stationery&Gen Office,2020-21Jun_PC00082
Sandwell Metropolitan Borough Council,http://www.sandwell.gov.uk/info/200202/performance_and_spending/3233/government_procurement_cards,09-Jun-20,Adult Social Care Health and Wellbeing - Total,AMZNMktplace,Total Adult Social Care,204.34,ICT,2020-21Jun_PC00083
Sandwell Metropolitan Borough Council,http://www.sandwell.gov.uk/info/200202/performance_and_spending/3233/government_procurement_cards,09-Jun-20,Adult Social Care Health and Wellbeing - Total,TVLICENSING.CO.UK,Total Adult Social Care,157.5,Licences,2020-21Jun_PC00084
Sandwell Metropolitan Borough Council,http://www.sandwell.gov.uk/info/200202/performance_and_spending/3233/government_procurement_cards,09-Jun-20,Adult Social Care Health and Wellbeing - Total,TVLICENSING.CO.UK,Total Adult Social Care,157.5,Licences,2020-21Jun_PC00085
Sandwell Metropolitan Borough Council,http://www.sandwell.gov.uk/info/200202/performance_and_spending/3233/government_procurement_cards,09-Jun-20,Adult Social Care Health and Wellbeing - Total,TVLICENSING.CO.UK,Total Adult Social Care,157.5,Licences,2020-21Jun_PC00086
Sandwell Metropolitan Borough Council,http://www.sandwell.gov.uk/info/200202/performance_and_spending/3233/government_procurement_cards,09-Jun-20,Resources (Inc SIU),AMZNMktplace,Assistant Chief Executive (Excl SIU),33.29,Materials & Consumables,2020-21Jun_PC00087
Sandwell Metropolitan Borough Council,http://www.sandwell.gov.uk/info/200202/performance_and_spending/3233/government_procurement_cards,09-Jun-20,Resources (Inc SIU),AMZNMktplace,Assistant Chief Executive (Excl SIU),13.32,Materials & Consumables,2020-21Jun_PC00088
Sandwell Metropolitan Borough Council,http://www.sandwell.gov.uk/info/200202/performance_and_spending/3233/government_procurement_cards,09-Jun-20,Resources (Inc SIU),AMZNMktplace,Assistant Chief Executive (Excl SIU),33.29,Materials & Consumables,2020-21Jun_PC00089
Sandwell Metropolitan Borough Council,http://www.sandwell.gov.uk/info/200202/performance_and_spending/3233/government_procurement_cards,09-Jun-20,Resources (Inc SIU),Amazon Prime QD0BB8665,Assistant Chief Executive (Excl SIU),7.99,Subscriptions,2020-21Jun_PC00090
Sandwell Metropolitan Borough Council,http://www.sandwell.gov.uk/info/200202/performance_and_spending/3233/government_procurement_cards,09-Jun-20,Housing & Communities,AMZNMktplace,Neighbourhoods,40.87,R& M - Building Maint&Imp.,2020-21Jun_PC00091
Sandwell Metropolitan Borough Council,http://www.sandwell.gov.uk/info/200202/performance_and_spending/3233/government_procurement_cards,09-Jun-20,Housing & Communities,SCREWFIX DIRECT,Neighbourhoods,38.32,R& M - Building Maint&Imp.,2020-21Jun_PC00092
Sandwell Metropolitan Borough Council,http://www.sandwell.gov.uk/info/200202/performance_and_spending/3233/government_procurement_cards,09-Jun-20,Regeneration & Growth,Amazon.co.uk 5I6616L65,Regeneration And The Economy,20.33,Printing Stationery&Gen Office,2020-21Jun_PC00093
Sandwell Metropolitan Borough Council,http://www.sandwell.gov.uk/info/200202/performance_and_spending/3233/government_procurement_cards,09-Jun-20,Regeneration & Growth,OFFICE DEPOT UK,Regeneration And The Economy,12.99,Printing Stationery&Gen Office,2020-21Jun_PC00094
Sandwell Metropolitan Borough Council,http://www.sandwell.gov.uk/info/200202/performance_and_spending/3233/government_procurement_cards,09-Jun-20,Total Housing Revenue Account,NRS-UK,Total Housing Revenue Account,36.31,Materials & Consumables,2020-21Jun_PC00095
Sandwell Metropolitan Borough Council,http://www.sandwell.gov.uk/info/200202/performance_and_spending/3233/government_procurement_cards,10-Jun-20,Resources (Inc SIU),AMZNMKTPLACE AMAZON.CO,Assistant Chief Executive (Excl SIU),5.15,Grounds Maint&Improvements,2020-21Jun_PC00096
Sandwell Metropolitan Borough Council,http://www.sandwell.gov.uk/info/200202/performance_and_spending/3233/government_procurement_cards,10-Jun-20,Childrens Services,Amazon.co.uk TN7WE48R5,Childrens Services,19.5,Printing Stationery&Gen Office,2020-21Jun_PC00097
Sandwell Metropolitan Borough Council,http://www.sandwell.gov.uk/info/200202/performance_and_spending/3233/government_procurement_cards,10-Jun-20,Adult Social Care Health and Wellbeing - Total,SP   ABENAONLINEUK,Total Adult Social Care,41.48,Materials & Consumables,2020-21Jun_PC00098
Sandwell Metropolitan Borough Council,http://www.sandwell.gov.uk/info/200202/performance_and_spending/3233/government_procurement_cards,10-Jun-20,Adult Social Care Health and Wellbeing - Total,ARGOS LTD,Total Adult Social Care,53.29,Materials & Consumables,2020-21Jun_PC00099
Sandwell Metropolitan Borough Council,http://www.sandwell.gov.uk/info/200202/performance_and_spending/3233/government_procurement_cards,10-Jun-20,Resources (Inc SIU),Amazon.co.uk ZJ8VY7YI5,Assistant Chief Executive (Excl SIU),26.62,Printing Stationery&Gen Office,2020-21Jun_PC00100
Sandwell Metropolitan Borough Council,http://www.sandwell.gov.uk/info/200202/performance_and_spending/3233/government_procurement_cards,10-Jun-20,Housing & Communities,PAYPAL  MC SHANE EBAY,Neighbourhoods,17.49,Materials & Consumables,2020-21Jun_PC00101
Sandwell Metropolitan Borough Council,http://www.sandwell.gov.uk/info/200202/performance_and_spending/3233/government_procurement_cards,10-Jun-20,Housing & Communities,PAYPAL  ALSOPSALLSO EB,Neighbourhoods,42,Materials & Consumables,2020-21Jun_PC00102
Sandwell Metropolitan Borough Council,http://www.sandwell.gov.uk/info/200202/performance_and_spending/3233/government_procurement_cards,10-Jun-20,Adult Social Care Health and Wellbeing - Total,ROYAL MAIL ONLINE SHOP,Total Adult Social Care,-19,"Postages, Carriage & Courier Services",2020-21Jun_PC00103
Sandwell Metropolitan Borough Council,http://www.sandwell.gov.uk/info/200202/performance_and_spending/3233/government_procurement_cards,10-Jun-20,Resources (Inc SIU),Amazon.co.uk JU4WC9LN5,Assistant Chief Executive (Excl SIU),7.49,Equipment & Furniture,2020-21Jun_PC00104
Sandwell Metropolitan Borough Council,http://www.sandwell.gov.uk/info/200202/performance_and_spending/3233/government_procurement_cards,10-Jun-20,Resources (Inc SIU),Amazon.co.uk 5780V4FV5,Assistant Chief Executive (Excl SIU),16.67,Equipment & Furniture,2020-21Jun_PC00105
Sandwell Metropolitan Borough Council,http://www.sandwell.gov.uk/info/200202/performance_and_spending/3233/government_procurement_cards,10-Jun-20,Resources (Inc SIU),Amazon.co.uk NJ8GN0325,Assistant Chief Executive (Excl SIU),7.49,Equipment & Furniture,2020-21Jun_PC00106
Sandwell Metropolitan Borough Council,http://www.sandwell.gov.uk/info/200202/performance_and_spending/3233/government_procurement_cards,10-Jun-20,Resources (Inc SIU),AMZNMktplace,Assistant Chief Executive (Excl SIU),7.49,Equipment & Furniture,2020-21Jun_PC00107
Sandwell Metropolitan Borough Council,http://www.sandwell.gov.uk/info/200202/performance_and_spending/3233/government_procurement_cards,10-Jun-20,Resources (Inc SIU),AMZNMktplace,Assistant Chief Executive (Excl SIU),14.07,Equipment & Furniture,2020-21Jun_PC00108
Sandwell Metropolitan Borough Council,http://www.sandwell.gov.uk/info/200202/performance_and_spending/3233/government_procurement_cards,10-Jun-20,Adult Social Care Health and Wellbeing - Total,SAINSBURYS SACAT0558,Total Adult Social Care,8.92,Materials & Consumables,2020-21Jun_PC00109
Sandwell Metropolitan Borough Council,http://www.sandwell.gov.uk/info/200202/performance_and_spending/3233/government_procurement_cards,10-Jun-20,Resources (Inc SIU),AMZNMKTPLACE AMAZON.CO,Assistant Chief Executive (Excl SIU),111.76,Equipment & Furniture,2020-21Jun_PC00110
Sandwell Metropolitan Borough Council,http://www.sandwell.gov.uk/info/200202/performance_and_spending/3233/government_procurement_cards,10-Jun-20,Housing & Communities,PAYPAL  QIANHAIPATA EB,Neighbourhoods,19.79,Printing Stationery&Gen Office,2020-21Jun_PC00111
Sandwell Metropolitan Borough Council,http://www.sandwell.gov.uk/info/200202/performance_and_spending/3233/government_procurement_cards,10-Jun-20,Housing & Communities,PAYPAL  QIANHAIPATA EB,Neighbourhoods,19.79,Printing Stationery&Gen Office,2020-21Jun_PC00112
Sandwell Metropolitan Borough Council,http://www.sandwell.gov.uk/info/200202/performance_and_spending/3233/government_procurement_cards,10-Jun-20,Childrens Services,NATIONAL LITERACY,Childrens Services,175,Ind. Emp Exp-Staff Dev&Training,2020-21Jun_PC00113
Sandwell Metropolitan Borough Council,http://www.sandwell.gov.uk/info/200202/performance_and_spending/3233/government_procurement_cards,10-Jun-20,Total Housing Revenue Account,Amazon.co.uk OZ20N2TZ5,Total Housing Revenue Account,43.31,Equipment & Furniture,2020-21Jun_PC00114
Sandwell Metropolitan Borough Council,http://www.sandwell.gov.uk/info/200202/performance_and_spending/3233/government_procurement_cards,10-Jun-20,Childrens Services,Amazon.co.uk 0C22X6QX5,Childrens Services,7.49,ICT,2020-21Jun_PC00115
Sandwell Metropolitan Borough Council,http://www.sandwell.gov.uk/info/200202/performance_and_spending/3233/government_procurement_cards,10-Jun-20,Childrens Services,Amazon.co.uk YU34O4N05,Childrens Services,7.49,ICT,2020-21Jun_PC00116
Sandwell Metropolitan Borough Council,http://www.sandwell.gov.uk/info/200202/performance_and_spending/3233/government_procurement_cards,10-Jun-20,Childrens Services,OFFICE DEPOT UK,Childrens Services,35.18,Printing Stationery&Gen Office,2020-21Jun_PC00117
Sandwell Metropolitan Borough Council,http://www.sandwell.gov.uk/info/200202/performance_and_spending/3233/government_procurement_cards,10-Jun-20,Childrens Services,HOMEBASE LTD 114,Childrens Services,127.04,R& M - Building Maint&Imp.,2020-21Jun_PC00118
Sandwell Metropolitan Borough Council,http://www.sandwell.gov.uk/info/200202/performance_and_spending/3233/government_procurement_cards,10-Jun-20,Resources (Inc SIU),AMZNMktplace,Assistant Chief Executive (Excl SIU),60.49,Equipment & Furniture,2020-21Jun_PC00119
Sandwell Metropolitan Borough Council,http://www.sandwell.gov.uk/info/200202/performance_and_spending/3233/government_procurement_cards,10-Jun-20,Childrens Services,SNOWDONIA FIRE PROTECT,Childrens Services,45,R & M - Security,2020-21Jun_PC00120
Sandwell Metropolitan Borough Council,http://www.sandwell.gov.uk/info/200202/performance_and_spending/3233/government_procurement_cards,10-Jun-20,Childrens Services,SNOWDONIA FIRE PROTECT,Childrens Services,319,R & M - Security,2020-21Jun_PC00121
Sandwell Metropolitan Borough Council,http://www.sandwell.gov.uk/info/200202/performance_and_spending/3233/government_procurement_cards,10-Jun-20,Childrens Services,CARTRIDGEPEOPLE.COM,Childrens Services,15.77,Printing Stationery&Gen Office,2020-21Jun_PC00122
Sandwell Metropolitan Borough Council,http://www.sandwell.gov.uk/info/200202/performance_and_spending/3233/government_procurement_cards,10-Jun-20,Resources (Inc SIU),AMZNMktplace,Assistant Chief Executive (Excl SIU),17.69,Materials & Consumables,2020-21Jun_PC00123
Sandwell Metropolitan Borough Council,http://www.sandwell.gov.uk/info/200202/performance_and_spending/3233/government_procurement_cards,10-Jun-20,Regeneration & Growth,Amazon.co.uk VZ62R3CA5,Regeneration And The Economy,15.85,ICT,2020-21Jun_PC00124
Sandwell Metropolitan Borough Council,http://www.sandwell.gov.uk/info/200202/performance_and_spending/3233/government_procurement_cards,10-Jun-20,Regeneration & Growth,AMZNMKTPLACE AMAZON.CO,Regeneration And The Economy,103.33,Telephones,2020-21Jun_PC00125
Sandwell Metropolitan Borough Council,http://www.sandwell.gov.uk/info/200202/performance_and_spending/3233/government_procurement_cards,10-Jun-20,Regeneration & Growth,AMZNMKTPLACE AMAZON.CO,Regeneration And The Economy,103.33,Telephones,2020-21Jun_PC00126
Sandwell Metropolitan Borough Council,http://www.sandwell.gov.uk/info/200202/performance_and_spending/3233/government_procurement_cards,10-Jun-20,Regeneration & Growth,SAFE FENCE,Regeneration And The Economy,273,Equipment & Furniture,2020-21Jun_PC00127
Sandwell Metropolitan Borough Council,http://www.sandwell.gov.uk/info/200202/performance_and_spending/3233/government_procurement_cards,10-Jun-20,Regeneration & Growth,WWW.TOOLSTATION.COM,Regeneration And The Economy,5.5,Equipment & Furniture,2020-21Jun_PC00128
Sandwell Metropolitan Borough Council,http://www.sandwell.gov.uk/info/200202/performance_and_spending/3233/government_procurement_cards,11-Jun-20,Adult Social Care Health and Wellbeing - Total,AMZNMktplace,Total Adult Social Care,119,Telephones,2020-21Jun_PC00129
Sandwell Metropolitan Borough Council,http://www.sandwell.gov.uk/info/200202/performance_and_spending/3233/government_procurement_cards,11-Jun-20,Adult Social Care Health and Wellbeing - Total,AMZNMktplace,Total Adult Social Care,119,Telephones,2020-21Jun_PC00130
Sandwell Metropolitan Borough Council,http://www.sandwell.gov.uk/info/200202/performance_and_spending/3233/government_procurement_cards,11-Jun-20,Resources (Inc SIU),TUDOR HARDWARE,Assistant Chief Executive (Excl SIU),6,Materials & Consumables,2020-21Jun_PC00131
Sandwell Metropolitan Borough Council,http://www.sandwell.gov.uk/info/200202/performance_and_spending/3233/government_procurement_cards,11-Jun-20,Individual School Budgets With Inclusion,AMZNMktplace,Individual School Budgets With Inclusion,20.82,Printing Stationery&Gen Office,2020-21Jun_PC00132
Sandwell Metropolitan Borough Council,http://www.sandwell.gov.uk/info/200202/performance_and_spending/3233/government_procurement_cards,11-Jun-20,Total Housing Revenue Account,Amazon.co.uk 9X2E027E5,Total Housing Revenue Account,25.86,Equipment & Furniture,2020-21Jun_PC00133
Sandwell Metropolitan Borough Council,http://www.sandwell.gov.uk/info/200202/performance_and_spending/3233/government_procurement_cards,11-Jun-20,Resources (Inc SIU),JOLLYBROLLY,Assistant Chief Executive (Excl SIU),100,Printing Stationery&Gen Office,2020-21Jun_PC00134
Sandwell Metropolitan Borough Council,http://www.sandwell.gov.uk/info/200202/performance_and_spending/3233/government_procurement_cards,11-Jun-20,Adult Social Care Health and Wellbeing - Total,Amazon.co.uk 085XP40U5,Public Health,75.9,Equipment & Furniture,2020-21Jun_PC00135
Sandwell Metropolitan Borough Council,http://www.sandwell.gov.uk/info/200202/performance_and_spending/3233/government_procurement_cards,11-Jun-20,Housing & Communities,HOWE TOOLS LTD,Neighbourhoods,50.83,Grounds Maint&Improvements,2020-21Jun_PC00136
Sandwell Metropolitan Borough Council,http://www.sandwell.gov.uk/info/200202/performance_and_spending/3233/government_procurement_cards,11-Jun-20,Housing & Communities,PAYPAL  DEEANN39TN EBA,Neighbourhoods,13.74,Materials & Consumables,2020-21Jun_PC00137
Sandwell Metropolitan Borough Council,http://www.sandwell.gov.uk/info/200202/performance_and_spending/3233/government_procurement_cards,11-Jun-20,Housing & Communities,PAYPAL  GLOBALSHIP EBA,Neighbourhoods,19.14,Materials & Consumables,2020-21Jun_PC00138
Sandwell Metropolitan Borough Council,http://www.sandwell.gov.uk/info/200202/performance_and_spending/3233/government_procurement_cards,11-Jun-20,Resources (Inc SIU),Amazon.co.uk PV8AZ4SS5,Assistant Chief Executive (Excl SIU),18.32,Equipment & Furniture,2020-21Jun_PC00139
Sandwell Metropolitan Borough Council,http://www.sandwell.gov.uk/info/200202/performance_and_spending/3233/government_procurement_cards,11-Jun-20,Adult Social Care Health and Wellbeing - Total,LEACH S,Total Adult Social Care,157.33,Materials & Consumables,2020-21Jun_PC00140
Sandwell Metropolitan Borough Council,http://www.sandwell.gov.uk/info/200202/performance_and_spending/3233/government_procurement_cards,11-Jun-20,Adult Social Care Health and Wellbeing - Total,WWW.JUSTGLOVES.CO.UK,Total Adult Social Care,119.5,Materials & Consumables,2020-21Jun_PC00141
Sandwell Metropolitan Borough Council,http://www.sandwell.gov.uk/info/200202/performance_and_spending/3233/government_procurement_cards,11-Jun-20,Adult Social Care Health and Wellbeing - Total,WWW.JUSTGLOVES.CO.UK,Total Adult Social Care,119.5,Materials & Consumables,2020-21Jun_PC00142
Sandwell Metropolitan Borough Council,http://www.sandwell.gov.uk/info/200202/performance_and_spending/3233/government_procurement_cards,11-Jun-20,Resources (Inc SIU),Amazon.co.uk 6Y52Q4FO5,Assistant Chief Executive (Excl SIU),14.99,Printing Stationery&Gen Office,2020-21Jun_PC00143
Sandwell Metropolitan Borough Council,http://www.sandwell.gov.uk/info/200202/performance_and_spending/3233/government_procurement_cards,11-Jun-20,Resources (Inc SIU),WWW.POSTOFFICESHOP.CO.,Assistant Chief Executive (Excl SIU),78.49,Printing Stationery&Gen Office,2020-21Jun_PC00144
Sandwell Metropolitan Borough Council,http://www.sandwell.gov.uk/info/200202/performance_and_spending/3233/government_procurement_cards,11-Jun-20,Total Housing Revenue Account,AMZNMktplace,Total Housing Revenue Account,87.45,Printing Stationery&Gen Office,2020-21Jun_PC00145
Sandwell Metropolitan Borough Council,http://www.sandwell.gov.uk/info/200202/performance_and_spending/3233/government_procurement_cards,11-Jun-20,Housing & Communities,OFFICE DEPOT UK,Neighbourhoods,23.5,Printing Stationery&Gen Office,2020-21Jun_PC00146
Sandwell Metropolitan Borough Council,http://www.sandwell.gov.uk/info/200202/performance_and_spending/3233/government_procurement_cards,11-Jun-20,Childrens Services,Amazon.co.uk GY1DE4UQ5,Childrens Services,7.49,ICT,2020-21Jun_PC00147
Sandwell Metropolitan Borough Council,http://www.sandwell.gov.uk/info/200202/performance_and_spending/3233/government_procurement_cards,11-Jun-20,Childrens Services,Amazon.co.uk T85YF7C75,Childrens Services,7.49,ICT,2020-21Jun_PC00148
Sandwell Metropolitan Borough Council,http://www.sandwell.gov.uk/info/200202/performance_and_spending/3233/government_procurement_cards,11-Jun-20,Childrens Services,Amazon.co.uk BH14J0975,Childrens Services,7.49,ICT,2020-21Jun_PC00149
Sandwell Metropolitan Borough Council,http://www.sandwell.gov.uk/info/200202/performance_and_spending/3233/government_procurement_cards,11-Jun-20,Childrens Services,Amazon.co.uk 6C7J19255,Childrens Services,13.48,ICT,2020-21Jun_PC00150
Sandwell Metropolitan Borough Council,http://www.sandwell.gov.uk/info/200202/performance_and_spending/3233/government_procurement_cards,11-Jun-20,Adult Social Care Health and Wellbeing - Total,AMZNMktplace,Total Adult Social Care,204.34,ICT,2020-21Jun_PC00151
Sandwell Metropolitan Borough Council,http://www.sandwell.gov.uk/info/200202/performance_and_spending/3233/government_procurement_cards,11-Jun-20,Childrens Services,WWW.AELP.ORG.UK,Childrens Services,49,Ind. Emp Exp-Staff Dev&Training,2020-21Jun_PC00152
Sandwell Metropolitan Borough Council,http://www.sandwell.gov.uk/info/200202/performance_and_spending/3233/government_procurement_cards,11-Jun-20,Childrens Services,WWW.POSTOFFICESHOP.CO.,Childrens Services,90.49,Printing Stationery&Gen Office,2020-21Jun_PC00153
Sandwell Metropolitan Borough Council,http://www.sandwell.gov.uk/info/200202/performance_and_spending/3233/government_procurement_cards,11-Jun-20,Housing & Communities,OFFICE DEPOT UK,Neighbourhoods,42.99,Printing Stationery&Gen Office,2020-21Jun_PC00154
Sandwell Metropolitan Borough Council,http://www.sandwell.gov.uk/info/200202/performance_and_spending/3233/government_procurement_cards,11-Jun-20,Regeneration & Growth,AMZNMKTPLACE AMAZON.CO,Regeneration And The Economy,40.16,Printing Stationery&Gen Office,2020-21Jun_PC00155
Sandwell Metropolitan Borough Council,http://www.sandwell.gov.uk/info/200202/performance_and_spending/3233/government_procurement_cards,11-Jun-20,Regeneration & Growth,AMZNMKTPLACE AMAZON.CO,Regeneration And The Economy,32.15,Printing Stationery&Gen Office,2020-21Jun_PC00156
Sandwell Metropolitan Borough Council,http://www.sandwell.gov.uk/info/200202/performance_and_spending/3233/government_procurement_cards,11-Jun-20,Total Housing Revenue Account,WWW.OFFICETEAMCONNECT.,Total Housing Revenue Account,-5220,Materials & Consumables,2020-21Jun_PC00157
Sandwell Metropolitan Borough Council,http://www.sandwell.gov.uk/info/200202/performance_and_spending/3233/government_procurement_cards,11-Jun-20,Adult Social Care Health and Wellbeing - Total,AMZNMKTPLACE AMAZON.CO,Total Adult Social Care,16.86,Ind. Emp Exp-Emp. Welfare,2020-21Jun_PC00158
Sandwell Metropolitan Borough Council,http://www.sandwell.gov.uk/info/200202/performance_and_spending/3233/government_procurement_cards,11-Jun-20,Total Housing Revenue Account,XMA LTD,Total Housing Revenue Account,31.35,ICT,2020-21Jun_PC00159
Sandwell Metropolitan Borough Council,http://www.sandwell.gov.uk/info/200202/performance_and_spending/3233/government_procurement_cards,11-Jun-20,Childrens Services,PAYPAL  CAREERDEVEL,Childrens Services,120,Ind. Emp Exp-Staff Dev&Training,2020-21Jun_PC00160
Sandwell Metropolitan Borough Council,http://www.sandwell.gov.uk/info/200202/performance_and_spending/3233/government_procurement_cards,12-Jun-20,Housing & Communities,COBDEN HOTEL LIMITED,Neighbourhoods,233.33,Rents,2020-21Jun_PC00161
Sandwell Metropolitan Borough Council,http://www.sandwell.gov.uk/info/200202/performance_and_spending/3233/government_procurement_cards,12-Jun-20,Resources (Inc SIU),WWW.CIPS.ORG,Assistant Chief Executive (Excl SIU),38,Ind. Emp Exp-Staff Dev&Training,2020-21Jun_PC00162
Sandwell Metropolitan Borough Council,http://www.sandwell.gov.uk/info/200202/performance_and_spending/3233/government_procurement_cards,12-Jun-20,Resources (Inc SIU),WWW.CIPS.ORG,Assistant Chief Executive (Excl SIU),38,Ind. Emp Exp-Staff Dev&Training,2020-21Jun_PC00163
Sandwell Metropolitan Borough Council,http://www.sandwell.gov.uk/info/200202/performance_and_spending/3233/government_procurement_cards,12-Jun-20,Adult Social Care Health and Wellbeing - Total,AMZNMKTPLACE AMAZON.CO,Total Adult Social Care,99.24,Telephones,2020-21Jun_PC00164
Sandwell Metropolitan Borough Council,http://www.sandwell.gov.uk/info/200202/performance_and_spending/3233/government_procurement_cards,12-Jun-20,Adult Social Care Health and Wellbeing - Total,FACEBK USWMCTSNK2,Public Health,40.78,Advertising & Publicity,2020-21Jun_PC00165
Sandwell Metropolitan Borough Council,http://www.sandwell.gov.uk/info/200202/performance_and_spending/3233/government_procurement_cards,12-Jun-20,Adult Social Care Health and Wellbeing - Total,Amazon.co.uk T38VY41F5,Total Adult Social Care,9.15,Printing Stationery&Gen Office,2020-21Jun_PC00166
Sandwell Metropolitan Borough Council,http://www.sandwell.gov.uk/info/200202/performance_and_spending/3233/government_procurement_cards,12-Jun-20,Adult Social Care Health and Wellbeing - Total,ARGOS LTD,Total Adult Social Care,-5.49,Printing Stationery&Gen Office,2020-21Jun_PC00167
Sandwell Metropolitan Borough Council,http://www.sandwell.gov.uk/info/200202/performance_and_spending/3233/government_procurement_cards,12-Jun-20,Adult Social Care Health and Wellbeing - Total,ARGOS LTD,Total Adult Social Care,5.49,Printing Stationery&Gen Office,2020-21Jun_PC00168
Sandwell Metropolitan Borough Council,http://www.sandwell.gov.uk/info/200202/performance_and_spending/3233/government_procurement_cards,12-Jun-20,Housing & Communities,ENGINEERS MATE LIMITED,Neighbourhoods,307.08,Equipment & Furniture,2020-21Jun_PC00169
Sandwell Metropolitan Borough Council,http://www.sandwell.gov.uk/info/200202/performance_and_spending/3233/government_procurement_cards,12-Jun-20,Housing & Communities,SP   GRANGE EUROPE LTD,Neighbourhoods,129,Equipment & Furniture,2020-21Jun_PC00170
Sandwell Metropolitan Borough Council,http://www.sandwell.gov.uk/info/200202/performance_and_spending/3233/government_procurement_cards,12-Jun-20,Housing & Communities,COMMERCIAL WASHROOMS,Neighbourhoods,114,Equipment & Furniture,2020-21Jun_PC00171
Sandwell Metropolitan Borough Council,http://www.sandwell.gov.uk/info/200202/performance_and_spending/3233/government_procurement_cards,12-Jun-20,Housing & Communities,OFFICE DEPOT UK,Neighbourhoods,7.11,Printing Stationery&Gen Office,2020-21Jun_PC00172
Sandwell Metropolitan Borough Council,http://www.sandwell.gov.uk/info/200202/performance_and_spending/3233/government_procurement_cards,12-Jun-20,Housing & Communities,BESTWAY WHOLESALE,Assistant Chief Executive (Excl SIU),552.33,Catering Provisions,2020-21Jun_PC00173
Sandwell Metropolitan Borough Council,http://www.sandwell.gov.uk/info/200202/performance_and_spending/3233/government_procurement_cards,12-Jun-20,Adult Social Care Health and Wellbeing - Total,AMZNMKTPLACE AMAZON.CO,Total Adult Social Care,115.35,Telephones,2020-21Jun_PC00174
Sandwell Metropolitan Borough Council,http://www.sandwell.gov.uk/info/200202/performance_and_spending/3233/government_procurement_cards,12-Jun-20,Housing & Communities,Amazon.co.uk MH0529TM5,Neighbourhoods,9.72,Materials & Consumables,2020-21Jun_PC00175
Sandwell Metropolitan Borough Council,http://www.sandwell.gov.uk/info/200202/performance_and_spending/3233/government_procurement_cards,12-Jun-20,Housing & Communities,OFFICE DEPOT UK,Neighbourhoods,42.99,Printing Stationery&Gen Office,2020-21Jun_PC00176
Sandwell Metropolitan Borough Council,http://www.sandwell.gov.uk/info/200202/performance_and_spending/3233/government_procurement_cards,12-Jun-20,Regeneration & Growth,CE ONLINE,Regeneration And The Economy,290.09,Equipment & Furniture,2020-21Jun_PC00177
Sandwell Metropolitan Borough Council,http://www.sandwell.gov.uk/info/200202/performance_and_spending/3233/government_procurement_cards,12-Jun-20,Regeneration & Growth,AMZNMktplace,Regeneration And The Economy,11.93,Printing Stationery&Gen Office,2020-21Jun_PC00178
Sandwell Metropolitan Borough Council,http://www.sandwell.gov.uk/info/200202/performance_and_spending/3233/government_procurement_cards,12-Jun-20,Regeneration & Growth,AMZNMktplace,Regeneration And The Economy,4.15,Printing Stationery&Gen Office,2020-21Jun_PC00179
Sandwell Metropolitan Borough Council,http://www.sandwell.gov.uk/info/200202/performance_and_spending/3233/government_procurement_cards,12-Jun-20,Regeneration & Growth,AMZNMktplace,Regeneration And The Economy,14.84,Printing Stationery&Gen Office,2020-21Jun_PC00180
Sandwell Metropolitan Borough Council,http://www.sandwell.gov.uk/info/200202/performance_and_spending/3233/government_procurement_cards,12-Jun-20,Regeneration & Growth,AMZNMktplace,Regeneration And The Economy,5.23,Printing Stationery&Gen Office,2020-21Jun_PC00181
Sandwell Metropolitan Borough Council,http://www.sandwell.gov.uk/info/200202/performance_and_spending/3233/government_procurement_cards,12-Jun-20,Regeneration & Growth,AMZNMktplace,Regeneration And The Economy,79,Printing Stationery&Gen Office,2020-21Jun_PC00182
Sandwell Metropolitan Borough Council,http://www.sandwell.gov.uk/info/200202/performance_and_spending/3233/government_procurement_cards,12-Jun-20,Regeneration & Growth,OFFICE DEPOT UK,Regeneration And The Economy,6.95,Printing Stationery&Gen Office,2020-21Jun_PC00183
Sandwell Metropolitan Borough Council,http://www.sandwell.gov.uk/info/200202/performance_and_spending/3233/government_procurement_cards,12-Jun-20,Regeneration & Growth,Amazon.co.uk 4B0OT8IJ5,Regeneration And The Economy,103.73,Telephones,2020-21Jun_PC00184
Sandwell Metropolitan Borough Council,http://www.sandwell.gov.uk/info/200202/performance_and_spending/3233/government_procurement_cards,15-Jun-20,Adult Social Care Health and Wellbeing - Total,AMMERHURST LTD,Total Adult Social Care,23.95,Fixtures & Fittings,2020-21Jun_PC00185
Sandwell Metropolitan Borough Council,http://www.sandwell.gov.uk/info/200202/performance_and_spending/3233/government_procurement_cards,15-Jun-20,Adult Social Care Health and Wellbeing - Total,AMZNMktplace,Total Adult Social Care,11.23,ICT,2020-21Jun_PC00186
Sandwell Metropolitan Borough Council,http://www.sandwell.gov.uk/info/200202/performance_and_spending/3233/government_procurement_cards,15-Jun-20,Adult Social Care Health and Wellbeing - Total,Amazon Prime AV1DY2985,Total Adult Social Care,7.99,Printing Stationery&Gen Office,2020-21Jun_PC00187
Sandwell Metropolitan Borough Council,http://www.sandwell.gov.uk/info/200202/performance_and_spending/3233/government_procurement_cards,15-Jun-20,Housing & Communities,DOLPHIN SOLUTIONS LTD,Neighbourhoods,92.2,Equipment & Furniture,2020-21Jun_PC00188
Sandwell Metropolitan Borough Council,http://www.sandwell.gov.uk/info/200202/performance_and_spending/3233/government_procurement_cards,15-Jun-20,Resources (Inc SIU),OFFICE DEPOT UK,Assistant Chief Executive (Excl SIU),14.34,Equipment & Furniture,2020-21Jun_PC00189
Sandwell Metropolitan Borough Council,http://www.sandwell.gov.uk/info/200202/performance_and_spending/3233/government_procurement_cards,15-Jun-20,Resources (Inc SIU),Amazon.co.uk OX21O4BC5,Assistant Chief Executive (Excl SIU),22.67,ICT,2020-21Jun_PC00190
Sandwell Metropolitan Borough Council,http://www.sandwell.gov.uk/info/200202/performance_and_spending/3233/government_procurement_cards,15-Jun-20,Resources (Inc SIU),Amazon.co.uk 7N81N6ZH5,Assistant Chief Executive (Excl SIU),22.67,ICT,2020-21Jun_PC00191
Sandwell Metropolitan Borough Council,http://www.sandwell.gov.uk/info/200202/performance_and_spending/3233/government_procurement_cards,15-Jun-20,Resources Capital,Amazon.co.uk I00NT8TT5,Resources Capital,24.46,ICT,2020-21Jun_PC00192
Sandwell Metropolitan Borough Council,http://www.sandwell.gov.uk/info/200202/performance_and_spending/3233/government_procurement_cards,15-Jun-20,Housing & Communities,Amazon.co.uk 5S4DH8TZ5,Neighbourhoods,4.16,Printing Stationery&Gen Office,2020-21Jun_PC00193
Sandwell Metropolitan Borough Council,http://www.sandwell.gov.uk/info/200202/performance_and_spending/3233/government_procurement_cards,15-Jun-20,Housing & Communities,Amazon.co.uk CP8Q98KQ5,Neighbourhoods,37.92,Printing Stationery&Gen Office,2020-21Jun_PC00194
Sandwell Metropolitan Borough Council,http://www.sandwell.gov.uk/info/200202/performance_and_spending/3233/government_procurement_cards,15-Jun-20,Regeneration & Growth,AMZNMKTPLACE AMAZON.CO,Regeneration And The Economy,4.4,Hygiene Services,2020-21Jun_PC00195
Sandwell Metropolitan Borough Council,http://www.sandwell.gov.uk/info/200202/performance_and_spending/3233/government_procurement_cards,15-Jun-20,Total Housing Revenue Account,Amazon.co.uk QM1W816J5,Total Housing Revenue Account,7.15,Equipment & Furniture,2020-21Jun_PC00196
Sandwell Metropolitan Borough Council,http://www.sandwell.gov.uk/info/200202/performance_and_spending/3233/government_procurement_cards,15-Jun-20,Regeneration & Growth,AMZNMktplace,Regeneration And The Economy,12.49,ICT,2020-21Jun_PC00197
Sandwell Metropolitan Borough Council,http://www.sandwell.gov.uk/info/200202/performance_and_spending/3233/government_procurement_cards,15-Jun-20,Resources (Inc SIU),OFFICE DEPOT UK,Assistant Chief Executive (Excl SIU),93.34,Equipment & Furniture,2020-21Jun_PC00198
Sandwell Metropolitan Borough Council,http://www.sandwell.gov.uk/info/200202/performance_and_spending/3233/government_procurement_cards,15-Jun-20,Adult Social Care Health and Wellbeing - Total,AMZNMktplace,Total Adult Social Care,79.8,Protective Clothing&Uniforms,2020-21Jun_PC00199
Sandwell Metropolitan Borough Council,http://www.sandwell.gov.uk/info/200202/performance_and_spending/3233/government_procurement_cards,15-Jun-20,Adult Social Care Health and Wellbeing - Total,Amazon.co.uk 9S5IL2515,Total Adult Social Care,15.96,Materials & Consumables,2020-21Jun_PC00200
Sandwell Metropolitan Borough Council,http://www.sandwell.gov.uk/info/200202/performance_and_spending/3233/government_procurement_cards,15-Jun-20,Resources (Inc SIU),AMZNMKTPLACE AMAZON.CO,Assistant Chief Executive (Excl SIU),27.99,Equipment & Furniture,2020-21Jun_PC00201
Sandwell Metropolitan Borough Council,http://www.sandwell.gov.uk/info/200202/performance_and_spending/3233/government_procurement_cards,15-Jun-20,Housing & Communities,AMZNMKTPLACE AMAZON.CO,Neighbourhoods,34.37,R& M - Building Maint&Imp.,2020-21Jun_PC00202
Sandwell Metropolitan Borough Council,http://www.sandwell.gov.uk/info/200202/performance_and_spending/3233/government_procurement_cards,15-Jun-20,Regeneration & Growth,AMZNMKTPLACE AMAZON.CO,Regeneration And The Economy,44.15,Equipment & Furniture,2020-21Jun_PC00203
Sandwell Metropolitan Borough Council,http://www.sandwell.gov.uk/info/200202/performance_and_spending/3233/government_procurement_cards,15-Jun-20,Regeneration & Growth,ADEXA DIRECT,Regeneration And The Economy,-186.3,Equipment & Furniture,2020-21Jun_PC00204
Sandwell Metropolitan Borough Council,http://www.sandwell.gov.uk/info/200202/performance_and_spending/3233/government_procurement_cards,15-Jun-20,Regeneration & Growth,TRADESHOPDIRECT.CO.UK,Regeneration And The Economy,59.88,Equipment & Furniture,2020-21Jun_PC00205
Sandwell Metropolitan Borough Council,http://www.sandwell.gov.uk/info/200202/performance_and_spending/3233/government_procurement_cards,15-Jun-20,Regeneration & Growth,AMZNMKTPLACE AMAZON.CO,Regeneration And The Economy,25.4,Printing Stationery&Gen Office,2020-21Jun_PC00206
Sandwell Metropolitan Borough Council,http://www.sandwell.gov.uk/info/200202/performance_and_spending/3233/government_procurement_cards,15-Jun-20,Regeneration & Growth,AMZNMktplace,Regeneration And The Economy,32.6,Printing Stationery&Gen Office,2020-21Jun_PC00207
Sandwell Metropolitan Borough Council,http://www.sandwell.gov.uk/info/200202/performance_and_spending/3233/government_procurement_cards,16-Jun-20,Resources (Inc SIU),OFFICE DEPOT UK,Assistant Chief Executive (Excl SIU),37.9,Printing Stationery&Gen Office,2020-21Jun_PC00208
Sandwell Metropolitan Borough Council,http://www.sandwell.gov.uk/info/200202/performance_and_spending/3233/government_procurement_cards,16-Jun-20,Total Housing Revenue Account,OFFICE DEPOT UK,Total Housing Revenue Account,8.88,Printing Stationery&Gen Office,2020-21Jun_PC00209
Sandwell Metropolitan Borough Council,http://www.sandwell.gov.uk/info/200202/performance_and_spending/3233/government_procurement_cards,16-Jun-20,Resources (Inc SIU),WWW.CIPS.ORG,Assistant Chief Executive (Excl SIU),38,Ind. Emp Exp-Staff Dev&Training,2020-21Jun_PC00210
Sandwell Metropolitan Borough Council,http://www.sandwell.gov.uk/info/200202/performance_and_spending/3233/government_procurement_cards,16-Jun-20,Resources (Inc SIU),WWW.HARBROSUPPLIES.COM,Assistant Chief Executive (Excl SIU),162.18,Materials & Consumables,2020-21Jun_PC00211
Sandwell Metropolitan Borough Council,http://www.sandwell.gov.uk/info/200202/performance_and_spending/3233/government_procurement_cards,16-Jun-20,Regeneration & Growth,SG WORLD LTD,Regeneration And The Economy,1866.67,R & M - Security,2020-21Jun_PC00212
Sandwell Metropolitan Borough Council,http://www.sandwell.gov.uk/info/200202/performance_and_spending/3233/government_procurement_cards,16-Jun-20,Regeneration & Growth,SG WORLD LTD,Regeneration And The Economy,4166.67,R & M - Security,2020-21Jun_PC00213
Sandwell Metropolitan Borough Council,http://www.sandwell.gov.uk/info/200202/performance_and_spending/3233/government_procurement_cards,16-Jun-20,Regeneration & Growth,SG WORLD LTD,Regeneration And The Economy,4166.67,R & M - Security,2020-21Jun_PC00214
Sandwell Metropolitan Borough Council,http://www.sandwell.gov.uk/info/200202/performance_and_spending/3233/government_procurement_cards,16-Jun-20,Adult Social Care Health and Wellbeing - Total,OFFICE DEPOT UK,Total Adult Social Care,71.84,Printing Stationery&Gen Office,2020-21Jun_PC00215
Sandwell Metropolitan Borough Council,http://www.sandwell.gov.uk/info/200202/performance_and_spending/3233/government_procurement_cards,16-Jun-20,Adult Social Care Health and Wellbeing - Total,HALFORDS ON LINE,Total Adult Social Care,141.67,Materials & Consumables,2020-21Jun_PC00216
Sandwell Metropolitan Borough Council,http://www.sandwell.gov.uk/info/200202/performance_and_spending/3233/government_procurement_cards,16-Jun-20,Housing & Communities,AMZNMktplace,Neighbourhoods,25.37,Materials & Consumables,2020-21Jun_PC00217
Sandwell Metropolitan Borough Council,http://www.sandwell.gov.uk/info/200202/performance_and_spending/3233/government_procurement_cards,16-Jun-20,Housing & Communities,Amazon.co.uk X08II0N85,Neighbourhoods,4.58,Materials & Consumables,2020-21Jun_PC00218
Sandwell Metropolitan Borough Council,http://www.sandwell.gov.uk/info/200202/performance_and_spending/3233/government_procurement_cards,16-Jun-20,Housing & Communities,AMZNMktplace,Neighbourhoods,29.68,Materials & Consumables,2020-21Jun_PC00219
Sandwell Metropolitan Borough Council,http://www.sandwell.gov.uk/info/200202/performance_and_spending/3233/government_procurement_cards,16-Jun-20,Childrens Services,Spotify P1026D69D3,Childrens Services,8.32,Materials & Consumables,2020-21Jun_PC00220
Sandwell Metropolitan Borough Council,http://www.sandwell.gov.uk/info/200202/performance_and_spending/3233/government_procurement_cards,16-Jun-20,Adult Social Care Health and Wellbeing - Total,OFFICE DEPOT UK,Total Adult Social Care,22.75,Printing Stationery&Gen Office,2020-21Jun_PC00221
Sandwell Metropolitan Borough Council,http://www.sandwell.gov.uk/info/200202/performance_and_spending/3233/government_procurement_cards,16-Jun-20,Total Housing Revenue Account,WWW.OFFICETEAMCONNECT.,Total Housing Revenue Account,-1169.28,Materials & Consumables,2020-21Jun_PC00222
Sandwell Metropolitan Borough Council,http://www.sandwell.gov.uk/info/200202/performance_and_spending/3233/government_procurement_cards,16-Jun-20,Housing & Communities,AMZNMKTPLACE AMAZON.CO,Neighbourhoods,32.37,Cleaning,2020-21Jun_PC00223
Sandwell Metropolitan Borough Council,http://www.sandwell.gov.uk/info/200202/performance_and_spending/3233/government_procurement_cards,16-Jun-20,Regeneration & Growth,CENTRAL SOURCE LTD,Regeneration And The Economy,195.6,Equipment & Furniture,2020-21Jun_PC00224
Sandwell Metropolitan Borough Council,http://www.sandwell.gov.uk/info/200202/performance_and_spending/3233/government_procurement_cards,16-Jun-20,Regeneration & Growth,AMZNMktplace,Regeneration And The Economy,20.79,Equipment & Furniture,2020-21Jun_PC00225
Sandwell Metropolitan Borough Council,http://www.sandwell.gov.uk/info/200202/performance_and_spending/3233/government_procurement_cards,16-Jun-20,Regeneration & Growth,Amazon.co.uk 7909J54S5,Regeneration And The Economy,16.5,Printing Stationery&Gen Office,2020-21Jun_PC00226
Sandwell Metropolitan Borough Council,http://www.sandwell.gov.uk/info/200202/performance_and_spending/3233/government_procurement_cards,16-Jun-20,Housing & Communities,GLASS'S INFORMATION SE,Neighbourhoods,1390,Subscriptions,2020-21Jun_PC00227
Sandwell Metropolitan Borough Council,http://www.sandwell.gov.uk/info/200202/performance_and_spending/3233/government_procurement_cards,16-Jun-20,Regeneration & Growth,Amazon.co.uk WQ56747L5,Regeneration And The Economy,5.55,Printing Stationery&Gen Office,2020-21Jun_PC00228
Sandwell Metropolitan Borough Council,http://www.sandwell.gov.uk/info/200202/performance_and_spending/3233/government_procurement_cards,17-Jun-20,Housing & Communities,KEMPS PUBLISHING,Neighbourhoods,450,Ind. Emp Exp-Advertising,2020-21Jun_PC00229
Sandwell Metropolitan Borough Council,http://www.sandwell.gov.uk/info/200202/performance_and_spending/3233/government_procurement_cards,17-Jun-20,Housing & Communities,B & Q 1357,Neighbourhoods,60,Materials & Consumables,2020-21Jun_PC00230
Sandwell Metropolitan Borough Council,http://www.sandwell.gov.uk/info/200202/performance_and_spending/3233/government_procurement_cards,17-Jun-20,Resources (Inc SIU),SP   VIKING TAPES,Assistant Chief Executive (Excl SIU),61.6,Printing Stationery&Gen Office,2020-21Jun_PC00231
Sandwell Metropolitan Borough Council,http://www.sandwell.gov.uk/info/200202/performance_and_spending/3233/government_procurement_cards,17-Jun-20,Housing & Communities,HIGHFIELD HOUSE HO,Neighbourhoods,315,Rents,2020-21Jun_PC00232
Sandwell Metropolitan Borough Council,http://www.sandwell.gov.uk/info/200202/performance_and_spending/3233/government_procurement_cards,17-Jun-20,Housing & Communities,HIGHFIELD HOUSE HO,Neighbourhoods,37.5,Rents,2020-21Jun_PC00233
Sandwell Metropolitan Borough Council,http://www.sandwell.gov.uk/info/200202/performance_and_spending/3233/government_procurement_cards,17-Jun-20,Total Housing Revenue Account,OFFICE DEPOT UK,Total Housing Revenue Account,35.08,Printing Stationery&Gen Office,2020-21Jun_PC00234
Sandwell Metropolitan Borough Council,http://www.sandwell.gov.uk/info/200202/performance_and_spending/3233/government_procurement_cards,17-Jun-20,Resources (Inc SIU),AMZNMktplace,Assistant Chief Executive (Excl SIU),29.98,Cleaning,2020-21Jun_PC00235
Sandwell Metropolitan Borough Council,http://www.sandwell.gov.uk/info/200202/performance_and_spending/3233/government_procurement_cards,17-Jun-20,Adult Social Care Health and Wellbeing - Total,AMZNMKTPLACE AMAZON.CO,Total Adult Social Care,199.98,Telephones,2020-21Jun_PC00236
Sandwell Metropolitan Borough Council,http://www.sandwell.gov.uk/info/200202/performance_and_spending/3233/government_procurement_cards,17-Jun-20,Adult Social Care Health and Wellbeing - Total,AMZNMktplace,Total Adult Social Care,799.93,Telephones,2020-21Jun_PC00237
Sandwell Metropolitan Borough Council,http://www.sandwell.gov.uk/info/200202/performance_and_spending/3233/government_procurement_cards,17-Jun-20,Regeneration & Growth,Amazon.co.uk 488KX8VJ5,Regeneration And The Economy,6.65,Printing Stationery&Gen Office,2020-21Jun_PC00238
Sandwell Metropolitan Borough Council,http://www.sandwell.gov.uk/info/200202/performance_and_spending/3233/government_procurement_cards,17-Jun-20,Childrens Services,VODAFONE LTD,Childrens Services,17.63,ICT,2020-21Jun_PC00239
Sandwell Metropolitan Borough Council,http://www.sandwell.gov.uk/info/200202/performance_and_spending/3233/government_procurement_cards,17-Jun-20,Resources (Inc SIU),AMZNMktplace,Assistant Chief Executive (Excl SIU),49.99,Materials & Consumables,2020-21Jun_PC00240
Sandwell Metropolitan Borough Council,http://www.sandwell.gov.uk/info/200202/performance_and_spending/3233/government_procurement_cards,17-Jun-20,Housing & Communities,OFFICE DEPOT UK,Neighbourhoods,67.09,Printing Stationery&Gen Office,2020-21Jun_PC00241
Sandwell Metropolitan Borough Council,http://www.sandwell.gov.uk/info/200202/performance_and_spending/3233/government_procurement_cards,17-Jun-20,Regeneration & Growth,Amazon.co.uk 2C9IF7CB5,Regeneration And The Economy,99.99,Telephones,2020-21Jun_PC00242
Sandwell Metropolitan Borough Council,http://www.sandwell.gov.uk/info/200202/performance_and_spending/3233/government_procurement_cards,18-Jun-20,Housing & Communities,AMZNMKTPLACE AMAZON.CO,Neighbourhoods,237.08,Fixtures & Fittings,2020-21Jun_PC00243
Sandwell Metropolitan Borough Council,http://www.sandwell.gov.uk/info/200202/performance_and_spending/3233/government_procurement_cards,18-Jun-20,Corporate Management,AMZNMktplace,Corporate Management,62.63,Printing Stationery&Gen Office,2020-21Jun_PC00244
Sandwell Metropolitan Borough Council,http://www.sandwell.gov.uk/info/200202/performance_and_spending/3233/government_procurement_cards,18-Jun-20,Housing & Communities,AMZNMktplace,Neighbourhoods,184.15,Equipment & Furniture,2020-21Jun_PC00245
Sandwell Metropolitan Borough Council,http://www.sandwell.gov.uk/info/200202/performance_and_spending/3233/government_procurement_cards,18-Jun-20,Housing & Communities,LIGO ELECTRONICS,Neighbourhoods,69.99,Materials & Consumables,2020-21Jun_PC00246
Sandwell Metropolitan Borough Council,http://www.sandwell.gov.uk/info/200202/performance_and_spending/3233/government_procurement_cards,18-Jun-20,Housing & Communities,CALDMORE HARDWARE LIMI,Neighbourhoods,11.32,Cleaning,2020-21Jun_PC00247
Sandwell Metropolitan Borough Council,http://www.sandwell.gov.uk/info/200202/performance_and_spending/3233/government_procurement_cards,18-Jun-20,Resources (Inc SIU),OFFICE DEPOT UK,Assistant Chief Executive (Excl SIU),46.5,Printing Stationery&Gen Office,2020-21Jun_PC00248
Sandwell Metropolitan Borough Council,http://www.sandwell.gov.uk/info/200202/performance_and_spending/3233/government_procurement_cards,18-Jun-20,Regeneration & Growth,OFFICE DEPOT UK,Regeneration And The Economy,121.76,Printing Stationery&Gen Office,2020-21Jun_PC00249
Sandwell Metropolitan Borough Council,http://www.sandwell.gov.uk/info/200202/performance_and_spending/3233/government_procurement_cards,18-Jun-20,Adult Social Care Health and Wellbeing - Total,AMZNMKTPLACE AMAZON.CO,Total Adult Social Care,7.14,Materials & Consumables,2020-21Jun_PC00250
Sandwell Metropolitan Borough Council,http://www.sandwell.gov.uk/info/200202/performance_and_spending/3233/government_procurement_cards,18-Jun-20,Adult Social Care Health and Wellbeing - Total,WWW.JUSTGLOVES.CO.UK,Total Adult Social Care,45.2,Materials & Consumables,2020-21Jun_PC00251
Sandwell Metropolitan Borough Council,http://www.sandwell.gov.uk/info/200202/performance_and_spending/3233/government_procurement_cards,18-Jun-20,Total Housing Revenue Account,Staffordshire Builders,Total Housing Revenue Account,15.83,Materials & Consumables,2020-21Jun_PC00252
Sandwell Metropolitan Borough Council,http://www.sandwell.gov.uk/info/200202/performance_and_spending/3233/government_procurement_cards,18-Jun-20,Total Housing Revenue Account,AMZNMktplace,Total Housing Revenue Account,64.08,Equipment & Furniture,2020-21Jun_PC00253
Sandwell Metropolitan Borough Council,http://www.sandwell.gov.uk/info/200202/performance_and_spending/3233/government_procurement_cards,18-Jun-20,Housing & Communities,OFFICE DEPOT UK,Neighbourhoods,41.24,Materials & Consumables,2020-21Jun_PC00254
Sandwell Metropolitan Borough Council,http://www.sandwell.gov.uk/info/200202/performance_and_spending/3233/government_procurement_cards,18-Jun-20,Housing & Communities,AMZNMktplace,Assistant Chief Executive (Excl SIU),44.15,Equipment & Furniture,2020-21Jun_PC00255
Sandwell Metropolitan Borough Council,http://www.sandwell.gov.uk/info/200202/performance_and_spending/3233/government_procurement_cards,18-Jun-20,Regeneration & Growth,Amazon.co.uk EM8U33V15,Regeneration And The Economy,99.17,ICT,2020-21Jun_PC00256
Sandwell Metropolitan Borough Council,http://www.sandwell.gov.uk/info/200202/performance_and_spending/3233/government_procurement_cards,18-Jun-20,Adult Social Care Health and Wellbeing - Total,AMZNMKTPLACE AMAZON.CO,Total Adult Social Care,79.8,ICT,2020-21Jun_PC00257
Sandwell Metropolitan Borough Council,http://www.sandwell.gov.uk/info/200202/performance_and_spending/3233/government_procurement_cards,19-Jun-20,Housing & Communities,WWW.BUNZLCLEANINGSUPPL,Neighbourhoods,58.12,R& M - Building Maint&Imp.,2020-21Jun_PC00258
Sandwell Metropolitan Borough Council,http://www.sandwell.gov.uk/info/200202/performance_and_spending/3233/government_procurement_cards,19-Jun-20,Adult Social Care Health and Wellbeing - Total,AMZNMktplace,Total Adult Social Care,119,Telephones,2020-21Jun_PC00259
Sandwell Metropolitan Borough Council,http://www.sandwell.gov.uk/info/200202/performance_and_spending/3233/government_procurement_cards,19-Jun-20,Housing & Communities,AROMAPRIME,Neighbourhoods,203.97,R& M - Building Maint&Imp.,2020-21Jun_PC00260
Sandwell Metropolitan Borough Council,http://www.sandwell.gov.uk/info/200202/performance_and_spending/3233/government_procurement_cards,19-Jun-20,Housing & Communities,COBDEN HOTEL LIMITED,Neighbourhoods,233.33,Rents,2020-21Jun_PC00261
Sandwell Metropolitan Borough Council,http://www.sandwell.gov.uk/info/200202/performance_and_spending/3233/government_procurement_cards,19-Jun-20,Adult Social Care Health and Wellbeing - Total,AMZNMktplace,Total Adult Social Care,3.32,Equipment & Furniture,2020-21Jun_PC00262
Sandwell Metropolitan Borough Council,http://www.sandwell.gov.uk/info/200202/performance_and_spending/3233/government_procurement_cards,19-Jun-20,Housing & Communities,THE HYGIENE COMPANY,Neighbourhoods,512.96,Equipment & Furniture,2020-21Jun_PC00263
Sandwell Metropolitan Borough Council,http://www.sandwell.gov.uk/info/200202/performance_and_spending/3233/government_procurement_cards,19-Jun-20,Adult Social Care Health and Wellbeing - Total,AMZNMktplace,Public Health,24.57,ICT,2020-21Jun_PC00264
Sandwell Metropolitan Borough Council,http://www.sandwell.gov.uk/info/200202/performance_and_spending/3233/government_procurement_cards,19-Jun-20,Resources (Inc SIU),Amazon.co.uk TE9IF5KZ5,Assistant Chief Executive (Excl SIU),13.92,ICT,2020-21Jun_PC00265
